Service Area,Service Division,Expense Type,Expense Code,Detailed Expense Type,Payment Date,Transaction Number,Amount Exc VAT,Supplier Name
Children and Young Peoples Services,Head of Education and Skills,Transport,230007,Contract Hire,01/06/2018,3444881-K4/SD,"1,710.00",AABAT TAXIS.
Children and Young Peoples Services,Head of Education and Skills,Transport,230008,Contract Hire,01/06/2018,3444881-K1/SA,"2,160.00",AABAT TAXIS.
Children and Young Peoples Services,Head of Education and Skills,Transport,230008,Contract Hire,01/06/2018,3444881-K11/SP,"2,160.00",AABAT TAXIS.
Children and Young Peoples Services,Head of Education and Skills,Transport,230008,Contract Hire,01/06/2018,3444881-K15/ST,"2,304.00",AABAT TAXIS.
Children and Young Peoples Services,Head of Education and Skills,Transport,230008,Contract Hire,01/06/2018,3444881-K2/SB,"1,165.50",AABAT TAXIS.
Children and Young Peoples Services,Head of Education and Skills,Transport,230008,Contract Hire,01/06/2018,3444881-K7/SJ,"1,735.50",AABAT TAXIS.
Children and Young Peoples Services,Head of Education and Skills,Transport,230008,Contract Hire,01/06/2018,3444881-K8/SK,"1,350.00",AABAT TAXIS.
Adult and Health Services,Head of Adults,Transport,230005,Contract Hire,01/06/2018,3444881-K25/AC,665.00,AABAT TAXIS.
Children and Young Peoples Services,Head of Education and Skills,Transport,230012,Contract Hire,01/06/2018,3444882-0384,"1,584.00",ABC & OUSTON CABS.
Children and Young Peoples Services,Head of Education and Skills,Transport,230006,Contract Hire,01/06/2018,3444891-0057,"1,000.00",ANDREW SIMPSON T/A ANDY`S CABS.
Children and Young Peoples Services,Head of Education and Skills,Transport,230008,Contract Hire,01/06/2018,3444893-146,"1,295.00",ANDY CABS.
Regeneration and Local Services,Economic Development and Housing,Premises,106082,Centrally Controlled Rep and Maint,01/06/2018,3444900-30010,725.00,AQUAJET DRAIN CLEANING LTD.
Children and Young Peoples Services,Head of Education and Skills,Transport,230008,Contract Hire,01/06/2018,3444902-MAY2018-01,"1,620.00",ARMSTRONG`S TAXIS.
Children and Young Peoples Services,Head of Education and Skills,Transport,230008,Contract Hire,01/06/2018,3444903-1072,"1,951.02",ARRON GILBRAITH T/A BYRON TRAVEL.
Regeneration and Local Services,Culture & Sport,Supplies and Services,312017,Newspapers books and periodicals E312,01/06/2018,3444905-5726032,661.80,ASKEWS & HOLTS LIBRARY SERVICES LTD.
Regeneration and Local Services,Technical Services,Third Party Payments 4THIRD,430128,Rendered by Private Contractors,01/06/2018,3444906-W/C11/02AND25/02/2018,"4,620.00",AST LEE & SON.
Children and Young Peoples Services,Head of Education and Skills,Transport,230007,Contract Hire,01/06/2018,3444907-651,856.35,AT TAXIS LTD.
Children and Young Peoples Services,Head of Education and Skills,Transport,230007,Contract Hire,01/06/2018,3444908-03762,666.00,ATLAS TAXIS CONSETT.
Children and Young Peoples Services,Head of Education and Skills,Transport,230009,Contract Hire,01/06/2018,3444908-03767,791.20,ATLAS TAXIS CONSETT.
Children and Young Peoples Services,Head of Education and Skills,Transport,230004,Contract Hire,01/06/2018,3444908-03765,763.60,ATLAS TAXIS CONSETT.
Children and Young Peoples Services,Head of Education and Skills,Transport,230006,Contract Hire,01/06/2018,3444908-03769,696.80,ATLAS TAXIS CONSETT.
Adult and Health Services,Head of Adults,Transport,230005,Contract Hire,01/06/2018,3444908-03764,612.00,ATLAS TAXIS CONSETT.
Regeneration and Local Services,Culture & Sport,Supplies and Services,338047,Services,01/06/2018,3444909-GW190518,"2,745.84",AVALON PROMOTIONS LTD.
Children and Young Peoples Services,Head of Education and Skills,Transport,230008,Contract Hire,01/06/2018,3444915-773,601.02,BEELINE MINI BUSES.
Children and Young Peoples Services,Head of Education and Skills,Transport,230008,Contract Hire,01/06/2018,3444915-774,555.30,BEELINE MINI BUSES.
Children and Young Peoples Services,Head of Education and Skills,Transport,230008,Contract Hire,01/06/2018,3444915-775,"1,348.74",BEELINE MINI BUSES.
Children and Young Peoples Services,Head of Education and Skills,Transport,230008,Contract Hire,01/06/2018,3444915-776,628.38,BEELINE MINI BUSES.
Children and Young Peoples Services,Head of Education and Skills,Transport,230016,Contract Hire,01/06/2018,3444916-SMITH2/MAY18,702.00,BEELINE PRIVATE HIRE.
Adult and Health Services,Head of Adults,Transport,230005,Contract Hire,01/06/2018,3444920-7051,"1,039.50",BOBBY DOVE.
Transformation and Partnerships,Partnerships & Community Engagement Div.,Cap Exp on Grants & Other Financial Assistance (REFCUS),918004,Contributions to other bodies 918004,01/06/2018,3444923-VOUCHER17YF-EDRC00317AB-EDRC005YF3,"3,564.00",BOWBURN YOUTH PROJECT.
Children and Young Peoples Services,Head of Education and Skills,Transport,230008,Contract Hire,01/06/2018,3444927-BZ00259,"1,062.00",BREZ`S TAXIS.
Children and Young Peoples Services,Head of Education and Skills,Transport,230008,Contract Hire,01/06/2018,3444927-BZ00260,882.00,BREZ`S TAXIS.
Regeneration and Local Services,Economic Development and Housing,Supplies and Services,384871,Miscellaneous Expenses,01/06/2018,3444946-086,800.00,CHAMELEON VOCATIONAL TRAINING LTD.
Children and Young Peoples Services,Head of Education and Skills,Transport,230007,Contract Hire,01/06/2018,3444949-46297,"2,250.00",CHRISTOPHER JAMES GRIERSON T/A GRIERSONS COACHES.
Children and Young Peoples Services,Head of Education and Skills,Transport,230003,Contract Hire,01/06/2018,3444949-46294,"2,682.00",CHRISTOPHER JAMES GRIERSON T/A GRIERSONS COACHES.
Children and Young Peoples Services,Head of Education and Skills,Transport,230003,Contract Hire,01/06/2018,3444949-46296,"6,696.00",CHRISTOPHER JAMES GRIERSON T/A GRIERSONS COACHES.
Children and Young Peoples Services,Head of Education and Skills,Transport,230003,Contract Hire,01/06/2018,3444949-46298,"2,520.00",CHRISTOPHER JAMES GRIERSON T/A GRIERSONS COACHES.
Children and Young Peoples Services,Head of Education and Skills,Transport,230003,Contract Hire,01/06/2018,3444949-46299,"2,340.00",CHRISTOPHER JAMES GRIERSON T/A GRIERSONS COACHES.
Children and Young Peoples Services,Head of Education and Skills,Transport,230008,Contract Hire,01/06/2018,3444952-CJ009,"2,907.00",CJ COACHES.
Children and Young Peoples Services,Head of Childrens Social Care,Transport,230005,Contract Hire,01/06/2018,3444955-CLUB1816C,549.00,CLUBMAN CABS.
Children and Young Peoples Services,Head of Education and Skills,Transport,230007,Contract Hire,01/06/2018,3444962-DCC/4003/MAY18,"1,638.00",COUNTY COACHES.
Children and Young Peoples Services,Head of Education and Skills,Transport,230007,Contract Hire,01/06/2018,3444962-DCC/4118/MAY18,"4,248.00",COUNTY COACHES.
Children and Young Peoples Services,Head of Education and Skills,Transport,230008,Contract Hire,01/06/2018,3444963-N069/MAY/18,"1,708.20",CRAIG RAMSHAW T/A CRAIG`S CABS.
Children and Young Peoples Services,Head of Education and Skills,Transport,230009,Contract Hire,01/06/2018,3444966-107803,837.00,CROFT BUSINESS SERVICES (UK) LTD T/A CROFT TAXIS.
Children and Young Peoples Services,Head of Education and Skills,Transport,230009,Contract Hire,01/06/2018,3444966-107804,"1,767.78",CROFT BUSINESS SERVICES (UK) LTD T/A CROFT TAXIS.
Children and Young Peoples Services,Head of Education and Skills,Transport,230006,Contract Hire,01/06/2018,3444966-107816,"1,067.76",CROFT BUSINESS SERVICES (UK) LTD T/A CROFT TAXIS.
Children and Young Peoples Services,Head of Education and Skills,Transport,230008,Contract Hire,01/06/2018,3444966-107806,"3,397.14",CROFT BUSINESS SERVICES (UK) LTD T/A CROFT TAXIS.
Children and Young Peoples Services,Head of Education and Skills,Transport,230008,Contract Hire,01/06/2018,3444966-107807,"1,797.66",CROFT BUSINESS SERVICES (UK) LTD T/A CROFT TAXIS.
Children and Young Peoples Services,Head of Education and Skills,Transport,230008,Contract Hire,01/06/2018,3444966-107817,"1,088.06",CROFT BUSINESS SERVICES (UK) LTD T/A CROFT TAXIS.
Children and Young Peoples Services,Head of Education and Skills,Transport,230008,Contract Hire,01/06/2018,3444966-107821,"1,792.26",CROFT BUSINESS SERVICES (UK) LTD T/A CROFT TAXIS.
Children and Young Peoples Services,Head of Education and Skills,Transport,230008,Contract Hire,01/06/2018,3444968-35,"1,332.00",CUTHBERT CABS.
Children and Young Peoples Services,Head of Education and Skills,Transport,230007,Contract Hire,01/06/2018,3444973-SCEAMAY1801,800.00,DALELINK PRIVATE HIRE.
Children and Young Peoples Services,Head of Education and Skills,Transport,230007,Contract Hire,01/06/2018,3444973-SCEAMAY1801A,649.00,DALELINK PRIVATE HIRE.
Children and Young Peoples Services,Head of Education and Skills,Transport,230008,Contract Hire,01/06/2018,3444975-3295,"1,530.00",DAVES MINIBUSES.
Children and Young Peoples Services,Head of Education and Skills,Transport,230008,Contract Hire,01/06/2018,3444975-3298,"1,404.00",DAVES MINIBUSES.
Children and Young Peoples Services,Head of Education and Skills,Construction work A908,908105,Construction work,01/06/2018,3444994-SI-05965A,"124,448.85",EFA EDUCATION FUNDING AGENCY.*
Children and Young Peoples Services,Head of Education and Skills,Transport,230006,Contract Hire,01/06/2018,3444996-N220/MAY/18,764.64,EMMA RAMSHAW T/A EMMA`S CABS.
Children and Young Peoples Services,Head of Education and Skills,Third Party Payments 4THIRD,440999,Other third party payments E440,01/06/2018,3445006-5857,"1,157.36",FANE LTD.
Regeneration and Local Services,Transport and Contracted Services,Third Party Payments 4THIRD,430106,Rendered by Private Contractors,01/06/2018,3445007-PS-APRIL18,"3,989.70",FERRYHILL VILLAGE TRAVEL.
Children and Young Peoples Services,Head of Education and Skills,Transport,230007,Contract Hire,01/06/2018,3445016-3-2066,"1,080.00",G ANGHEL T/A A TAXI.
Children and Young Peoples Services,Head of Education and Skills,Transport,230007,Contract Hire,01/06/2018,3445017-20341-3029,"2,592.00",GARNETTS LTD (COACHES).
Children and Young Peoples Services,Head of Education and Skills,Transport,230003,Contract Hire,01/06/2018,3445017-20341-3020,"2,610.00",GARNETTS LTD (COACHES).
Children and Young Peoples Services,Head of Education and Skills,Transport,230003,Contract Hire,01/06/2018,3445017-20341-3024,"2,502.00",GARNETTS LTD (COACHES).
Children and Young Peoples Services,Head of Education and Skills,Transport,230003,Contract Hire,01/06/2018,3445017-20341-3026,"2,322.00",GARNETTS LTD (COACHES).
Children and Young Peoples Services,Head of Education and Skills,Transport,230003,Contract Hire,01/06/2018,3445017-20341-3027,"2,502.00",GARNETTS LTD (COACHES).
Children and Young Peoples Services,Head of Education and Skills,Transport,230003,Contract Hire,01/06/2018,3445017-20341-3028,"2,592.00",GARNETTS LTD (COACHES).
Children and Young Peoples Services,Head of Education and Skills,Transport,230007,Contract Hire,01/06/2018,3445019-4369-MAY,540.00,GAZZCABS.
Regeneration and Local Services,Culture & Sport,Supplies and Services,338047,Services,01/06/2018,3445028-FBC728,600.00,GROWLING CLOWN.
Children and Young Peoples Services,Head of Education and Skills,Transport,230007,Contract Hire,01/06/2018,3445031-13625,555.00,HODGSONS COACH OPERATORS LTD.
Regeneration and Local Services,Economic Development and Housing,Construction work A908,908105,Construction work,01/06/2018,3445034-7080667154,"1,244.58",HONEYWELL NOVAR SYSTEMS LTD.
Children and Young Peoples Services,Head of Education and Skills,Transport,230008,Contract Hire,01/06/2018,3445046-2762,"1,466.82",JEFF ANDERSON COACHES LTD.
Children and Young Peoples Services,Head of Education and Skills,Transport,230012,Contract Hire,01/06/2018,3445049-25/05/18F,"1,080.00",JL EBDON. T/A DIAL-A-CAB.
Children and Young Peoples Services,Head of Education and Skills,Transport,230008,Contract Hire,01/06/2018,3445049-25/05/18A,"2,484.00",JL EBDON. T/A DIAL-A-CAB.
Children and Young Peoples Services,Head of Education and Skills,Transport,230008,Contract Hire,01/06/2018,3445049-25/05/18B,"1,224.00",JL EBDON. T/A DIAL-A-CAB.
Children and Young Peoples Services,Head of Education and Skills,Transport,230008,Contract Hire,01/06/2018,3445049-25/05/18C,"1,080.00",JL EBDON. T/A DIAL-A-CAB.
Children and Young Peoples Services,Head of Education and Skills,Transport,230008,Contract Hire,01/06/2018,3445049-25/05/18D,"1,764.00",JL EBDON. T/A DIAL-A-CAB.
Children and Young Peoples Services,Head of Education and Skills,Transport,230008,Contract Hire,01/06/2018,3445049-25/05/18E,"1,584.00",JL EBDON. T/A DIAL-A-CAB.
Children and Young Peoples Services,Head of Education and Skills,Transport,230008,Contract Hire,01/06/2018,3445052-N012-MAY,"1,896.00",K & R TAXIS (STANLEY).
Children and Young Peoples Services,Head of Education and Skills,Transport,230008,Contract Hire,01/06/2018,3445052-N071-MAY,"2,232.00",K & R TAXIS (STANLEY).
Children and Young Peoples Services,Head of Education and Skills,Transport,230007,Contract Hire,01/06/2018,3445058-3792,"1,171.30",LINCAB TAXIS.
Children and Young Peoples Services,Head of Childrens Social Care,Transport,230005,Contract Hire,01/06/2018,3445062-3807,"1,020.00",LOCAL TRANSPORT LTD.
Children and Young Peoples Services,Head of Childrens Social Care,Transport,230005,Contract Hire,01/06/2018,3445062-3855,"1,770.00",LOCAL TRANSPORT LTD.
Children and Young Peoples Services,Head of Childrens Social Care,Transport,230005,Contract Hire,01/06/2018,3445062-3857,912.00,LOCAL TRANSPORT LTD.
Children and Young Peoples Services,Head of Childrens Social Care,Transport,230005,Contract Hire,01/06/2018,3445062-3859,600.00,LOCAL TRANSPORT LTD.
Children and Young Peoples Services,Head of Childrens Social Care,Transport,230005,Contract Hire,01/06/2018,3445062-3861,914.00,LOCAL TRANSPORT LTD.
Children and Young Peoples Services,Head of Education and Skills,Transport,230006,Contract Hire,01/06/2018,3445070-708.,"1,050.00",MACS TAXIS LTD.
Children and Young Peoples Services,Head of Education and Skills,Transport,230006,Contract Hire,01/06/2018,3445070-727.,980.00,MACS TAXIS LTD.
Regeneration and Local Services,Economic Development and Housing,Transport,235073,Public Transport,01/06/2018,3445070-761.,575.50,MACS TAXIS LTD.
Children and Young Peoples Services,Head of Education and Skills,Transport,230007,Contract Hire,01/06/2018,3445073-INV05/1810,"1,008.00",MARK & JOHN CHISHOLM T/A (CHEVRON).
Dedicated Schools Grant,DSG High Needs Block,Transport,230010,Contract Hire,01/06/2018,3445073-INV05/1801,"1,292.00",MARK & JOHN CHISHOLM T/A (CHEVRON).
Dedicated Schools Grant,DSG High Needs Block,Transport,230010,Contract Hire,01/06/2018,3445073-INV05/1802,"1,258.00",MARK & JOHN CHISHOLM T/A (CHEVRON).
Children and Young Peoples Services,Head of Education and Skills,Transport,230008,Contract Hire,01/06/2018,3445073-INV05/18/08,"1,188.00",MARK & JOHN CHISHOLM T/A (CHEVRON).
Children and Young Peoples Services,Head of Education and Skills,Transport,230008,Contract Hire,01/06/2018,3445073-INV05/1804,"2,484.00",MARK & JOHN CHISHOLM T/A (CHEVRON).
Children and Young Peoples Services,Head of Education and Skills,Transport,230008,Contract Hire,01/06/2018,3445073-INV05/1809,"1,872.00",MARK & JOHN CHISHOLM T/A (CHEVRON).
Regeneration and Local Services,Technical Services,Supplies and Services,304221,Equipment and Materials,01/06/2018,3445074-Z000027900,"4,964.02",MARSHALLS MONO LTD.
Regeneration and Local Services,Technical Services,Supplies and Services,304221,Equipment and Materials,01/06/2018,3445074-Z000028652,"1,752.80",MARSHALLS MONO LTD.
Regeneration and Local Services,Technical Services,Supplies and Services,304221,Equipment and Materials,01/06/2018,3445074-Z000028709,"1,791.65",MARSHALLS MONO LTD.
Regeneration and Local Services,Technical Services,Supplies and Services,304221,Equipment and Materials,01/06/2018,3445074-Z000045488,"2,118.00",MARSHALLS MONO LTD.
Regeneration and Local Services,Technical Services,Supplies and Services,304221,Equipment and Materials,01/06/2018,3445074-Z000045493,"1,052.00",MARSHALLS MONO LTD.
Children and Young Peoples Services,Head of Education and Skills,Transport,230006,Contract Hire,01/06/2018,3445078-144,900.00,MICHAEL COBB T/A HAIL TAXIS.
Regeneration and Local Services,Culture & Sport,Supplies and Services,324001,Provisions E324,01/06/2018,3445084-904536033,"1,078.91",MOLSON COORS BREWING COMPANY (UK) LTD.
Children and Young Peoples Services,Head of Education and Skills,Transport,230007,Contract Hire,01/06/2018,3445087-85,918.00,MR JOHN ALLINSON T/A AALPHA TAXIS.
Children and Young Peoples Services,Head of Education and Skills,Transport,230006,Contract Hire,01/06/2018,3445087-86,672.00,MR JOHN ALLINSON T/A AALPHA TAXIS.
Dedicated Schools Grant,DSG High Needs Block,Transport,230010,Contract Hire,01/06/2018,3445088-0037,"1,920.00",MR PM MULLEN T/A CATHEDRAL TAXIS.
Regeneration and Local Services,Direct Services,Third Party Payments 4THIRD,430100,Rendered by Private Contractors,01/06/2018,3445092-DCC037,"2,200.00",MR WILLIAM MAGUIRE T/A VALLUM LIFTS.
Children and Young Peoples Services,Head of Education and Skills,Third Party Payments 4THIRD,440999,Other third party payments E440,01/06/2018,3445104-3114,823.20,NORTH EAST DANCE CIC.
Children and Young Peoples Services,Head of Education and Skills,Third Party Payments 4THIRD,440999,Other third party payments E440,01/06/2018,3445104-3115,"1,447.20",NORTH EAST DANCE CIC.
Resources,Finance & Transactional Services,Supplies and Services,338064,Services,01/06/2018,3445105-20491,"25,618.00",NORTH EAST REGIONAL EMPLOYERS ORGANISATION (NEREO).
Regeneration and Local Services,Technical Services,Third Party Payments 4THIRD,430100,Rendered by Private Contractors,01/06/2018,3445109-DI20289316,"2,456.81",NORTHERN POWERGRID (NORTHEAST) LTD.
Regeneration and Local Services,Direct Services,Transport,215005,Running Costs of Vehicles,01/06/2018,3445112-328474,"3,176.24",OIL NRG LTD.
Regeneration and Local Services,Direct Services,Transport,215022,Running Costs of Vehicles,01/06/2018,3445112-328473,"1,769.73",OIL NRG LTD.
Regeneration and Local Services,Direct Services,Transport,215022,Running Costs of Vehicles,01/06/2018,3445112-328913,"2,914.42",OIL NRG LTD.
Children and Young Peoples Services,Head of Education and Skills,Transport,230008,Contract Hire,01/06/2018,3445123-SC-316,"1,440.00",PAUL BURRELL T/A PAUL BURRELL TAXIS.
Transformation and Partnerships,Partnerships & Community Engagement Div.,Supplies and Services,384086,Miscellaneous Expenses,01/06/2018,3445128-VOUCHER17NB-CHES025,"2,856.00",PELTON COMMUNITY ASSOCIATION.
Children and Young Peoples Services,Head of Education and Skills,Supplies and Services,384199,Miscellaneous Expenses,01/06/2018,3445130-1585,961.09,PENSHAW VIEW TRAINING.
Dedicated Schools Grant,DSG High Needs Block,Third Party Payments 4THIRD,440080,Other third party payments E440,01/06/2018,3445137-SIN037078,"21,815.00",PORTLAND COLLEGE.
Regeneration and Local Services,Culture & Sport,Supplies and Services,338047,Services,01/06/2018,3445141-10990,"6,500.00",PURE RECORDS (YORKSHIRE) LTD.
Regeneration and Local Services,Transport and Contracted Services,Third Party Payments 4THIRD,430106,Rendered by Private Contractors,01/06/2018,3445142-2068,"4,001.60",R COOPER T/A DC TAXIS.
Children and Young Peoples Services,Head of Childrens Social Care,Transport,230005,Contract Hire,01/06/2018,3445171-74165,748.00,SHOTTON PRIVATE HIRE.
Regeneration and Local Services,Direct Services,Supplies and Services,304221,Equipment and Materials,01/06/2018,3445173-00589731,916.80,SIG TRADING LTD T/A CARPET & FLOORING LTD.*
Regeneration and Local Services,Culture & Sport,Supplies and Services,338047,Services,01/06/2018,3445179-1211443-1,"3,930.42",SONY PICTURES RELEASING.
Regeneration and Local Services,Culture & Sport,Supplies and Services,338047,Services,01/06/2018,3445179-1211446-1-2-3,"3,375.21",SONY PICTURES RELEASING.
Regeneration and Local Services,Spatial Policy Planning Assets & Environment,Supplies and Services,384700,Miscellaneous Expenses,01/06/2018,3445184-BURSARYMAY2018,783.00,STEVEN LIPSCOMBE.
Children and Young Peoples Services,Head of Childrens Social Care,Transport,230005,Contract Hire,01/06/2018,3445185-180325,"2,425.00",STEVEN PRATT T/A PTL TAXIS DURHAM.
Children and Young Peoples Services,Head of Childrens Social Care,Transport,230005,Contract Hire,01/06/2018,3445185-180450,"1,272.50",STEVEN PRATT T/A PTL TAXIS DURHAM.
Regeneration and Local Services,Culture & Sport,Supplies and Services,342051,Computers and Communications,01/06/2018,3445192-283,"1,500.00",TEAMKINETIC LTD.
Children and Young Peoples Services,Head of Education and Skills,Transport,230008,Contract Hire,01/06/2018,3445203-11,"1,440.00",THOMAS GLEN.
Regeneration and Local Services,Spatial Policy Planning Assets & Environment,Supplies and Services,312009,Newspapers books and periodicals E312,01/06/2018,3445205-6800559491,"1,385.00",THOMSON REUTERS (PROFESSIONAL) UK LTD.
Adult and Health Services,Head of Adults,Transport,230005,Contract Hire,01/06/2018,3445206-0001973,980.00,TONY RIDLEY T/A COLORS TAXIS LTD.
Regeneration and Local Services,Culture & Sport,Supplies and Services,338047,Services,01/06/2018,3445209-00032891,637.54,TRAFALGAR RELEASING LTD.
Adult and Health Services,Head of Adults,Supplies and Services,338099,Services,01/06/2018,3445212-02/05/2018HALLHIRE,"4,800.75",TUDHOE COMMUNITY CENTRE.
Regeneration and Local Services,Direct Services,Premises,106082,Centrally Controlled Rep and Maint,01/06/2018,3445219-2335,590.00,VENTILATION HYGIENE SPECIALISTS (VHS) LTD.
Children and Young Peoples Services,Head of Education and Skills,Transport,230007,Contract Hire,01/06/2018,3445224-17-3334,864.00,WALTONS TAXIS.
Children and Young Peoples Services,Head of Education and Skills,Transport,230007,Contract Hire,01/06/2018,3445224-18-3077,864.00,WALTONS TAXIS.
Regeneration and Local Services,Direct Services,Premises,108099,Service Repairs and Maintenance,04/06/2018,3445254-1426,"2,740.00",AA GARDENING & LANDSCAPING SERVICES.
Regeneration and Local Services,Culture & Sport,Supplies and Services,312013,Newspapers books and periodicals E312,04/06/2018,3445258-5733716,521.10,ASKEWS & HOLTS LIBRARY SERVICES LTD.
Regeneration and Local Services,Culture & Sport,Supplies and Services,312013,Newspapers books and periodicals E312,04/06/2018,3445258-5733798,593.74,ASKEWS & HOLTS LIBRARY SERVICES LTD.
Regeneration and Local Services,Culture & Sport,Supplies and Services,312013,Newspapers books and periodicals E312,04/06/2018,3445258-5733799,611.54,ASKEWS & HOLTS LIBRARY SERVICES LTD.
Regeneration and Local Services,Culture & Sport,Supplies and Services,312017,Newspapers books and periodicals E312,04/06/2018,3445258-5739503,504.77,ASKEWS & HOLTS LIBRARY SERVICES LTD.
Regeneration and Local Services,Technical Services,Supplies and Services,338027,Services,04/06/2018,3445259-18018301,"4,719.75",ATKINS GLOBAL.
Resources,Legal & Democratic Services,Premises,155001,Insurance of Premises,04/06/2018,3445262-9208,"2,039.05",BRADLEY HALL LTD.
Adult and Health Services,Head of Adults,Supplies and Services,338367,Services,04/06/2018,3445263-49885,714.95,CARE ABILITY.
Regeneration and Local Services,Direct Services,Third Party Payments 4THIRD,430100,Rendered by Private Contractors,04/06/2018,3445264-333,"10,202.83",CEILINGS DIRECT LTD.
Children and Young Peoples Services,"Head of Early Help, Inclusion and Vulnerable Children",Employees,080025,Agency Staff,04/06/2018,3445265-03996369,547.50,CER (A DIVISION OF MONARCH EDUCATION LTD).
Regeneration and Local Services,Spatial Policy Planning Assets & Environment,Supplies and Services,338066,Services,04/06/2018,3445266-BURSARY2MAY18,555.00,CHRISTOPHER THOMAS WATT.
Regeneration and Local Services,Culture & Sport,Construction work A908,908105,Construction work,04/06/2018,3445271-8379,"1,625.00",DUNELM GEOTECHNICAL & ENVIRONMENTAL LTD.
Regeneration and Local Services,Technical Services,Supplies and Services,304221,Equipment and Materials,04/06/2018,3445272-150497,907.82,ESH CONSTRUCTION LTD FORMERLY LUMSDEN & CARROLL CONSTRUCTION LTD.
Transformation and Partnerships,Partnerships & Community Engagement Div.,Cap Exp on Grants & Other Financial Assistance (REFCUS),918004,Contributions to other bodies 918004,04/06/2018,3445273-VOUCHER18NB-4TOG001,"2,336.00",FERRYHILL COMMUNITY PARTNERSHIP CIO.
Regeneration and Local Services,Culture & Sport,Third Party Payments 4THIRD,430100,Rendered by Private Contractors,04/06/2018,3445276-NEI-HCL-05-2018-005,"15,000.00",FUTURE LEISURE IN COXHOE (FLIC).
Regeneration and Local Services,Culture & Sport,Supplies and Services,332029,Printing Stationery and Gen Off Exps,04/06/2018,3445283-13059,"4,724.12",ISAPPHIRE LTD.
Regeneration and Local Services,Direct Services,Third Party Payments 4THIRD,430100,Rendered by Private Contractors,04/06/2018,3445284-6366,"1,218.00",JAMES INGLEFORD SCAFFOLDING LTD.
Regeneration and Local Services,Direct Services,Third Party Payments 4THIRD,430100,Rendered by Private Contractors,04/06/2018,3445284-6371,777.00,JAMES INGLEFORD SCAFFOLDING LTD.
Regeneration and Local Services,Culture & Sport,Premises,106082,Centrally Controlled Rep and Maint,04/06/2018,3445286-17151,"6,774.40",JC MAINTENANCE SERVICES LTD.
Regeneration and Local Services,Technical Services,Third Party Payments 4THIRD,430100,Rendered by Private Contractors,04/06/2018,3445295-NC5/C606/BW,"6,000.00",NEDCO CONTRACTS (NE) LTD.
Transformation and Partnerships,Partnerships & Community Engagement Div.,Supplies and Services,384086,Miscellaneous Expenses,04/06/2018,3445297-VOUCHER17NB-EDUR028,"4,400.00",NORTH EAST AUTISM SOCIETY.
Regeneration and Local Services,Technical Services,Third Party Payments 4THIRD,430100,Rendered by Private Contractors,04/06/2018,3445300-DI20293318,"1,997.87",NORTHERN POWERGRID (NORTHEAST) LTD.
Regeneration and Local Services,Economic Development and Housing,Supplies and Services,304337,Equipment and Materials,04/06/2018,3445301-57202,782.60,NV BAGS & ACCESSORIES LTD.
Regeneration and Local Services,Technical Services,Third Party Payments 4THIRD,430100,Rendered by Private Contractors,04/06/2018,3445307-2800/180406,"34,837.64",RAINTON CONSTRUCTION LTD.
Regeneration and Local Services,Technical Services,Third Party Payments 4THIRD,430100,Rendered by Private Contractors,04/06/2018,3445307-2800/180432,"155,789.40",RAINTON CONSTRUCTION LTD.
Adult and Health Services,Head of Adults,Supplies and Services,304259,Equipment and Materials,04/06/2018,3445310-0318018,"8,185.25",SENSORY GURU LTD.
Regeneration and Local Services,Direct Services,Supplies and Services,304221,Equipment and Materials,04/06/2018,3445314-00589348,543.86,SIG TRADING LTD T/A CARPET & FLOORING LTD.*
Regeneration and Local Services,Direct Services,Supplies and Services,304221,Equipment and Materials,04/06/2018,3445315-SI-113,755.00,SKERNE MOBILITY LTD.
Adult and Health Services,Commissioning inc Supporting People,Supplies and Services,338089,Services,04/06/2018,3445316-INV716,"2,103.93",SOCIAL CARE INSTITUTE FOR EXCELLENCE (SCIE).
Regeneration and Local Services,Culture & Sport,Third Party Payments 4THIRD,430100,Rendered by Private Contractors,04/06/2018,3445318-NEI-HCL-05-2018-003,"7,500.00",STANLEY INDOOR BOWLS CENTRE.
Children and Young Peoples Services,"Head of Early Help, Inclusion and Vulnerable Children",Supplies and Services,338099,Services,04/06/2018,3445319-APR-MAY18,980.00,STEVEN SINCLAIR T/A SINCLAIR MECHANICAL SERVICES.
Regeneration and Local Services,Technical Services,Supplies and Services,304221,Equipment and Materials,04/06/2018,3445320-105573,"2,472.44",STONEGRAVE AGGREGATES LTD.
Children and Young Peoples Services,"Head of Early Help, Inclusion and Vulnerable Children",Employees,080025,Agency Staff,04/06/2018,3445322-2175993,"2,344.40",TEACHING PERSONNEL LTD.
Adult and Health Services,Head of Adults,Third Party Payments 4THIRD,479101,Purchase of Care,04/06/2018,3445323-4810012575,854.93,TEES ESK & WEAR VALLEYS NHS FOUNDATION TRUST.
Adult and Health Services,Head of Adults,Third Party Payments 4THIRD,479101,Purchase of Care,04/06/2018,3445323-4810012576,"1,693.00",TEES ESK & WEAR VALLEYS NHS FOUNDATION TRUST.
Adult and Health Services,Head of Adults,Third Party Payments 4THIRD,479101,Purchase of Care,04/06/2018,3445323-4810012577,"1,693.00",TEES ESK & WEAR VALLEYS NHS FOUNDATION TRUST.
Regeneration and Local Services,Technical Services,Supplies and Services,304221,Equipment and Materials,04/06/2018,3445327-185782,992.61,TYNEDALE ROADSTONE LTD.
Regeneration and Local Services,Technical Services,Supplies and Services,304221,Equipment and Materials,04/06/2018,3445327-186453,"1,462.92",TYNEDALE ROADSTONE LTD.
Regeneration and Local Services,Technical Services,Supplies and Services,304221,Equipment and Materials,04/06/2018,3445327-186479,600.44,TYNEDALE ROADSTONE LTD.
Regeneration and Local Services,Technical Services,Supplies and Services,304221,Equipment and Materials,04/06/2018,3445327-186706,"1,121.20",TYNEDALE ROADSTONE LTD.
Regeneration and Local Services,Technical Services,Supplies and Services,304221,Equipment and Materials,04/06/2018,3445327-186708,"1,136.24",TYNEDALE ROADSTONE LTD.
Regeneration and Local Services,Technical Services,Supplies and Services,304221,Equipment and Materials,04/06/2018,3445328-21675,533.92,WARD TIMBER LTD.
Transformation and Partnerships,Partnerships & Community Engagement Div.,Cap Exp on Grants & Other Financial Assistance (REFCUS),918004,Contributions to other bodies 918004,04/06/2018,3445330-VOUCHER17NB-BASH017,"1,000.00",WITTON PARK FOOTBALL CLUB.
Regeneration and Local Services,Direct Services,Supplies and Services,304357,Equipment and Materials,05/06/2018,3445332-2668,"3,650.00",A & J GUTHRIE.
Children and Young Peoples Services,Head of Education and Skills,Transport,230006,Contract Hire,05/06/2018,3445333-HA220800,891.00,A MURRAY TRAVEL.
Children and Young Peoples Services,Head of Education and Skills,Transport,230008,Contract Hire,05/06/2018,3445333-A220798,"1,206.00",A MURRAY TRAVEL.
Children and Young Peoples Services,Head of Education and Skills,Transport,230008,Contract Hire,05/06/2018,3445333-EA220794,"1,242.00",A MURRAY TRAVEL.
Children and Young Peoples Services,Head of Education and Skills,Transport,230008,Contract Hire,05/06/2018,3445333-GC008,891.00,A MURRAY TRAVEL.
Adult and Health Services,Head of Adults,Transport,230005,Contract Hire,05/06/2018,3445336-0009,"1,330.00",AIRPORT TAXIS 4U.
Regeneration and Local Services,Direct Services,Construction work A908,908105,Construction work,05/06/2018,3445337-162092,670.00,ALBANY OFFICE EQUIPMENT (WHOLESALE) LTD.
Regeneration and Local Services,Technical Services,Supplies and Services,304358,Equipment and Materials,05/06/2018,3445340-29503,"2,587.50",AQUAJET DRAIN CLEANING LTD.
Regeneration and Local Services,Technical Services,Supplies and Services,304358,Equipment and Materials,05/06/2018,3445340-29504,"2,587.50",AQUAJET DRAIN CLEANING LTD.
Regeneration and Local Services,Technical Services,Supplies and Services,304358,Equipment and Materials,05/06/2018,3445340-29815,"2,587.50",AQUAJET DRAIN CLEANING LTD.
Regeneration and Local Services,Technical Services,Supplies and Services,304358,Equipment and Materials,05/06/2018,3445340-29862,"2,587.50",AQUAJET DRAIN CLEANING LTD.
Regeneration and Local Services,Technical Services,Supplies and Services,304358,Equipment and Materials,05/06/2018,3445340-29863,"2,587.50",AQUAJET DRAIN CLEANING LTD.
Regeneration and Local Services,Technical Services,Supplies and Services,304358,Equipment and Materials,05/06/2018,3445340-29959,"2,070.00",AQUAJET DRAIN CLEANING LTD.
Regeneration and Local Services,Technical Services,Third Party Payments 4THIRD,430128,Rendered by Private Contractors,05/06/2018,3445342-300418,"1,610.00",AST LEE & SON.
Regeneration and Local Services,Technical Services,Third Party Payments 4THIRD,430128,Rendered by Private Contractors,05/06/2018,3445342-30042018,"2,856.00",AST LEE & SON.
Regeneration and Local Services,Technical Services,Third Party Payments 4THIRD,430128,Rendered by Private Contractors,05/06/2018,3445342-30418,"2,635.00",AST LEE & SON.
Children and Young Peoples Services,Head of Education and Skills,Transport,230008,Contract Hire,05/06/2018,3445343-650,"1,602.00",AT TAXIS LTD.
Children and Young Peoples Services,Head of Education and Skills,Transport,230008,Contract Hire,05/06/2018,3445343-652,"1,764.00",AT TAXIS LTD.
Children and Young Peoples Services,Head of Education and Skills,Transport,230008,Contract Hire,05/06/2018,3445343-653,"1,962.00",AT TAXIS LTD.
Regeneration and Local Services,Technical Services,Supplies and Services,338027,Services,05/06/2018,3445344-18019023A,"4,719.75",ATKINS GLOBAL.
Children and Young Peoples Services,Head of Education and Skills,Transport,230007,Contract Hire,05/06/2018,3445345-03761,"1,236.20",ATLAS TAXIS CONSETT.
Children and Young Peoples Services,Head of Education and Skills,Transport,230009,Contract Hire,05/06/2018,3445345-03771,874.60,ATLAS TAXIS CONSETT.
Dedicated Schools Grant,DSG High Needs Block,Transport,230011,Contract Hire,05/06/2018,3445345-03768,669.80,ATLAS TAXIS CONSETT.
Children and Young Peoples Services,Head of Education and Skills,Transport,230006,Contract Hire,05/06/2018,3445346-9-F686,"1,072.00",B&C YELLOWCAB TAXI`S.
Regeneration and Local Services,Spatial Policy Planning Assets & Environment,Supplies and Services,384999,Miscellaneous Expenses,05/06/2018,3445347-RED-06-2018-001,"1,000.00",BARNARD CASTLE MEET LTD.
Adult and Health Services,Commissioning inc Supporting People,Third Party Payments 4THIRD,442002,Supporting People E442,05/06/2018,3445350-1967755,"16,448.04",BID SERVICES WITH DEAF PEOPLE.
Dedicated Schools Grant,DSG High Needs Block,Transport,230010,Contract Hire,05/06/2018,3445351-70,"1,260.00",BOBS TAXIS.
Children and Young Peoples Services,Head of Education and Skills,Transport,230006,Contract Hire,05/06/2018,3445353-W153020,952.00,C & R TAXIS.
Children and Young Peoples Services,Head of Education and Skills,Transport,230008,Contract Hire,05/06/2018,3445353-A02809,"1,170.00",C & R TAXIS.
Children and Young Peoples Services,Head of Education and Skills,Transport,230008,Contract Hire,05/06/2018,3445353-S02609,"1,200.00",C & R TAXIS.
Children and Young Peoples Services,Head of Education and Skills,Transport,230008,Contract Hire,05/06/2018,3445353-W07809,"2,160.00",C & R TAXIS.
Regeneration and Local Services,Direct Services,Stock A926,926004,Stock,05/06/2018,3445357-224746,"1,306.12",CARRS BILLINGTON AGRICULTURE.
Children and Young Peoples Services,Head of Childrens Social Care,Supplies and Services,338044,Services,05/06/2018,3445358-133762,608.96,CARTER BROWN THE EXPERT SERVICE LTD.*
Regeneration and Local Services,Direct Services,Third Party Payments 4THIRD,430100,Rendered by Private Contractors,05/06/2018,3445360-335,"2,919.91",CEILINGS DIRECT LTD.
Regeneration and Local Services,Technical Services,Supplies and Services,304358,Equipment and Materials,05/06/2018,3445361-1658,"8,585.97",CG SIMPSON & SON.
Regeneration and Local Services,Direct Services,Stock A926,926004,Stock,05/06/2018,3445364-44337,519.90,COM TRUCK LTD.
Children and Young Peoples Services,"Head of Early Help, Inclusion and Vulnerable Children",Supplies and Services,324500,Provisions E324,05/06/2018,3445367-18465,"15,128.05",CREATIVE MANAGEMENT SERVICES LTD.
Adult and Health Services,Commissioning inc Supporting People,Third Party Payments 4THIRD,442002,Supporting People E442,05/06/2018,3445368-1967735,"19,868.48",CREATIVE SUPPORT LTD.
Children and Young Peoples Services,Head of Education and Skills,Transport,230007,Contract Hire,05/06/2018,3445369-107802,591.84,CROFT BUSINESS SERVICES (UK) LTD T/A CROFT TAXIS.
Children and Young Peoples Services,Head of Education and Skills,Transport,230008,Contract Hire,05/06/2018,3445369-107808,"2,494.26",CROFT BUSINESS SERVICES (UK) LTD T/A CROFT TAXIS.
Children and Young Peoples Services,Head of Education and Skills,Transport,230008,Contract Hire,05/06/2018,3445369-107809,"1,735.74",CROFT BUSINESS SERVICES (UK) LTD T/A CROFT TAXIS.
Children and Young Peoples Services,Head of Education and Skills,Transport,230008,Contract Hire,05/06/2018,3445369-107819,"1,589.58",CROFT BUSINESS SERVICES (UK) LTD T/A CROFT TAXIS.
Adult and Health Services,Commissioning inc Supporting People,Supplies and Services,338089,Services,05/06/2018,3445372-3044617,"1,850.00",DAC BEACHCROFT LLP.
Children and Young Peoples Services,Head of Education and Skills,Transport,230008,Contract Hire,05/06/2018,3445376-3294,"1,530.00",DAVES MINIBUSES.
Children and Young Peoples Services,Head of Education and Skills,Transport,230008,Contract Hire,05/06/2018,3445377-A66,"1,710.00",DAVES TAXIS.
Children and Young Peoples Services,Head of Education and Skills,Transport,230008,Contract Hire,05/06/2018,3445377-A67,"1,170.00",DAVES TAXIS.
Children and Young Peoples Services,Head of Education and Skills,Transport,230008,Contract Hire,05/06/2018,3445377-A68,770.00,DAVES TAXIS.
Children and Young Peoples Services,Head of Education and Skills,Transport,230008,Contract Hire,05/06/2018,3445377-A69,630.00,DAVES TAXIS.
Regeneration and Local Services,Direct Services,Third Party Payments 4THIRD,430101,Rendered by Private Contractors,05/06/2018,3445385-IV977564,771.95,DIRECT TYRE MANAGEMENT (DTM).
Regeneration and Local Services,Direct Services,Third Party Payments 4THIRD,430101,Rendered by Private Contractors,05/06/2018,3445385-IV990004,"1,384.32",DIRECT TYRE MANAGEMENT (DTM).
Adult and Health Services,Commissioning inc Supporting People,Third Party Payments 4THIRD,441001,Supporting People E441,05/06/2018,3445387-1967782,"20,819.76",DURHAM ACTION ON SINGLE HOUSING.
Adult and Health Services,Commissioning inc Supporting People,Third Party Payments 4THIRD,443001,Supporting People E443,05/06/2018,3445387-1967785,"4,427.76",DURHAM ACTION ON SINGLE HOUSING.
Regeneration and Local Services,Culture & Sport,Supplies and Services,338047,Services,05/06/2018,3445388-TICKETSBACHS,"1,121.40",DURHAM CHORAL SOCIETY.
Adult and Health Services,Commissioning inc Supporting People,Third Party Payments 4THIRD,441001,Supporting People E441,05/06/2018,3445390-1967752,"5,483.40",EAST DURHAM COMMUNITY INITIATIVES LTD.
Regeneration and Local Services,Direct Services,Supplies and Services,304221,Equipment and Materials,05/06/2018,3445392-059-223842,540.00,EDMUNDSON ELECTRICAL LTD.
Children and Young Peoples Services,Head of Education and Skills,Transport,230007,Contract Hire,05/06/2018,3445394-5124/0518,711.00,ELLIOTTS OF TRIMDON.
Children and Young Peoples Services,Head of Education and Skills,Transport,230007,Contract Hire,05/06/2018,3445394-5182/0518,754.20,ELLIOTTS OF TRIMDON.
Children and Young Peoples Services,Head of Education and Skills,Transport,230016,Contract Hire,05/06/2018,3445394-E122/0518,"1,062.00",ELLIOTTS OF TRIMDON.
Children and Young Peoples Services,Head of Education and Skills,Transport,230008,Contract Hire,05/06/2018,3445394-E014/0518,"1,855.80",ELLIOTTS OF TRIMDON.
Regeneration and Local Services,Direct Services,Transport,230005,Contract Hire,05/06/2018,3445395-8144810,"1,066.00",ENTERPRISE FLEX-E-RENT T/A BURNT TREE GROUP LTD.
Regeneration and Local Services,Direct Services,Transport,230005,Contract Hire,05/06/2018,3445396-650025178827,756.00,ENTERPRISE RENT-A-CAR UK LTD T/A ENTERPRISE FLEX-E-RENT.
Regeneration and Local Services,Technical Services,Third Party Payments 4THIRD,430128,Rendered by Private Contractors,05/06/2018,3445397-220,"4,234.75",F WARD FARM.
Regeneration and Local Services,Technical Services,Third Party Payments 4THIRD,430128,Rendered by Private Contractors,05/06/2018,3445397-223,769.25,F WARD FARM.
Regeneration and Local Services,Technical Services,Third Party Payments 4THIRD,430128,Rendered by Private Contractors,05/06/2018,3445397-229,650.25,F WARD FARM.
Regeneration and Local Services,Technical Services,Third Party Payments 4THIRD,430128,Rendered by Private Contractors,05/06/2018,3445397-230,594.50,F WARD FARM.
Regeneration and Local Services,Technical Services,Third Party Payments 4THIRD,430128,Rendered by Private Contractors,05/06/2018,3445397-231,625.00,F WARD FARM.
Regeneration and Local Services,Technical Services,Third Party Payments 4THIRD,430128,Rendered by Private Contractors,05/06/2018,3445397-234,632.50,F WARD FARM.
Regeneration and Local Services,Technical Services,Third Party Payments 4THIRD,430128,Rendered by Private Contractors,05/06/2018,3445397-235,798.00,F WARD FARM.
Regeneration and Local Services,Technical Services,Third Party Payments 4THIRD,430128,Rendered by Private Contractors,05/06/2018,3445397-236,798.00,F WARD FARM.
Regeneration and Local Services,Transport and Contracted Services,Third Party Payments 4THIRD,430106,Rendered by Private Contractors,05/06/2018,3445398-PUBLICSERVICEAPRIL/MAY18,"5,411.10",FERRYHILL VILLAGE TRAVEL.
Adult and Health Services,Commissioning inc Supporting People,Third Party Payments 4THIRD,442002,Supporting People E442,05/06/2018,3445400-1967781,"19,776.44",FOUNDATION.
Adult and Health Services,Commissioning inc Supporting People,Third Party Payments 4THIRD,442002,Supporting People E442,05/06/2018,3445400-1967806,"2,863.28",FOUNDATION.
Adult and Health Services,Commissioning inc Supporting People,Third Party Payments 4THIRD,442002,Supporting People E442,05/06/2018,3445401-1967805,"32,194.64",FOUR HOUSING GROUP & CARE & REPAIR HANDYPERSON SERVICE.
Children and Young Peoples Services,Head of Education and Skills,Transport,230008,Contract Hire,05/06/2018,3445402-1805,"1,620.00",FRANK ATKINSON T/A FJ MINIBUS TRAVEL.
Children and Young Peoples Services,Head of Education and Skills,Transport,230008,Contract Hire,05/06/2018,3445404-M009,"1,575.00",GARY MCGOWAN T/A MACKA`S PRIVATE HIRE.
Children and Young Peoples Services,Head of Childrens Social Care,Employees,080025,Agency Staff,05/06/2018,3445380-1057441,"135,004.79",GEOMETRIC RESULTS INTERNATIONAL.
Children and Young Peoples Services,Head of Education and Skills,Transport,230007,Contract Hire,05/06/2018,3445412-19-4335,544.00,HAMLET TAXIS.
Children and Young Peoples Services,Head of Education and Skills,Transport,230008,Contract Hire,05/06/2018,3445412-20,540.00,HAMLET TAXIS.
Adult and Health Services,Commissioning inc Supporting People,Third Party Payments 4THIRD,442002,Supporting People E442,05/06/2018,3445413-1967791,"3,297.48",HANOVER HOUSING ASSOCIATION.
Adult and Health Services,Commissioning inc Supporting People,Third Party Payments 4THIRD,441001,Supporting People E441,05/06/2018,3445414-1967736,"18,082.80",HARBOUR SUPPORT SERVICES.
Regeneration and Local Services,Technical Services,Supplies and Services,338027,Services,05/06/2018,3445415-160017334,"8,704.75",HARVARD ENGINEERING LTD.
Transformation and Partnerships,Partnerships & Community Engagement Div.,Cap Exp on Grants & Other Financial Assistance (REFCUS),918004,Contributions to other bodies 918004,05/06/2018,3445416-VOUCHER17NB-BASH023,"14,000.00",HEALTH EXPRESS.
Transformation and Partnerships,Partnerships & Community Engagement Div.,Supplies and Services,384071,Miscellaneous Expenses,05/06/2018,3445417-EX14029,"1,475.00",HEMMING GROUP LTD.
Regeneration and Local Services,Technical Services,Supplies and Services,304358,Equipment and Materials,05/06/2018,3445419-56335,"1,800.00",HF COLTON PLANT HIRE LTD.*
Children and Young Peoples Services,Head of Education and Skills,Transport,230007,Contract Hire,05/06/2018,3445421-13589,"1,701.00",HODGSONS COACH OPERATORS LTD.
Children and Young Peoples Services,Head of Education and Skills,Transport,230007,Contract Hire,05/06/2018,3445421-13591,"1,512.00",HODGSONS COACH OPERATORS LTD.
Children and Young Peoples Services,Head of Education and Skills,Transport,230007,Contract Hire,05/06/2018,3445421-13592,"1,431.00",HODGSONS COACH OPERATORS LTD.
Children and Young Peoples Services,Head of Education and Skills,Transport,230007,Contract Hire,05/06/2018,3445421-13593,"1,980.00",HODGSONS COACH OPERATORS LTD.
Children and Young Peoples Services,Head of Education and Skills,Transport,230007,Contract Hire,05/06/2018,3445421-13594,"2,574.00",HODGSONS COACH OPERATORS LTD.
Children and Young Peoples Services,Head of Education and Skills,Transport,230007,Contract Hire,05/06/2018,3445421-13595,"2,690.10",HODGSONS COACH OPERATORS LTD.
Children and Young Peoples Services,Head of Education and Skills,Transport,230007,Contract Hire,05/06/2018,3445421-13596,"2,646.00",HODGSONS COACH OPERATORS LTD.
Regeneration and Local Services,Economic Development and Housing,Supplies and Services,384700,Miscellaneous Expenses,05/06/2018,3445424-RED-06-2018-005,500.00,HORSETHINKING CIC.
Adult and Health Services,Commissioning inc Supporting People,Third Party Payments 4THIRD,442002,Supporting People E442,05/06/2018,3445386-1967734,"5,668.48",HUMANKIND CHARITY (FORMERLY DISC LTD).
Adult and Health Services,Commissioning inc Supporting People,Third Party Payments 4THIRD,442002,Supporting People E442,05/06/2018,3445386-1967779,"27,885.68",HUMANKIND CHARITY (FORMERLY DISC LTD).
Regeneration and Local Services,Technical Services,Third Party Payments 4THIRD,430127,Rendered by Private Contractors,05/06/2018,3445428-2479,"1,142.50",IAN C LIDDLE.
Regeneration and Local Services,Direct Services,Third Party Payments 4THIRD,430100,Rendered by Private Contractors,05/06/2018,3445428-2440,"4,595.63",IAN C LIDDLE.
Dedicated Schools Grant,DSG High Needs Block,Transport,230010,Contract Hire,05/06/2018,3445429-009,"1,980.00",IAN SOULSBY.
Regeneration and Local Services,Technical Services,Third Party Payments 4THIRD,430128,Rendered by Private Contractors,05/06/2018,3445430-11,"3,000.00",IAN WILSON.
Regeneration and Local Services,Technical Services,Third Party Payments 4THIRD,430128,Rendered by Private Contractors,05/06/2018,3445430-2,"2,260.00",IAN WILSON.
Regeneration and Local Services,Technical Services,Third Party Payments 4THIRD,430128,Rendered by Private Contractors,05/06/2018,3445430-3,"5,680.00",IAN WILSON.
Regeneration and Local Services,Technical Services,Third Party Payments 4THIRD,430128,Rendered by Private Contractors,05/06/2018,3445430-4,"4,860.00",IAN WILSON.
Regeneration and Local Services,Technical Services,Third Party Payments 4THIRD,430128,Rendered by Private Contractors,05/06/2018,3445430-5,"5,580.00",IAN WILSON.
Regeneration and Local Services,Technical Services,Third Party Payments 4THIRD,430128,Rendered by Private Contractors,05/06/2018,3445430-6,"2,860.00",IAN WILSON.
Regeneration and Local Services,Technical Services,Third Party Payments 4THIRD,430128,Rendered by Private Contractors,05/06/2018,3445430-7,"1,194.00",IAN WILSON.
Resources,Digital and Customer Services,Supplies and Services,342051,Computers and Communications,05/06/2018,3445431-IK25782,"3,800.00",IKEN BUSINESS LTD.
Regeneration and Local Services,Technical Services,Third Party Payments 4THIRD,430127,Rendered by Private Contractors,05/06/2018,3445434-5305507,"1,177.00",JA GILSON (AGRICULTURAL CONTRACTORS) LTD.
Regeneration and Local Services,Technical Services,Supplies and Services,304221,Equipment and Materials,05/06/2018,3445435-00145982,710.24,JAMES A JOBLING & CO LTD T/A JOBLING PURSER LTD.
Children and Young Peoples Services,Head of Education and Skills,Transport,230008,Contract Hire,05/06/2018,3445436-2763,"1,394.82",JEFF ANDERSON COACHES LTD.
Regeneration and Local Services,Transport and Contracted Services,Third Party Payments 4THIRD,430106,Rendered by Private Contractors,05/06/2018,3445440-DCC5/18,"3,203.34",JOHN JAMES BRUNSKILL T/A JSB TRAVEL LTD.
Regeneration and Local Services,Technical Services,Supplies and Services,304358,Equipment and Materials,05/06/2018,3445441-28196,"2,072.00",JOHN R BUTTERFIELD LTD.
Regeneration and Local Services,Technical Services,Supplies and Services,304358,Equipment and Materials,05/06/2018,3445441-28199,"1,399.50",JOHN R BUTTERFIELD LTD.
Regeneration and Local Services,Direct Services,Supplies and Services,304358,Equipment and Materials,05/06/2018,3445442-0000081597,671.00,JOHN WADE (HAULAGE) LTD.
Children and Young Peoples Services,Head of Education and Skills,Transport,230009,Contract Hire,05/06/2018,3445443-78,630.00,JOHN WARE T/A J & K TAXIS.
Regeneration and Local Services,Technical Services,Supplies and Services,304221,Equipment and Materials,05/06/2018,3445445-STI478610,724.17,JT DOVE LTD.
Children and Young Peoples Services,Head of Education and Skills,Transport,230008,Contract Hire,05/06/2018,3445449-010518,"2,160.00",KEVIN EDMUNDSON.
Regeneration and Local Services,Technical Services,Supplies and Services,304358,Equipment and Materials,05/06/2018,3445450-2192,884.00,KEVIN SNOWDON GROUNDWORKS LTD.
Children and Young Peoples Services,Head of Education and Skills,Transport,230008,Contract Hire,05/06/2018,3445453-1160,"1,260.00",LD TAXIS.
Regeneration and Local Services,Direct Services,Transport,230005,Contract Hire,05/06/2018,3445454-4463028,"1,800.00",LEEDS COMMERCIAL LTD.
Children and Young Peoples Services,Head of Education and Skills,Transport,230007,Contract Hire,05/06/2018,3445456-3793,"1,071.00",LINCAB TAXIS.
Children and Young Peoples Services,Head of Education and Skills,Transport,230007,Contract Hire,05/06/2018,3445456-3798,544.00,LINCAB TAXIS.
Children and Young Peoples Services,Head of Education and Skills,Transport,230006,Contract Hire,05/06/2018,3445456-3791,"1,765.80",LINCAB TAXIS.
Resources,Finance & Transactional Services,Supplies and Services,338017,Services,05/06/2018,3445458-253089078,616.60,LLOYDS BANK PLC.
Regeneration and Local Services,Direct Services,Third Party Payments 4THIRD,430100,Rendered by Private Contractors,05/06/2018,3445460-148157,"1,439.88",LONDONDERRY GARAGE (S.E) LTD.
Regeneration and Local Services,Direct Services,Transport,210057,Repair and Maintenance of Vehicles,05/06/2018,3445459-147667,510.34,LONDONDERRY GARAGE (S.E) LTD.
Regeneration and Local Services,Direct Services,Transport,210057,Repair and Maintenance of Vehicles,05/06/2018,3445460-147717,582.89,LONDONDERRY GARAGE (S.E) LTD.
Children and Young Peoples Services,Head of Education and Skills,Transport,230008,Contract Hire,05/06/2018,3445461-33,"1,620.00",LORRAINES TAXIS.
Regeneration and Local Services,Technical Services,Supplies and Services,304358,Equipment and Materials,05/06/2018,3445462-76A,"4,863.00",M & E & MR WALTON.
Regeneration and Local Services,Technical Services,Supplies and Services,304358,Equipment and Materials,05/06/2018,3445463-MS974,"2,166.75",M SPENCE SURFACING LTD.
Regeneration and Local Services,Technical Services,Supplies and Services,304358,Equipment and Materials,05/06/2018,3445463-MS994,"2,391.97",M SPENCE SURFACING LTD.
Children and Young Peoples Services,Head of Education and Skills,Transport,230004,Contract Hire,05/06/2018,3445464-5602,551.00,MAKEPEACE MOTORS.
Children and Young Peoples Services,Head of Education and Skills,Transport,230006,Contract Hire,05/06/2018,3445464-5603,892.00,MAKEPEACE MOTORS.
Children and Young Peoples Services,Head of Education and Skills,Transport,230006,Contract Hire,05/06/2018,3445464-5606,500.00,MAKEPEACE MOTORS.
Regeneration and Local Services,Technical Services,Third Party Payments 4THIRD,430127,Rendered by Private Contractors,05/06/2018,3445464-5607,825.00,MAKEPEACE MOTORS.
Children and Young Peoples Services,Head of Education and Skills,Transport,230008,Contract Hire,05/06/2018,3445467-INV05/1806,"2,272.50",MARK & JOHN CHISHOLM T/A (CHEVRON).
Children and Young Peoples Services,Head of Education and Skills,Transport,230006,Contract Hire,05/06/2018,3445468-240518,600.00,MARK MUSGROVE T/A MARKS TAXIS.
Regeneration and Local Services,Technical Services,Supplies and Services,304221,Equipment and Materials,05/06/2018,3445469-Z000022798,"8,273.76",MARSHALLS MONO LTD.
Regeneration and Local Services,Technical Services,Supplies and Services,304221,Equipment and Materials,05/06/2018,3445469-Z000022884,"4,010.60",MARSHALLS MONO LTD.
Regeneration and Local Services,Technical Services,Supplies and Services,304221,Equipment and Materials,05/06/2018,3445469-Z000043245,"8,077.48",MARSHALLS MONO LTD.
Regeneration and Local Services,Technical Services,Supplies and Services,304221,Equipment and Materials,05/06/2018,3445469-Z000045075,"4,403.16",MARSHALLS MONO LTD.
Adult and Health Services,Commissioning inc Supporting People,Third Party Payments 4THIRD,442002,Supporting People E442,05/06/2018,3445470-1967737,"5,469.72",MENTAL HEALTH MATTERS.
Children and Young Peoples Services,Head of Education and Skills,Transport,230016,Contract Hire,05/06/2018,3445471-36A,"1,593.90",MICHAEL A BODDY T/A MBS TAXIS.
Regeneration and Local Services,Technical Services,Third Party Payments 4THIRD,430100,Rendered by Private Contractors,05/06/2018,3445473-296,"1,080.00",MICHAEL KELLY.
Regeneration and Local Services,Technical Services,Third Party Payments 4THIRD,430100,Rendered by Private Contractors,05/06/2018,3445473-297,"1,740.00",MICHAEL KELLY.
Regeneration and Local Services,Direct Services,Transport,230005,Contract Hire,05/06/2018,3445477-414210,708.40,MINSTER SELF DRIVE.
Regeneration and Local Services,Direct Services,Transport,230005,Contract Hire,05/06/2018,3445478-414675,708.40,MINSTER SELF DRIVE.
Regeneration and Local Services,Direct Services,Stock A926,926004,Stock,05/06/2018,3445480-7970040759,583.00,MITCHELL POWERSYSTEMS.
Regeneration and Local Services,Direct Services,Supplies and Services,304221,Equipment and Materials,05/06/2018,3445482-N0137,"3,300.00",MOJO POLYTUNNELS LTD.
Regeneration and Local Services,Direct Services,Third Party Payments 4THIRD,430100,Rendered by Private Contractors,05/06/2018,3445482-N0136,"2,708.00",MOJO POLYTUNNELS LTD.
Adult and Health Services,Commissioning inc Supporting People,Third Party Payments 4THIRD,442002,Supporting People E442,05/06/2018,3445483-1967792,"2,620.48",MOVING ON.
Children and Young Peoples Services,Head of Education and Skills,Transport,230008,Contract Hire,05/06/2018,3445487-7A-N031,"1,368.00",MR RAYMOND RENWICK T/A RAY`S TAXIS & MINIBUSES.
Children and Young Peoples Services,Head of Education and Skills,Transport,230008,Contract Hire,05/06/2018,3445487-7B-N043,"1,440.00",MR RAYMOND RENWICK T/A RAY`S TAXIS & MINIBUSES.
Regeneration and Local Services,Direct Services,Third Party Payments 4THIRD,430100,Rendered by Private Contractors,05/06/2018,3445490-DCC036,"1,800.00",MR WILLIAM MAGUIRE T/A VALLUM LIFTS.
Regeneration and Local Services,Direct Services,Transport,230005,Contract Hire,05/06/2018,3445495-119675,"3,000.00",ND BROWN LTD.
Regeneration and Local Services,Direct Services,Transport,230005,Contract Hire,05/06/2018,3445495-119676,"1,660.00",ND BROWN LTD.
Regeneration and Local Services,Direct Services,Transport,230005,Contract Hire,05/06/2018,3445495-119677,700.00,ND BROWN LTD.
Children and Young Peoples Services,Head of Education and Skills,Transport,230008,Contract Hire,05/06/2018,3445497-042,"1,080.00",NEIL PASSMOOR T/A NEIL`S TAXI.
Regeneration and Local Services,Direct Services,Third Party Payments 4THIRD,430100,Rendered by Private Contractors,05/06/2018,3445500-21801006,"2,805.97",NORTH EAST TRUCK & VAN LTD.
Regeneration and Local Services,Economic Development and Housing,Supplies and Services,372009,Subscriptions E372,05/06/2018,3445501-55238,885.00,NORTHERN HOUSING CONSORTIUM LTD.
Regeneration and Local Services,Technical Services,Third Party Payments 4THIRD,430100,Rendered by Private Contractors,05/06/2018,3445502-NEI-EXP-06-2018-001,885.00,NORTHERN POWERGRID (NORTHEAST) LTD.
Children and Young Peoples Services,Head of Education and Skills,Supplies and Services,384199,Miscellaneous Expenses,05/06/2018,3445507-INV-0369,"65,080.12",OPTIMUM SKILLS LTD.
Regeneration and Local Services,Spatial Policy Planning Assets & Environment,Supplies and Services,338066,Services,05/06/2018,3445512-561589,"2,263.00",PENNA PLC.
Regeneration and Local Services,Culture & Sport,Supplies and Services,338047,Services,05/06/2018,3445514-INV07677,833.33,PICTUREHOUSE CINEMAS LTD.
Adult and Health Services,Public Health,Third Party Payments 4THIRD,460803,Contract Payments,05/06/2018,3445515-16156/19,"5,462.93",PIONEERING CARE PARTNERSHIP.
Regeneration and Local Services,Direct Services,Supplies and Services,338078,Services,05/06/2018,3445518-109440,"5,967.65",PROTECTOR SECURITY GROUP LTD.
Adult and Health Services,Commissioning inc Supporting People,Third Party Payments 4THIRD,441001,Supporting People E441,05/06/2018,3445521-1967751,"9,423.88",RICHMOND FELLOWSHIP.
Adult and Health Services,Commissioning inc Supporting People,Third Party Payments 4THIRD,442002,Supporting People E442,05/06/2018,3445521-1967739,"7,356.72",RICHMOND FELLOWSHIP.
Adult and Health Services,Commissioning inc Supporting People,Third Party Payments 4THIRD,444002,Supporting People E444,05/06/2018,3445521-1967740,"3,698.40",RICHMOND FELLOWSHIP.
Regeneration and Local Services,Direct Services,Transport,230005,Contract Hire,05/06/2018,3445522-IV410167,"4,370.00",RIVERSIDE TRUCK RENTAL LTD (RTR).
Regeneration and Local Services,Direct Services,Transport,230005,Contract Hire,05/06/2018,3445522-IV410367,"2,875.00",RIVERSIDE TRUCK RENTAL LTD (RTR).
Children and Young Peoples Services,Head of Education and Skills,Transport,230007,Contract Hire,05/06/2018,3445524-1514,810.00,ROAD RUNNERS (NE) LTD.
Children and Young Peoples Services,Head of Education and Skills,Transport,230007,Contract Hire,05/06/2018,3445524-1515,810.00,ROAD RUNNERS (NE) LTD.
Children and Young Peoples Services,Head of Education and Skills,Transport,230009,Contract Hire,05/06/2018,3445524-1509,684.00,ROAD RUNNERS (NE) LTD.
Children and Young Peoples Services,Head of Education and Skills,Transport,230009,Contract Hire,05/06/2018,3445524-1510,702.00,ROAD RUNNERS (NE) LTD.
Children and Young Peoples Services,Head of Education and Skills,Transport,230009,Contract Hire,05/06/2018,3445524-1513,522.00,ROAD RUNNERS (NE) LTD.
Children and Young Peoples Services,Head of Education and Skills,Transport,230006,Contract Hire,05/06/2018,3445524-1501,792.00,ROAD RUNNERS (NE) LTD.
Dedicated Schools Grant,DSG High Needs Block,Transport,230010,Contract Hire,05/06/2018,3445524-1507,"1,242.00",ROAD RUNNERS (NE) LTD.
Children and Young Peoples Services,Head of Education and Skills,Transport,230012,Contract Hire,05/06/2018,3445524-1498,540.00,ROAD RUNNERS (NE) LTD.
Children and Young Peoples Services,Head of Education and Skills,Transport,230012,Contract Hire,05/06/2018,3445524-1500,"1,296.00",ROAD RUNNERS (NE) LTD.
Children and Young Peoples Services,Head of Education and Skills,Transport,230008,Contract Hire,05/06/2018,3445524-1492,756.00,ROAD RUNNERS (NE) LTD.
Children and Young Peoples Services,Head of Education and Skills,Transport,230008,Contract Hire,05/06/2018,3445524-1495,"1,260.00",ROAD RUNNERS (NE) LTD.
Children and Young Peoples Services,Head of Education and Skills,Transport,230008,Contract Hire,05/06/2018,3445524-1496,"2,160.00",ROAD RUNNERS (NE) LTD.
Children and Young Peoples Services,Head of Education and Skills,Transport,230008,Contract Hire,05/06/2018,3445524-1497,"1,152.00",ROAD RUNNERS (NE) LTD.
Children and Young Peoples Services,Head of Education and Skills,Transport,230008,Contract Hire,05/06/2018,3445524-1504,"3,100.00",ROAD RUNNERS (NE) LTD.
Children and Young Peoples Services,Head of Education and Skills,Transport,230008,Contract Hire,05/06/2018,3445524-1512,972.00,ROAD RUNNERS (NE) LTD.
Children and Young Peoples Services,Head of Education and Skills,Transport,230008,Contract Hire,05/06/2018,3445524-1517,672.00,ROAD RUNNERS (NE) LTD.
Children and Young Peoples Services,Head of Education and Skills,Transport,230008,Contract Hire,05/06/2018,3445524-1518,860.00,ROAD RUNNERS (NE) LTD.
Children and Young Peoples Services,Head of Education and Skills,Transport,230007,Contract Hire,05/06/2018,3445525-1746,"1,440.00",RON`S TAXIS (FISHBURN).
Children and Young Peoples Services,Head of Education and Skills,Transport,230008,Contract Hire,05/06/2018,3445525-1747,"3,600.00",RON`S TAXIS (FISHBURN).
Children and Young Peoples Services,Head of Education and Skills,Transport,230008,Contract Hire,05/06/2018,3445525-1748,"1,440.00",RON`S TAXIS (FISHBURN).
Resources,Corporate Finance & Commercial Services,Supplies and Services,340001,Postages E340,05/06/2018,3445527-9056481197,"30,134.50",ROYAL MAIL GROUP PLC.
Resources,Finance & Transactional Services,Supplies and Services,340001,Postages E340,05/06/2018,3445527-9056607385,"13,755.80",ROYAL MAIL GROUP PLC.
Regeneration and Local Services,Technical Services,Supplies and Services,304358,Equipment and Materials,05/06/2018,3445528-1558,"2,550.00",S & R LANDSCAPES.
Regeneration and Local Services,Technical Services,Supplies and Services,304358,Equipment and Materials,05/06/2018,3445528-1559,"1,290.00",S & R LANDSCAPES.
Regeneration and Local Services,Technical Services,Supplies and Services,304358,Equipment and Materials,05/06/2018,3445528-1569,838.50,S & R LANDSCAPES.
Regeneration and Local Services,Technical Services,Supplies and Services,304358,Equipment and Materials,05/06/2018,3445528-1570,"1,168.95",S & R LANDSCAPES.
Regeneration and Local Services,Technical Services,Third Party Payments 4THIRD,430127,Rendered by Private Contractors,05/06/2018,3445528-1564,"4,257.50",S & R LANDSCAPES.
Regeneration and Local Services,Direct Services,Supplies and Services,384194,Miscellaneous Expenses,05/06/2018,3445530-4010,990.00,SAFE STRIP UK LTD.
Adult and Health Services,Commissioning inc Supporting People,Third Party Payments 4THIRD,442002,Supporting People E442,05/06/2018,3445533-1967793,"6,331.08",SHAID LTD.
Children and Young Peoples Services,Head of Education and Skills,Transport,230012,Contract Hire,05/06/2018,3445534-74190,"1,440.00",SHOTTON PRIVATE HIRE.
Regeneration and Local Services,Technical Services,Supplies and Services,304221,Equipment and Materials,05/06/2018,3445535-714560096225,"1,126.80",SIG TRADING LTD.
Children and Young Peoples Services,Head of Education and Skills,Transport,230012,Contract Hire,05/06/2018,3445536-813,990.00,SIMONS TAXIS.
Children and Young Peoples Services,Head of Education and Skills,Transport,230016,Contract Hire,05/06/2018,3445536-814,972.00,SIMONS TAXIS.
Children and Young Peoples Services,Head of Education and Skills,Transport,230008,Contract Hire,05/06/2018,3445536-815,"1,962.00",SIMONS TAXIS.
Children and Young Peoples Services,Head of Education and Skills,Transport,230008,Contract Hire,05/06/2018,3445537-601A,"1,620.00",SJ MACKENZIE T/A SCOTTS TAXIS.
Children and Young Peoples Services,Head of Education and Skills,Transport,230008,Contract Hire,05/06/2018,3445537-602A,"2,500.00",SJ MACKENZIE T/A SCOTTS TAXIS.
Children and Young Peoples Services,Head of Education and Skills,Transport,230008,Contract Hire,05/06/2018,3445537-609A,990.00,SJ MACKENZIE T/A SCOTTS TAXIS.
Regeneration and Local Services,Direct Services,Third Party Payments 4THIRD,430100,Rendered by Private Contractors,05/06/2018,3445540-105/18/11850,"3,043.15",SOCIETE GENERALE EQUIPMENT FINANCE LTD.
Children and Young Peoples Services,Head of Education and Skills,Transport,230008,Contract Hire,05/06/2018,3445541-180570,"1,620.00",STEVEN PRATT T/A PTL TAXIS DURHAM.
Regeneration and Local Services,Technical Services,Supplies and Services,304221,Equipment and Materials,05/06/2018,3445542-104801,573.04,STONEGRAVE AGGREGATES LTD.
Adult and Health Services,Commissioning inc Supporting People,Third Party Payments 4THIRD,441001,Supporting People E441,05/06/2018,3445543-1967798,"54,465.72",STONHAM HOUSING ASSOCIATION LTD.
Adult and Health Services,Commissioning inc Supporting People,Third Party Payments 4THIRD,441001,Supporting People E441,05/06/2018,3445543-1967804,"15,342.48",STONHAM HOUSING ASSOCIATION LTD.
Adult and Health Services,Commissioning inc Supporting People,Third Party Payments 4THIRD,442002,Supporting People E442,05/06/2018,3445543-1967733,"113,942.68",STONHAM HOUSING ASSOCIATION LTD.
Adult and Health Services,Commissioning inc Supporting People,Third Party Payments 4THIRD,442002,Supporting People E442,05/06/2018,3445543-1967803,"27,962.72",STONHAM HOUSING ASSOCIATION LTD.
Adult and Health Services,Commissioning inc Supporting People,Third Party Payments 4THIRD,443001,Supporting People E443,05/06/2018,3445543-1967758,739.68,STONHAM HOUSING ASSOCIATION LTD.
Adult and Health Services,Commissioning inc Supporting People,Third Party Payments 4THIRD,443001,Supporting People E443,05/06/2018,3445543-1967800,"11,506.84",STONHAM HOUSING ASSOCIATION LTD.
Children and Young Peoples Services,Head of Education and Skills,Transport,230007,Contract Hire,05/06/2018,3445548-10010,"2,700.00",TED WILFORD COACHES.
Children and Young Peoples Services,Head of Education and Skills,Transport,230007,Contract Hire,05/06/2018,3445548-10013,"2,250.00",TED WILFORD COACHES.
Children and Young Peoples Services,Head of Education and Skills,Transport,230003,Contract Hire,05/06/2018,3445548-10012,"1,620.00",TED WILFORD COACHES.
Adult and Health Services,Head of Adults,Third Party Payments 4THIRD,479101,Purchase of Care,05/06/2018,3445549-4810012768,"4,500.25",TEES ESK & WEAR VALLEYS NHS FOUNDATION TRUST.
Children and Young Peoples Services,Head of Childrens Social Care,Third Party Payments 4THIRD,486054,Service level agreements E486,05/06/2018,3445549-4810012157,"7,294.17",TEES ESK & WEAR VALLEYS NHS FOUNDATION TRUST.
Children and Young Peoples Services,Head of Childrens Social Care,Third Party Payments 4THIRD,486054,Service level agreements E486,05/06/2018,3445549-4810012753,"7,440.75",TEES ESK & WEAR VALLEYS NHS FOUNDATION TRUST.
Adult and Health Services,Commissioning inc Supporting People,Third Party Payments 4THIRD,441001,Supporting People E441,05/06/2018,3445554-1967756,"19,231.20",THE CYRENIANS LTD T/A CHANGING LIVES.
Children and Young Peoples Services,Head of Education and Skills,Transport,230008,Contract Hire,05/06/2018,3445561-0001972,"1,900.00",TONY RIDLEY T/A COLORS TAXIS LTD.
Regeneration and Local Services,Direct Services,Transport,230005,Contract Hire,05/06/2018,3445562-18230,750.00,TRASH UK LTD.
Adult and Health Services,Commissioning inc Supporting People,Third Party Payments 4THIRD,441001,Supporting People E441,05/06/2018,3445565-1967753,"2,367.20",WADDINGTON STREET CENTRE LTD.
Adult and Health Services,Commissioning inc Supporting People,Third Party Payments 4THIRD,444002,Supporting People E444,05/06/2018,3445565-1967774,567.36,WADDINGTON STREET CENTRE LTD.
Regeneration and Local Services,Spatial Policy Planning Assets & Environment,Supplies and Services,384199,Miscellaneous Expenses,05/06/2018,3445568-122,540.00,WEAR RIVERS TRUST.
Adult and Health Services,Commissioning inc Supporting People,Third Party Payments 4THIRD,441001,Supporting People E441,05/06/2018,3445569-1967738,"7,157.00",WEAR VALLEY WOMENS AID.
Dedicated Schools Grant,DSG High Needs Block,Transport,230010,Contract Hire,05/06/2018,3445571-124,"1,260.00",WHITTONSTALL TAXIS SERVICE.
Regeneration and Local Services,Technical Services,Supplies and Services,304358,Equipment and Materials,05/06/2018,3445575-7106,640.00,YOULL CONSTRUCTION LTD.
Transformation and Partnerships,Partnerships & Community Engagement Div.,Cap Exp on Grants & Other Financial Assistance (REFCUS),918004,Contributions to other bodies 918004,06/06/2018,3446319-VOUCHER18NB-4TOG002,"2,280.00",1ST FERRYHILL SCOUT GROUP.
Children and Young Peoples Services,Head of Education and Skills,Transport,230007,Contract Hire,06/06/2018,3446321-51801,"1,122.00",24/7 TAXI SERVICES LTD.
Dedicated Schools Grant,DSG High Needs Block,Transport,230009,Contract Hire,06/06/2018,3446321-51811,702.00,24/7 TAXI SERVICES LTD.
Children and Young Peoples Services,Head of Education and Skills,Transport,230006,Contract Hire,06/06/2018,3446321-51808,720.00,24/7 TAXI SERVICES LTD.
Children and Young Peoples Services,Head of Education and Skills,Transport,230008,Contract Hire,06/06/2018,3446321-51807,"2,052.00",24/7 TAXI SERVICES LTD.
Dedicated Schools Grant,DSG High Needs Block,Transport,230008,Contract Hire,06/06/2018,3446321-51803,"1,360.00",24/7 TAXI SERVICES LTD.
Adult and Health Services,Head of Adults,Transport,230005,Contract Hire,06/06/2018,3446321-51804,942.00,24/7 TAXI SERVICES LTD.
Children and Young Peoples Services,Head of Education and Skills,Transport,230006,Contract Hire,06/06/2018,3446325-583,680.00,ADAMSONS TAXIS.
Children and Young Peoples Services,Head of Education and Skills,Transport,230008,Contract Hire,06/06/2018,3446329-38895861,"1,585.00",ALAN SOUTHERN T/A ALANS TAXIS PELTON FELL.
Regeneration and Local Services,Direct Services,Third Party Payments 4THIRD,430100,Rendered by Private Contractors,06/06/2018,3446332-16699,"5,325.00",AMBIC LTD.
Regeneration and Local Services,Corporate Director + PA,Supplies and Services,372009,Subscriptions E372,06/06/2018,3446335-1819/77,"4,189.00",APSE.
Children and Young Peoples Services,Head of Education and Skills,Transport,230012,Contract Hire,06/06/2018,3446336-MAY2018-02,"1,032.40",ARMSTRONG`S TAXIS.
Regeneration and Local Services,Culture & Sport,Supplies and Services,384199,Miscellaneous Expenses,06/06/2018,3446337-1361,"1,417.00",ASH COOPER FREELANCE SERVICES.
Regeneration and Local Services,Direct Services,Supplies and Services,304221,Equipment and Materials,06/06/2018,3446339-13051,502.50,ASTRAL CONTROL SERVICES LTD.
Regeneration and Local Services,Direct Services,Transport,210057,Repair and Maintenance of Vehicles,06/06/2018,3446343-45053711,560.56,BELL TRUCK SALES LTD T/A BELL TRUCK & VAN.
Children and Young Peoples Services,Head of Education and Skills,Transport,230008,Contract Hire,06/06/2018,309970-N010/09,"1,260.00",C STEWART.
Regeneration and Local Services,Direct Services,Supplies and Services,304221,Equipment and Materials,06/06/2018,3446351-851800562,"1,241.00",CARLISLE CONSTRUCTION MATERIALS LTD.
Regeneration and Local Services,Direct Services,Third Party Payments 4THIRD,430100,Rendered by Private Contractors,06/06/2018,3446355-3945,559.65,CATHEDRAL LOCK & SAFE SERVICES LTD.
Resources,Digital and Customer Services,Supplies and Services,372009,Subscriptions E372,06/06/2018,3446361-C/RB164591,"3,465.00",CIVICA UK LTD.
Transformation and Partnerships,Partnerships & Community Engagement Div.,Cap Exp on Grants & Other Financial Assistance (REFCUS),918004,Contributions to other bodies 918004,06/06/2018,3446375-VOUCHER18NB-BASH001,"1,000.00",DAISY ARTS.
Children and Young Peoples Services,Head of Education and Skills,Transport,230007,Contract Hire,06/06/2018,309976-48A,800.00,DAVID WILKINSON...
Regeneration and Local Services,Direct Services,Third Party Payments 4THIRD,430100,Rendered by Private Contractors,06/06/2018,3446390-DCC903,"1,690.00",FARNLEY FARM PARTNERS.
Regeneration and Local Services,Direct Services,Third Party Payments 4THIRD,430100,Rendered by Private Contractors,06/06/2018,3446390-DCC904,"2,200.00",FARNLEY FARM PARTNERS.
Children and Young Peoples Services,Head of Education and Skills,Transport,230007,Contract Hire,06/06/2018,3446407-13585,711.00,HODGSONS COACH OPERATORS LTD.
Children and Young Peoples Services,Head of Education and Skills,Transport,230007,Contract Hire,06/06/2018,3446407-13587,687.60,HODGSONS COACH OPERATORS LTD.
Children and Young Peoples Services,Head of Education and Skills,Transport,230007,Contract Hire,06/06/2018,3446407-13588,"1,789.20",HODGSONS COACH OPERATORS LTD.
Children and Young Peoples Services,Head of Education and Skills,Transport,230007,Contract Hire,06/06/2018,3446413-5103,504.00,J YOUNG T/A VIP TAXIS.
Children and Young Peoples Services,Head of Education and Skills,Transport,230007,Contract Hire,06/06/2018,3446413-5104,756.00,J YOUNG T/A VIP TAXIS.
Children and Young Peoples Services,Head of Education and Skills,Transport,230012,Contract Hire,06/06/2018,3446413-5106,504.00,J YOUNG T/A VIP TAXIS.
Children and Young Peoples Services,Head of Education and Skills,Transport,230008,Contract Hire,06/06/2018,3446413-5098,864.00,J YOUNG T/A VIP TAXIS.
Children and Young Peoples Services,Head of Education and Skills,Transport,230008,Contract Hire,06/06/2018,3446413-5100,"1,008.00",J YOUNG T/A VIP TAXIS.
Children and Young Peoples Services,Head of Education and Skills,Transport,230008,Contract Hire,06/06/2018,3446413-5101,720.00,J YOUNG T/A VIP TAXIS.
Adult and Health Services,Head of Adults,Transport,230005,Contract Hire,06/06/2018,3446413-5097,900.00,J YOUNG T/A VIP TAXIS.
Children and Young Peoples Services,Head of Education and Skills,Transport,230008,Contract Hire,06/06/2018,3446422-S027-MAY,"1,710.00",KEITH GIBSON T/A KEITH`S TAXIS.
Children and Young Peoples Services,Head of Education and Skills,Transport,230003,Contract Hire,06/06/2018,3446429-5233-SL02,"2,438.00",LEE`S COACHES LTD.
Children and Young Peoples Services,Head of Education and Skills,Transport,230003,Contract Hire,06/06/2018,3446429-5233-SL05,"2,322.00",LEE`S COACHES LTD.
Children and Young Peoples Services,Head of Education and Skills,Transport,230003,Contract Hire,06/06/2018,3446429-5233-SL06,"2,316.00",LEE`S COACHES LTD.
Children and Young Peoples Services,Head of Education and Skills,Transport,230003,Contract Hire,06/06/2018,3446429-5233-SL15,"2,142.00",LEE`S COACHES LTD.
Children and Young Peoples Services,Head of Education and Skills,Transport,230008,Contract Hire,06/06/2018,3446433-120,"1,080.00",M BUTCHER T/A M & M`S TAXIS.
Children and Young Peoples Services,Head of Education and Skills,Transport,230008,Contract Hire,06/06/2018,3446436-00949,"2,754.00",MICHAELS TRAVEL.
Children and Young Peoples Services,Head of Education and Skills,Transport,230006,Contract Hire,06/06/2018,3446441-OC/05/18,972.00,MR J AGAR T/A PARK TAXIS.
Children and Young Peoples Services,Head of Education and Skills,Transport,230008,Contract Hire,06/06/2018,3446441-SFB/05/18,"1,512.00",MR J AGAR T/A PARK TAXIS.
Children and Young Peoples Services,Head of Education and Skills,Transport,230008,Contract Hire,06/06/2018,3446442-27-FEB18,828.00,MR M MCNAMARA. T/A MSM TAXIS
Children and Young Peoples Services,Head of Education and Skills,Transport,230008,Contract Hire,06/06/2018,3446442-27-JAN18,"1,080.00",MR M MCNAMARA. T/A MSM TAXIS
Children and Young Peoples Services,Head of Education and Skills,Transport,230008,Contract Hire,06/06/2018,3446442-27-MARCH18,"1,176.00",MR M MCNAMARA. T/A MSM TAXIS
Children and Young Peoples Services,Head of Education and Skills,Transport,230008,Contract Hire,06/06/2018,3446444-W046-MAY,"1,422.00",MR NEIL FRASER ELLIS T/A MILLENNIUM CABS.
Children and Young Peoples Services,Head of Education and Skills,Transport,230007,Contract Hire,06/06/2018,3446445-1631,875.00,MR PETER YOUNG.
Children and Young Peoples Services,Childrens Services Operational Support,Supplies and Services,338089,Services,06/06/2018,3446447-DPSW11,"1,757.40",MRS A GLADMAN T/A SAFEGUARDING CHILDREN TRAINING & CONSULTANCY LTD.
Regeneration and Local Services,Technical Services,Third Party Payments 4THIRD,430127,Rendered by Private Contractors,06/06/2018,3446454-4493,"5,817.50",N FLETCHER.
Regeneration and Local Services,Technical Services,Third Party Payments 4THIRD,430127,Rendered by Private Contractors,06/06/2018,3446454-4494,"3,197.50",N FLETCHER.
Regeneration and Local Services,Economic Development and Housing,Supplies and Services,340001,Postages E340,06/06/2018,3446458-RED-06-2018-022,"3,000.00",NEOPOST CREDIFON.
Regeneration and Local Services,Culture & Sport,Supplies and Services,340001,Postages E340,06/06/2018,3446459-NEI-HCL-05-2018-004,500.00,NEOPOST NEOFUNDS LTD.*
Regeneration and Local Services,Technical Services,Premises,120009,Energy Costs,06/06/2018,3446466-NNO74VCM,"1,467.97",NPOWER.
Regeneration and Local Services,Direct Services,Supplies and Services,304221,Equipment and Materials,06/06/2018,3446468-330202,"2,116.89",OIL NRG LTD.
Regeneration and Local Services,Direct Services,Transport,215005,Running Costs of Vehicles,06/06/2018,3446468-329773,"13,700.70",OIL NRG LTD.
Regeneration and Local Services,Direct Services,Transport,215022,Running Costs of Vehicles,06/06/2018,3446468-329847,"4,708.75",OIL NRG LTD.
Children and Young Peoples Services,Head of Education and Skills,Transport,230013,Contract Hire,06/06/2018,3446472-DCC/5237/05/2018,"1,116.00",PB PRIVATE HIRE.
Children and Young Peoples Services,Head of Education and Skills,Transport,230012,Contract Hire,06/06/2018,3446472-DCC/S030/05/2018,720.00,PB PRIVATE HIRE.
Regeneration and Local Services,Technical Services,Third Party Payments 4THIRD,430100,Rendered by Private Contractors,06/06/2018,3446482-110112,550.00,PROTECTOR SECURITY GROUP LTD.
Regeneration and Local Services,Direct Services,Supplies and Services,338078,Services,06/06/2018,3446482-110294,"6,312.50",PROTECTOR SECURITY GROUP LTD.
Regeneration and Local Services,Economic Development and Housing,Supplies and Services,338078,Services,06/06/2018,3446482-110295,"5,859.36",PROTECTOR SECURITY GROUP LTD.
Resources,Corporate Finance & Commercial Services,Supplies and Services,352001,Conference Expenses,06/06/2018,310038-4646,"2,580.00",PUBLIC SECTOR PEOPLE MANAGERS` ASSOCIATION LTD (PPMA).
Regeneration and Local Services,Technical Services,Third Party Payments 4THIRD,430100,Rendered by Private Contractors,06/06/2018,3446485-2800/180412,"62,021.74",RAINTON CONSTRUCTION LTD.
Children and Young Peoples Services,Head of Education and Skills,Transport,230007,Contract Hire,06/06/2018,3446486-5230-MAY,"1,080.00",RAY WHITTLE.
Children and Young Peoples Services,Head of Education and Skills,Transport,230008,Contract Hire,06/06/2018,3446487-009,916.40,RAYMOND CHURNSIDE T/A S & L TAXI.
Dedicated Schools Grant,DSG High Needs Block,Supplies and Services,304259,Equipment and Materials,06/06/2018,3446490-SINEN003690,"1,068.77",RNIB ENTERPRISES LTD.
Dedicated Schools Grant,DSG High Needs Block,Transport,230010,Contract Hire,06/06/2018,3446491-1508,"1,296.00",ROAD RUNNERS (NE) LTD.
Adult and Health Services,Head of Adults,Supplies and Services,304259,Equipment and Materials,06/06/2018,3446492-110699,"1,201.95",ROMPA LTD.
Regeneration and Local Services,Culture & Sport,Supplies and Services,338047,Services,06/06/2018,3446493-14MAY2018,"3,950.00",RUSS COLEMAN SCULPTOR.
Children and Young Peoples Services,Head of Education and Skills,Transport,230016,Contract Hire,06/06/2018,3446504-606A,"1,350.00",SJ MACKENZIE T/A SCOTTS TAXIS.
Children and Young Peoples Services,Head of Education and Skills,Transport,230008,Contract Hire,06/06/2018,3446504-600A,"1,350.00",SJ MACKENZIE T/A SCOTTS TAXIS.
Children and Young Peoples Services,Head of Education and Skills,Transport,230008,Contract Hire,06/06/2018,3446504-603A,"1,800.00",SJ MACKENZIE T/A SCOTTS TAXIS.
Children and Young Peoples Services,Head of Education and Skills,Transport,230008,Contract Hire,06/06/2018,3446504-604A,"1,620.00",SJ MACKENZIE T/A SCOTTS TAXIS.
Regeneration and Local Services,Culture & Sport,Supplies and Services,332029,Printing Stationery and Gen Off Exps,06/06/2018,3446508-INV-3834A,787.50,STEVE DAVIDSON ADVERTISING LTD T/A SD ADVERTISING LTD.
Regeneration and Local Services,Technical Services,Supplies and Services,304221,Equipment and Materials,06/06/2018,3446509-105624,"3,492.72",STONEGRAVE AGGREGATES LTD.
Regeneration and Local Services,Technical Services,Supplies and Services,304221,Equipment and Materials,06/06/2018,3446514-9038113877,650.50,TARMAC TRADING LTD.
Children and Young Peoples Services,Head of Education and Skills,Transport,230007,Contract Hire,06/06/2018,3446515-007,"1,242.00",TAXZ.
Children and Young Peoples Services,Head of Education and Skills,Transport,230012,Contract Hire,06/06/2018,3446516-DCC/2018/027,"1,296.00",TAYLOR`S TAXIS.
Children and Young Peoples Services,Head of Education and Skills,Transport,230008,Contract Hire,06/06/2018,3446516-DCC/2018/025,"1,494.00",TAYLOR`S TAXIS.
Children and Young Peoples Services,Head of Education and Skills,Transport,230008,Contract Hire,06/06/2018,3446516-DCC/2018/026,"1,476.00",TAYLOR`S TAXIS.
Children and Young Peoples Services,Head of Education and Skills,Transport,230008,Contract Hire,06/06/2018,3446516-DCC/2018/028,"1,944.00",TAYLOR`S TAXIS.
Children and Young Peoples Services,Head of Education and Skills,Transport,230012,Contract Hire,06/06/2018,3446531-TS-18/20,"1,080.00",TOP STAR TRAVEL.
Children and Young Peoples Services,Head of Education and Skills,Transport,230012,Contract Hire,06/06/2018,3446531-TS22-09,972.00,TOP STAR TRAVEL.
Children and Young Peoples Services,Head of Education and Skills,Transport,230008,Contract Hire,06/06/2018,3446531-TS-15/20,864.00,TOP STAR TRAVEL.
Children and Young Peoples Services,Head of Education and Skills,Transport,230008,Contract Hire,06/06/2018,3446531-TS21/20,864.00,TOP STAR TRAVEL.
Children and Young Peoples Services,Head of Education and Skills,Transport,230008,Contract Hire,06/06/2018,3446531-TS40/20,936.00,TOP STAR TRAVEL.
Resources,Finance & Transactional Services,Supplies and Services,372009,Subscriptions E372,06/06/2018,3446534-16391,"5,237.00",TROJAN CONSULTANTS LTD.
Regeneration and Local Services,Transport and Contracted Services,Third Party Payments 4THIRD,440999,Other third party payments E440,06/06/2018,3446536-INV30036356,"139,736.50",TUNSTALL HEALTHCARE (UK) LTD.
Children and Young Peoples Services,Head of Education and Skills,Transport,230008,Contract Hire,06/06/2018,3446537-9-W033,"1,404.00",TW TINKLER T/A TT TAXIS.
Adult and Health Services,Public Health,Third Party Payments 4THIRD,460803,Contract Payments,06/06/2018,3446539-9100072383,"11,667.00",UNIVERSITY OF NEWCASTLE UPON TYNE.
Dedicated Schools Grant,DSG High Needs Block,Transport,230010,Contract Hire,06/06/2018,3446544-487860,"1,314.00",WENDYS` TAXIS.
Dedicated Schools Grant,DSG High Needs Block,Third Party Payments 4THIRD,410037,Rendered by Other Local Authorities,06/06/2018,3446545-90302402,"2,090.42",WILTSHIRE COUNTY COUNCIL.
Regeneration and Local Services,Culture & Sport,Supplies and Services,304337,Equipment and Materials,06/06/2018,3446550-I-0508678,"1,415.95",ZOGGS INTERNATIONAL LTD.
Children and Young Peoples Services,Head of Education and Skills,Transport,230008,Contract Hire,07/06/2018,3446551-N0310518,"1,980.00",1ST AID COMMERCIALS LTD.
Children and Young Peoples Services,Head of Education and Skills,Transport,230008,Contract Hire,07/06/2018,3446552-51806,"2,100.00",24/7 TAXI SERVICES LTD.
Children and Young Peoples Services,Head of Education and Skills,Transport,230006,Contract Hire,07/06/2018,3446555-K18/SX,"1,710.00",AABAT TAXIS.
Adult and Health Services,Head of Adults,Transport,230005,Contract Hire,07/06/2018,3446555-K27/EC,960.00,AABAT TAXIS.
Children and Young Peoples Services,Head of Education and Skills,Transport,230007,Contract Hire,07/06/2018,3446556-525,"1,080.00",ACE TAXIS (WINSTON).
Children and Young Peoples Services,Head of Education and Skills,Transport,230007,Contract Hire,07/06/2018,3446556-526,"1,260.00",ACE TAXIS (WINSTON).
Children and Young Peoples Services,Head of Education and Skills,Transport,230007,Contract Hire,07/06/2018,3446556-527,"1,260.00",ACE TAXIS (WINSTON).
Adult and Health Services,Head of Adults,Third Party Payments 4THIRD,470101,Purchase of Care,07/06/2018,3446557-18443,"89,499.32",ACORN CARE & EDUCATION.
Children and Young Peoples Services,Head of Education and Skills,Transport,230007,Contract Hire,07/06/2018,3446563-183AT,900.00,AMBER TRAVEL.
Adult and Health Services,Head of Adults,Transport,230005,Contract Hire,07/06/2018,3446574-DCC11MAY18,"1,020.00",ATLAS TAXIS BISHOP AUCKLAND.
Adult and Health Services,Head of Adults,Transport,230005,Contract Hire,07/06/2018,3446574-DCC14MAY18,"1,190.00",ATLAS TAXIS BISHOP AUCKLAND.
Adult and Health Services,Head of Adults,Transport,230005,Contract Hire,07/06/2018,3446574-DCC3MAY18,700.00,ATLAS TAXIS BISHOP AUCKLAND.
Children and Young Peoples Services,Head of Education and Skills,Transport,230007,Contract Hire,07/06/2018,3446575-03770,"1,268.60",ATLAS TAXIS CONSETT.
Children and Young Peoples Services,Head of Education and Skills,Transport,230006,Contract Hire,07/06/2018,3446576-5-F271A,701.00,AXLE TAXIS.
Children and Young Peoples Services,Head of Education and Skills,Transport,230008,Contract Hire,07/06/2018,3446580-SMITH1/MAY18,"1,599.00",BEELINE PRIVATE HIRE.
Dedicated Schools Grant,DSG High Needs Block,Transport,230010,Contract Hire,07/06/2018,3446584-B013-MAY,"1,410.00",BIG MAMA`S TAXI.
Adult and Health Services,Head of Adults,Transport,230005,Contract Hire,07/06/2018,3446585-0012/MAY,576.00,BIRDS TAXIS LTD.
Adult and Health Services,Head of Adults,Transport,230005,Contract Hire,07/06/2018,3446585-0015,744.00,BIRDS TAXIS LTD.
Adult and Health Services,Head of Adults,Transport,230005,Contract Hire,07/06/2018,3446585-0016,588.00,BIRDS TAXIS LTD.
Children and Young Peoples Services,Head of Education and Skills,Transport,230008,Contract Hire,07/06/2018,3446587-11,"3,240.00",BL CARS.
Children and Young Peoples Services,Head of Education and Skills,Transport,230008,Contract Hire,07/06/2018,3446589-7018,600.00,BOBBY DOVE.
Children and Young Peoples Services,Head of Education and Skills,Transport,230007,Contract Hire,07/06/2018,3446591-008,540.00,BOWBURN TAXIS.
Adult and Health Services,Head of Adults,Transport,230005,Contract Hire,07/06/2018,3446592-BZ00258,588.00,BREZ`S TAXIS.
Children and Young Peoples Services,Head of Education and Skills,Transport,230008,Contract Hire,07/06/2018,3446594-9,"1,188.00",BRIAN PURVIS T/A BJ`S TAXIS.
Resources,Digital and Customer Services,Supplies and Services,344111,Telephones,07/06/2018,3446595-VP90592270ML5501,"3,307.02",BRITISH TELECOMMUNICATIONS PLC.
Regeneration and Local Services,Culture & Sport,Supplies and Services,304259,Equipment and Materials,07/06/2018,3446600-485270,"3,225.44",CARRS BILLINGTON AGRICULTURE.
Children and Young Peoples Services,Head of Education and Skills,Transport,230007,Contract Hire,07/06/2018,3446603-16-5222,"1,152.00",CHAPMAN TRAVEL.
Transformation and Partnerships,Partnerships & Community Engagement Div.,Supplies and Services,384086,Miscellaneous Expenses,07/06/2018,3446604-VOUCHERBAIA02-18,800.00,CHESTER LE STREET SCC.
Children and Young Peoples Services,Head of Education and Skills,Transport,230007,Contract Hire,07/06/2018,3446606-46295-5037,"2,209.14",CHRISTOPHER JAMES GRIERSON T/A GRIERSONS COACHES.
Regeneration and Local Services,Direct Services,Premises,145009,Cleaning and Domestic Supplies,07/06/2018,3446607-CC114253,"2,395.00",CITY CLEAN NORTHERN LTD.
Adult and Health Services,Public Health,Third Party Payments 4THIRD,460803,Contract Payments,07/06/2018,3446610-3980029034,"23,078.16",CO DURHAM & DARLINGTON NHS FOUNDATION TRUST.
Adult and Health Services,Public Health,Third Party Payments 4THIRD,460803,Contract Payments,07/06/2018,3446610-3980029035,"23,078.16",CO DURHAM & DARLINGTON NHS FOUNDATION TRUST.
Children and Young Peoples Services,Head of Education and Skills,Transport,230007,Contract Hire,07/06/2018,3446611-3219/0518,540.00,COLVIN`S CABS.
Children and Young Peoples Services,Head of Education and Skills,Transport,230008,Contract Hire,07/06/2018,3446620-107813,"1,889.46",CROFT BUSINESS SERVICES (UK) LTD T/A CROFT TAXIS.
Children and Young Peoples Services,Head of Education and Skills,Transport,230008,Contract Hire,07/06/2018,3446620-107814,"1,596.78",CROFT BUSINESS SERVICES (UK) LTD T/A CROFT TAXIS.
Children and Young Peoples Services,Head of Education and Skills,Transport,230008,Contract Hire,07/06/2018,3446620-107820,"2,563.92",CROFT BUSINESS SERVICES (UK) LTD T/A CROFT TAXIS.
Children and Young Peoples Services,Head of Education and Skills,Transport,230008,Contract Hire,07/06/2018,3446623-HOW1805,900.00,D IRVING T/A BJ TAXIS.
Children and Young Peoples Services,Head of Education and Skills,Transport,230008,Contract Hire,07/06/2018,3446624-1579,900.00,DA TAXIS.
Children and Young Peoples Services,Head of Education and Skills,Transport,230012,Contract Hire,07/06/2018,3446625-271,"1,134.00",DA TRAVEL.
Children and Young Peoples Services,Head of Education and Skills,Transport,230008,Contract Hire,07/06/2018,3446626-3297,"1,968.00",DAVES MINIBUSES.
Resources,Legal & Democratic Services,Supplies and Services,338025,Services,07/06/2018,3446628-00000443,"1,260.00",DERWENTSIDE FUNERAL SERVICE.
Children and Young Peoples Services,Head of Education and Skills,Transport,230008,Contract Hire,07/06/2018,3446629-E011/08,"1,890.00",DEXTERS PRIVATE HIRE.
Transformation and Partnerships,Partnerships & Community Engagement Div.,Cap Exp on Grants & Other Financial Assistance (REFCUS),918004,Contributions to other bodies 918004,07/06/2018,3446630-VOUCHER17NB-CHES027,"1,600.00",DIOCESE OF HEXHAM & NEWCASTLE CHESTER LE STREET ST CUTHBERT.
Children and Young Peoples Services,Head of Education and Skills,Fees,901002,Professional fees,07/06/2018,3446633-8391,"2,264.00",DUNELM GEOTECHNICAL & ENVIRONMENTAL LTD.
Transformation and Partnerships,Partnerships & Community Engagement Div.,Supplies and Services,308011,Furniture,07/06/2018,3446636-69,"3,060.00",DURHAM CHRISTIAN PARTNERSHIP.
Transformation and Partnerships,Partnerships & Community Engagement Div.,Supplies and Services,384086,Miscellaneous Expenses,07/06/2018,3446637-VOUCHERCORK03-18,500.00,DURHAM CITY BAPTIST CHURCH.
Children and Young Peoples Services,Head of Education and Skills,Transport,230003,Contract Hire,07/06/2018,3446638-26277,"2,430.00",DURHAM CITY COACHES.
Regeneration and Local Services,Direct Services,Supplies and Services,304221,Equipment and Materials,07/06/2018,3446644-059-224352,892.44,EDMUNDSON ELECTRICAL LTD.
Regeneration and Local Services,Direct Services,Transport,230005,Contract Hire,07/06/2018,3446651-8143757,597.68,ENTERPRISE FLEX-E-RENT T/A BURNT TREE GROUP LTD.
Regeneration and Local Services,Direct Services,Transport,230005,Contract Hire,07/06/2018,3446651-8143763,"1,173.35",ENTERPRISE FLEX-E-RENT T/A BURNT TREE GROUP LTD.
Regeneration and Local Services,Direct Services,Transport,230005,Contract Hire,07/06/2018,3446651-8143764,"1,173.35",ENTERPRISE FLEX-E-RENT T/A BURNT TREE GROUP LTD.
Regeneration and Local Services,Direct Services,Transport,230005,Contract Hire,07/06/2018,3446651-8143767,"1,173.35",ENTERPRISE FLEX-E-RENT T/A BURNT TREE GROUP LTD.
Regeneration and Local Services,Direct Services,Transport,230005,Contract Hire,07/06/2018,3446651-8143774,"1,173.35",ENTERPRISE FLEX-E-RENT T/A BURNT TREE GROUP LTD.
Regeneration and Local Services,Direct Services,Transport,230005,Contract Hire,07/06/2018,3446651-8143777,"1,271.00",ENTERPRISE FLEX-E-RENT T/A BURNT TREE GROUP LTD.
Regeneration and Local Services,Direct Services,Transport,230005,Contract Hire,07/06/2018,3446651-8143778,"1,107.13",ENTERPRISE FLEX-E-RENT T/A BURNT TREE GROUP LTD.
Regeneration and Local Services,Direct Services,Transport,230005,Contract Hire,07/06/2018,3446651-8143787,"1,173.35",ENTERPRISE FLEX-E-RENT T/A BURNT TREE GROUP LTD.
Regeneration and Local Services,Direct Services,Transport,230005,Contract Hire,07/06/2018,3446651-8143791,"1,173.35",ENTERPRISE FLEX-E-RENT T/A BURNT TREE GROUP LTD.
Regeneration and Local Services,Direct Services,Transport,230005,Contract Hire,07/06/2018,3446651-8143792,"1,173.35",ENTERPRISE FLEX-E-RENT T/A BURNT TREE GROUP LTD.
Regeneration and Local Services,Direct Services,Transport,230005,Contract Hire,07/06/2018,3446651-8143799,"1,107.13",ENTERPRISE FLEX-E-RENT T/A BURNT TREE GROUP LTD.
Regeneration and Local Services,Direct Services,Transport,230005,Contract Hire,07/06/2018,3446651-8143801,"1,173.35",ENTERPRISE FLEX-E-RENT T/A BURNT TREE GROUP LTD.
Regeneration and Local Services,Direct Services,Transport,230005,Contract Hire,07/06/2018,3446651-8143802,627.55,ENTERPRISE FLEX-E-RENT T/A BURNT TREE GROUP LTD.
Regeneration and Local Services,Technical Services,Supplies and Services,304221,Equipment and Materials,07/06/2018,3446652-1803\178,"1,294.27",EPPLETON QUARRY PRODUCTS LTD.
Dedicated Schools Grant,DSG High Needs Block,Transport,230010,Contract Hire,07/06/2018,3446656-PF009-007,828.00,FERRYHILL VILLAGE TRAVEL.
Children and Young Peoples Services,Head of Education and Skills,Transport,230008,Contract Hire,07/06/2018,3446656-020-N060MAY18,"2,340.00",FERRYHILL VILLAGE TRAVEL.
Children and Young Peoples Services,Head of Education and Skills,Transport,230008,Contract Hire,07/06/2018,3446656-N042-009,"1,710.00",FERRYHILL VILLAGE TRAVEL.
Regeneration and Local Services,Direct Services,Supplies and Services,304221,Equipment and Materials,07/06/2018,3446660-1804-027285,509.96,FLAME HEATING SPARES LTD.
Children and Young Peoples Services,Head of Education and Skills,Transport,230007,Contract Hire,07/06/2018,3446665-100844,"1,224.00",G & P JOHNSON LTD T/A NIGHTINGALE COACHES.
Children and Young Peoples Services,Head of Education and Skills,Transport,230003,Contract Hire,07/06/2018,3446665-100840,"3,564.00",G & P JOHNSON LTD T/A NIGHTINGALE COACHES.
Children and Young Peoples Services,Head of Education and Skills,Transport,230016,Contract Hire,07/06/2018,3446665-100851,"1,602.00",G & P JOHNSON LTD T/A NIGHTINGALE COACHES.
Children and Young Peoples Services,Head of Education and Skills,Transport,230008,Contract Hire,07/06/2018,3446665-100841,"2,006.00",G & P JOHNSON LTD T/A NIGHTINGALE COACHES.
Children and Young Peoples Services,Head of Education and Skills,Transport,230008,Contract Hire,07/06/2018,3446665-100842,"1,785.00",G & P JOHNSON LTD T/A NIGHTINGALE COACHES.
Children and Young Peoples Services,Head of Education and Skills,Transport,230008,Contract Hire,07/06/2018,3446665-100847,810.00,G & P JOHNSON LTD T/A NIGHTINGALE COACHES.
Children and Young Peoples Services,Head of Education and Skills,Transport,230008,Contract Hire,07/06/2018,3446665-100848,"1,530.00",G & P JOHNSON LTD T/A NIGHTINGALE COACHES.
Children and Young Peoples Services,Head of Education and Skills,Transport,230008,Contract Hire,07/06/2018,3446665-100849,"1,404.00",G & P JOHNSON LTD T/A NIGHTINGALE COACHES.
Children and Young Peoples Services,Head of Education and Skills,Transport,230008,Contract Hire,07/06/2018,3446665-100850,"1,044.00",G & P JOHNSON LTD T/A NIGHTINGALE COACHES.
Children and Young Peoples Services,Head of Education and Skills,Transport,230008,Contract Hire,07/06/2018,3446665-100852,"1,260.00",G & P JOHNSON LTD T/A NIGHTINGALE COACHES.
Children and Young Peoples Services,Head of Education and Skills,Transport,230008,Contract Hire,07/06/2018,3446665-100853,882.00,G & P JOHNSON LTD T/A NIGHTINGALE COACHES.
Children and Young Peoples Services,Head of Education and Skills,Transport,230008,Contract Hire,07/06/2018,3446665-100854,"1,008.00",G & P JOHNSON LTD T/A NIGHTINGALE COACHES.
Children and Young Peoples Services,Head of Education and Skills,Transport,230008,Contract Hire,07/06/2018,3446665-100855,"1,008.00",G & P JOHNSON LTD T/A NIGHTINGALE COACHES.
Children and Young Peoples Services,Head of Education and Skills,Transport,230008,Contract Hire,07/06/2018,3446665-100856,"1,440.00",G & P JOHNSON LTD T/A NIGHTINGALE COACHES.
Children and Young Peoples Services,Head of Education and Skills,Transport,230008,Contract Hire,07/06/2018,3446665-100857,"1,206.00",G & P JOHNSON LTD T/A NIGHTINGALE COACHES.
Adult and Health Services,Head of Adults,Transport,230005,Contract Hire,07/06/2018,3446665-100862,"1,554.00",G & P JOHNSON LTD T/A NIGHTINGALE COACHES.
Adult and Health Services,Head of Adults,Transport,230005,Contract Hire,07/06/2018,3446665-100863,"1,274.00",G & P JOHNSON LTD T/A NIGHTINGALE COACHES.
Adult and Health Services,Head of Adults,Transport,230005,Contract Hire,07/06/2018,3446665-100864,784.00,G & P JOHNSON LTD T/A NIGHTINGALE COACHES.
Adult and Health Services,Head of Adults,Transport,230005,Contract Hire,07/06/2018,3446665-100866-MAY,"1,218.00",G & P JOHNSON LTD T/A NIGHTINGALE COACHES.
Adult and Health Services,Head of Adults,Transport,230005,Contract Hire,07/06/2018,3446665-100868,840.00,G & P JOHNSON LTD T/A NIGHTINGALE COACHES.
Adult and Health Services,Head of Adults,Transport,230005,Contract Hire,07/06/2018,3446665-100869,"1,241.00",G & P JOHNSON LTD T/A NIGHTINGALE COACHES.
Regeneration and Local Services,Economic Development and Housing,Supplies and Services,304337,Equipment and Materials,07/06/2018,3446667-97487,787.74,GAINSBOROUGH GIFTWARE LTD.
Children and Young Peoples Services,Head of Education and Skills,Transport,230007,Contract Hire,07/06/2018,3446668-20339-4034,"2,066.40",GARNETTS LTD (COACHES).
Children and Young Peoples Services,Head of Education and Skills,Transport,230007,Contract Hire,07/06/2018,3446668-20339-4035,"2,066.40",GARNETTS LTD (COACHES).
Children and Young Peoples Services,Head of Education and Skills,Transport,230007,Contract Hire,07/06/2018,3446668-20339-4036,"2,066.40",GARNETTS LTD (COACHES).
Children and Young Peoples Services,Head of Education and Skills,Transport,230007,Contract Hire,07/06/2018,3446668-20339-4037,"4,132.80",GARNETTS LTD (COACHES).
Children and Young Peoples Services,Head of Education and Skills,Transport,230007,Contract Hire,07/06/2018,3446668-20339-4038,"2,066.40",GARNETTS LTD (COACHES).
Children and Young Peoples Services,Head of Education and Skills,Transport,230007,Contract Hire,07/06/2018,3446668-20342,"3,339.00",GARNETTS LTD (COACHES).
Children and Young Peoples Services,Head of Education and Skills,Transport,230007,Contract Hire,07/06/2018,3446668-20345,"3,798.00",GARNETTS LTD (COACHES).
Children and Young Peoples Services,Head of Education and Skills,Transport,230003,Contract Hire,07/06/2018,3446668-20338-3004,"2,502.00",GARNETTS LTD (COACHES).
Children and Young Peoples Services,Head of Education and Skills,Transport,230003,Contract Hire,07/06/2018,3446668-20338-3008,"2,682.00",GARNETTS LTD (COACHES).
Children and Young Peoples Services,Head of Education and Skills,Transport,230003,Contract Hire,07/06/2018,3446668-20338-3203,"2,502.00",GARNETTS LTD (COACHES).
Children and Young Peoples Services,Head of Education and Skills,Transport,230003,Contract Hire,07/06/2018,3446668-20338-3333,"2,124.00",GARNETTS LTD (COACHES).
Children and Young Peoples Services,Head of Education and Skills,Transport,230008,Contract Hire,07/06/2018,3446668-20340,"1,440.00",GARNETTS LTD (COACHES).
Children and Young Peoples Services,Head of Education and Skills,Transport,230008,Contract Hire,07/06/2018,3446674-063,"1,260.00",GMC TAXIS NORTH EAST.
Children and Young Peoples Services,Head of Education and Skills,Transport,230009,Contract Hire,07/06/2018,3446676-GT014-MAY,684.00,GORDON`S TAXIS.
Children and Young Peoples Services,Head of Education and Skills,Transport,230006,Contract Hire,07/06/2018,3446680-09/MAY,816.00,GS PEARSON.
Children and Young Peoples Services,Head of Education and Skills,Transport,230006,Contract Hire,07/06/2018,3446682-004-MAY,720.00,GUY`S TAXIS.
Children and Young Peoples Services,Head of Education and Skills,Transport,230008,Contract Hire,07/06/2018,3446685-HT335,"2,340.00",HARRY`S TAXI`S.
Children and Young Peoples Services,Head of Education and Skills,Transport,230008,Contract Hire,07/06/2018,3446687-19-W075,810.00,HENRY FOREMAN T/A HENRY`S TAXIS.
Children and Young Peoples Services,Head of Education and Skills,Transport,230007,Contract Hire,07/06/2018,3446688-508,"1,440.00",HEPWORTHS LUXURY TRAVEL.
Children and Young Peoples Services,Head of Education and Skills,Transport,230008,Contract Hire,07/06/2018,3446688-509,"1,980.00",HEPWORTHS LUXURY TRAVEL.
Children and Young Peoples Services,Head of Education and Skills,Transport,230008,Contract Hire,07/06/2018,3446688-510,"1,440.00",HEPWORTHS LUXURY TRAVEL.
Children and Young Peoples Services,Head of Education and Skills,Transport,230007,Contract Hire,07/06/2018,3446696-13583,"1,425.60",HODGSONS COACH OPERATORS LTD.
Children and Young Peoples Services,Head of Education and Skills,Transport,230007,Contract Hire,07/06/2018,3446696-13584,"1,071.00",HODGSONS COACH OPERATORS LTD.
Children and Young Peoples Services,Head of Education and Skills,Transport,230006,Contract Hire,07/06/2018,3446698-INV193,"1,130.00",HORNDALE TAXIS LTD.
Children and Young Peoples Services,Head of Education and Skills,Transport,230008,Contract Hire,07/06/2018,3446698-INV192,"1,404.00",HORNDALE TAXIS LTD.
Children and Young Peoples Services,Head of Education and Skills,Transport,230008,Contract Hire,07/06/2018,3446699-IR1805001,808.00,I & R EXECUTIVE TRAVEL.
Children and Young Peoples Services,Head of Education and Skills,Transport,230008,Contract Hire,07/06/2018,3446699-IR1805001/MAY,"1,310.00",I & R EXECUTIVE TRAVEL.
Children and Young Peoples Services,Head of Education and Skills,Transport,230008,Contract Hire,07/06/2018,3446699-IR1805002,"1,150.00",I & R EXECUTIVE TRAVEL.
Children and Young Peoples Services,Head of Education and Skills,Transport,230008,Contract Hire,07/06/2018,3446699-IR1805002/MAY,640.00,I & R EXECUTIVE TRAVEL.
Children and Young Peoples Services,Head of Education and Skills,Transport,230008,Contract Hire,07/06/2018,3446699-IR1805003,"1,710.00",I & R EXECUTIVE TRAVEL.
Regeneration and Local Services,Technical Services,Third Party Payments 4THIRD,430128,Rendered by Private Contractors,07/06/2018,3446700-12,"1,138.00",IAN WILSON.
Regeneration and Local Services,Technical Services,Third Party Payments 4THIRD,430128,Rendered by Private Contractors,07/06/2018,3446700-13,"2,103.00",IAN WILSON.
Regeneration and Local Services,Technical Services,Third Party Payments 4THIRD,430128,Rendered by Private Contractors,07/06/2018,3446700-14,"7,513.00",IAN WILSON.
Children and Young Peoples Services,Head of Education and Skills,Transport,230006,Contract Hire,07/06/2018,3446705-F733I,"1,120.00",JAFFAS TAXIS.
Children and Young Peoples Services,Head of Education and Skills,Transport,230008,Contract Hire,07/06/2018,3446705-A088I,"1,260.00",JAFFAS TAXIS.
Children and Young Peoples Services,Head of Education and Skills,Transport,230007,Contract Hire,07/06/2018,3446707-1310,"1,260.00",JDS PRIVATE HIRE DURHAM.
Children and Young Peoples Services,Head of Education and Skills,Transport,230007,Contract Hire,07/06/2018,3446707-1311,936.00,JDS PRIVATE HIRE DURHAM.
Children and Young Peoples Services,Head of Education and Skills,Transport,230007,Contract Hire,07/06/2018,3446707-1312,"1,080.00",JDS PRIVATE HIRE DURHAM.
Dedicated Schools Grant,DSG High Needs Block,Transport,230010,Contract Hire,07/06/2018,3446707-1323,864.00,JDS PRIVATE HIRE DURHAM.
Children and Young Peoples Services,Head of Education and Skills,Transport,230012,Contract Hire,07/06/2018,3446707-1320,"1,206.00",JDS PRIVATE HIRE DURHAM.
Children and Young Peoples Services,Head of Education and Skills,Transport,230016,Contract Hire,07/06/2018,3446707-1321,"1,116.00",JDS PRIVATE HIRE DURHAM.
Children and Young Peoples Services,Head of Education and Skills,Transport,230008,Contract Hire,07/06/2018,3446707-1309,"2,340.00",JDS PRIVATE HIRE DURHAM.
Children and Young Peoples Services,Head of Education and Skills,Transport,230008,Contract Hire,07/06/2018,3446707-1313,"1,398.00",JDS PRIVATE HIRE DURHAM.
Children and Young Peoples Services,Head of Education and Skills,Transport,230008,Contract Hire,07/06/2018,3446707-1314,"1,800.00",JDS PRIVATE HIRE DURHAM.
Children and Young Peoples Services,Head of Education and Skills,Transport,230008,Contract Hire,07/06/2018,3446707-1316,"1,044.00",JDS PRIVATE HIRE DURHAM.
Children and Young Peoples Services,Head of Education and Skills,Transport,230008,Contract Hire,07/06/2018,3446707-1317,"1,368.00",JDS PRIVATE HIRE DURHAM.
Children and Young Peoples Services,Head of Education and Skills,Transport,230008,Contract Hire,07/06/2018,3446707-1318,"1,368.00",JDS PRIVATE HIRE DURHAM.
Children and Young Peoples Services,Head of Education and Skills,Transport,230008,Contract Hire,07/06/2018,3446707-1319,"1,242.00",JDS PRIVATE HIRE DURHAM.
Children and Young Peoples Services,Head of Education and Skills,Transport,230008,Contract Hire,07/06/2018,3446707-1322,"1,656.00",JDS PRIVATE HIRE DURHAM.
Children and Young Peoples Services,Head of Education and Skills,Transport,230008,Contract Hire,07/06/2018,3446707-1324,"2,860.00",JDS PRIVATE HIRE DURHAM.
Adult and Health Services,Head of Adults,Transport,230005,Contract Hire,07/06/2018,3446707-1325,980.00,JDS PRIVATE HIRE DURHAM.
Adult and Health Services,Head of Adults,Transport,230005,Contract Hire,07/06/2018,3446713-01052018,900.00,JOHN HUBBLE T/A HUBB`S TAXIS.
Children and Young Peoples Services,Head of Education and Skills,Transport,230008,Contract Hire,07/06/2018,3446718-09-MAY18,"1,530.00",KD TAXIS.
Children and Young Peoples Services,Head of Education and Skills,Transport,230008,Contract Hire,07/06/2018,3446718-09-N058,"4,000.00",KD TAXIS.
Children and Young Peoples Services,Head of Education and Skills,Transport,230008,Contract Hire,07/06/2018,3446719-011-A019MAY18,"2,063.50",KDH TAXIS.
Children and Young Peoples Services,Head of Education and Skills,Transport,230008,Contract Hire,07/06/2018,3446724-2A-MAY,"2,160.00",L & R PRIVATE HIRE.
Children and Young Peoples Services,Head of Education and Skills,Transport,230006,Contract Hire,07/06/2018,3446728-1160-A049,"1,267.00",LD TAXIS.
Adult and Health Services,Head of Adults,Transport,230005,Contract Hire,07/06/2018,3446728-1159,"1,260.00",LD TAXIS.
Children and Young Peoples Services,Head of Education and Skills,Transport,230007,Contract Hire,07/06/2018,3446730-5223/4010,"5,400.00",LEE`S COACHES LTD.
Children and Young Peoples Services,Head of Education and Skills,Transport,230007,Contract Hire,07/06/2018,3446730-5223/4226,"3,600.00",LEE`S COACHES LTD.
Children and Young Peoples Services,Head of Education and Skills,Transport,230007,Contract Hire,07/06/2018,3446730-5223/4227,"2,610.00",LEE`S COACHES LTD.
Children and Young Peoples Services,Head of Education and Skills,Transport,230008,Contract Hire,07/06/2018,3446731-219,720.00,LEE`S TAXIS (SACRISTON).
Children and Young Peoples Services,Head of Education and Skills,Transport,230008,Contract Hire,07/06/2018,3446731-220,"1,802.50",LEE`S TAXIS (SACRISTON).
Children and Young Peoples Services,Head of Education and Skills,Transport,230008,Contract Hire,07/06/2018,3446731-221,"1,027.00",LEE`S TAXIS (SACRISTON).
Children and Young Peoples Services,Head of Education and Skills,Transport,230008,Contract Hire,07/06/2018,3446735-3803,"1,879.80",LINCAB TAXIS.
Children and Young Peoples Services,Head of Education and Skills,Transport,230008,Contract Hire,07/06/2018,3446736-3941-APRIL,836.00,LOCAL TRANSPORT LTD.
Children and Young Peoples Services,Head of Education and Skills,Transport,230008,Contract Hire,07/06/2018,3446736-3941-MAY,"1,368.00",LOCAL TRANSPORT LTD.
Children and Young Peoples Services,Head of Education and Skills,Transport,230008,Contract Hire,07/06/2018,3446736-3942-APRIL,858.00,LOCAL TRANSPORT LTD.
Children and Young Peoples Services,Head of Education and Skills,Transport,230008,Contract Hire,07/06/2018,3446736-3942-MAY,"1,404.00",LOCAL TRANSPORT LTD.
Children and Young Peoples Services,Head of Education and Skills,Transport,230008,Contract Hire,07/06/2018,3446736-APRIL-3944,814.00,LOCAL TRANSPORT LTD.
Children and Young Peoples Services,Head of Education and Skills,Transport,230008,Contract Hire,07/06/2018,3446736-MAY-3944,"1,992.00",LOCAL TRANSPORT LTD.
Regeneration and Local Services,Direct Services,Supplies and Services,304221,Equipment and Materials,07/06/2018,3446737-4235128,"2,700.00",LONDON GENERAL SALES LTD.
Resources,Finance & Transactional Services,Supplies and Services,384180,Miscellaneous Expenses,07/06/2018,3446738-0136778,"5,866.62",LOOMIS UK LTD.
Children and Young Peoples Services,Head of Education and Skills,Transport,230008,Contract Hire,07/06/2018,3446742-19,"1,332.00",M&C`S CABS LTD.
Children and Young Peoples Services,Head of Education and Skills,Transport,230006,Contract Hire,07/06/2018,3446745-INV05/1813,"2,005.00",MARK & JOHN CHISHOLM T/A (CHEVRON).
Dedicated Schools Grant,DSG High Needs Block,Transport,230010,Contract Hire,07/06/2018,3446745-INV-05/1803,"2,854.00",MARK & JOHN CHISHOLM T/A (CHEVRON).
Dedicated Schools Grant,DSG High Needs Block,Transport,230010,Contract Hire,07/06/2018,3446745-INV05/1814,"2,348.00",MARK & JOHN CHISHOLM T/A (CHEVRON).
Children and Young Peoples Services,Head of Education and Skills,Transport,230008,Contract Hire,07/06/2018,3446745-INV05/1805,"1,125.00",MARK & JOHN CHISHOLM T/A (CHEVRON).
Children and Young Peoples Services,Head of Education and Skills,Transport,230012,Contract Hire,07/06/2018,3446747-000023,"2,160.00",MARK HUSBAND T/A TEAK`S TAXIS.
Children and Young Peoples Services,Head of Education and Skills,Transport,230008,Contract Hire,07/06/2018,3446748-KW857-S011,"1,110.00",MARK O`NEILL T/A KWIK CABS.
Children and Young Peoples Services,Head of Education and Skills,Transport,230008,Contract Hire,07/06/2018,3446748-KW858,690.00,MARK O`NEILL T/A KWIK CABS.
Children and Young Peoples Services,Head of Education and Skills,Transport,230008,Contract Hire,07/06/2018,3446748-KW858-MAY18,900.00,MARK O`NEILL T/A KWIK CABS.
Adult and Health Services,Head of Adults,Transport,230005,Contract Hire,07/06/2018,3446748-KW860,630.00,MARK O`NEILL T/A KWIK CABS.
Children and Young Peoples Services,Head of Education and Skills,Transport,230008,Contract Hire,07/06/2018,3446750-MCD37252,"1,743.00",MCDONALD TRAVEL.
Children and Young Peoples Services,Head of Education and Skills,Transport,230008,Contract Hire,07/06/2018,3446750-MCD37254,"1,332.00",MCDONALD TRAVEL.
Children and Young Peoples Services,Head of Education and Skills,Transport,230007,Contract Hire,07/06/2018,3446753-0137,"1,008.00",MICKS TAXIS - MURTON.
Children and Young Peoples Services,Head of Education and Skills,Transport,230007,Contract Hire,07/06/2018,3446753-0143,608.00,MICKS TAXIS - MURTON.
Children and Young Peoples Services,Head of Education and Skills,Transport,230016,Contract Hire,07/06/2018,3446753-0136,"1,620.00",MICKS TAXIS - MURTON.
Children and Young Peoples Services,Head of Education and Skills,Transport,230007,Contract Hire,07/06/2018,3446754-13,"1,080.00",MILLIE`S TAXIS.
Children and Young Peoples Services,Head of Education and Skills,Transport,230012,Contract Hire,07/06/2018,3446758-KDC-010518,"2,070.00",MJ TIMNEY T/A KDC & C&M TAXIS.
Children and Young Peoples Services,Head of Education and Skills,Transport,230006,Contract Hire,07/06/2018,3446759-799,"1,980.00",MOLLYS TAXIS.
Children and Young Peoples Services,Head of Education and Skills,Transport,230008,Contract Hire,07/06/2018,3446759-796-B,"1,728.00",MOLLYS TAXIS.
Children and Young Peoples Services,Head of Education and Skills,Transport,230008,Contract Hire,07/06/2018,3446759-797,"2,160.00",MOLLYS TAXIS.
Children and Young Peoples Services,Head of Education and Skills,Transport,230008,Contract Hire,07/06/2018,3446759-798,"1,980.00",MOLLYS TAXIS.
Children and Young Peoples Services,Head of Education and Skills,Transport,230008,Contract Hire,07/06/2018,3446760-CEW49,"1,530.00",MOOR PRIVATE HIRE.
Children and Young Peoples Services,Head of Education and Skills,Transport,230006,Contract Hire,07/06/2018,3446761-0002-A043MAY18,547.20,MR A MILLWARD T/A SWISS CABS PRIVATE HIRE.
Children and Young Peoples Services,Head of Education and Skills,Transport,230007,Contract Hire,07/06/2018,3446762-917,"1,566.00",MR AD HOWARD T/A TOFT HILL TAXIS.
Dedicated Schools Grant,DSG High Needs Block,Transport,230010,Contract Hire,07/06/2018,3446763-B018-7,535.00,MR ALAN CARR FEATONBY T/A ALAN`S LUXURY PRIVATE HIRE.
Children and Young Peoples Services,Head of Education and Skills,Transport,230012,Contract Hire,07/06/2018,3446764-GP05-18,698.40,MR CT WALKER T/A CW TAXIS.
Children and Young Peoples Services,Head of Education and Skills,Transport,230008,Contract Hire,07/06/2018,3446764-EL105-18,"1,056.60",MR CT WALKER T/A CW TAXIS.
Children and Young Peoples Services,Head of Education and Skills,Transport,230008,Contract Hire,07/06/2018,3446764-EL205-18,"1,339.65",MR CT WALKER T/A CW TAXIS.
Children and Young Peoples Services,Head of Education and Skills,Transport,230009,Contract Hire,07/06/2018,3446765-133,690.00,MR DAVID CULLEN T/A JED`S TAXIS.
Children and Young Peoples Services,Head of Education and Skills,Transport,230006,Contract Hire,07/06/2018,3446766-0185,"1,580.00",MR DEREK HENDERSON.
Dedicated Schools Grant,DSG High Needs Block,Transport,230010,Contract Hire,07/06/2018,3446767-3A-B025,927.50,MR G FREELAND T/A HUNWICK CARS.
Children and Young Peoples Services,Head of Education and Skills,Transport,230008,Contract Hire,07/06/2018,3446767-Z13,"1,560.00",MR G FREELAND T/A HUNWICK CARS.
Children and Young Peoples Services,Head of Education and Skills,Transport,230007,Contract Hire,07/06/2018,3446768-154-02-27,882.00,MR GS ANDERSON.
Children and Young Peoples Services,Head of Education and Skills,Transport,230008,Contract Hire,07/06/2018,3446768-153-01-26,"1,305.00",MR GS ANDERSON.
Dedicated Schools Grant,DSG High Needs Block,Transport,230010,Contract Hire,07/06/2018,3446770-KDK/MAY18,"1,246.00",MR IAN KELSEY T/A KDK TAXIS.
Dedicated Schools Grant,DSG High Needs Block,Transport,230010,Contract Hire,07/06/2018,3446771-99,"1,700.00",MR JOHN KNIGHTON T/A JK TAXIS.
Children and Young Peoples Services,Head of Education and Skills,Transport,230008,Contract Hire,07/06/2018,3446771-98,"1,350.00",MR JOHN KNIGHTON T/A JK TAXIS.
Adult and Health Services,Head of Adults,Transport,230005,Contract Hire,07/06/2018,3446771-67,"1,440.00",MR JOHN KNIGHTON T/A JK TAXIS.
Adult and Health Services,Head of Adults,Transport,230005,Contract Hire,07/06/2018,3446772-201819,700.00,MR JR FORT T/A JRF TAXIS.
Adult and Health Services,Head of Adults,Transport,230005,Contract Hire,07/06/2018,3446772-201820,504.00,MR JR FORT T/A JRF TAXIS.
Children and Young Peoples Services,Head of Education and Skills,Transport,230012,Contract Hire,07/06/2018,3446774-068,"1,368.00",MR LJ TARRY T/A TARRY`S TAXI`S.
Children and Young Peoples Services,Head of Education and Skills,Transport,230012,Contract Hire,07/06/2018,3446775-013,"1,476.00",MR NEIL LEONARD T/A LENNY`S TAXIS.
Adult and Health Services,Head of Adults,Transport,230005,Contract Hire,07/06/2018,3446775-012,"1,125.00",MR NEIL LEONARD T/A LENNY`S TAXIS.
Children and Young Peoples Services,Head of Education and Skills,Transport,230012,Contract Hire,07/06/2018,3446776-96,900.00,MR NORMAN STEVENSON T/A EXTREME TAXI`S.
Children and Young Peoples Services,Head of Education and Skills,Transport,230008,Contract Hire,07/06/2018,3446776-94,510.00,MR NORMAN STEVENSON T/A EXTREME TAXI`S.
Children and Young Peoples Services,Head of Education and Skills,Transport,230008,Contract Hire,07/06/2018,3446776-95,900.00,MR NORMAN STEVENSON T/A EXTREME TAXI`S.
Children and Young Peoples Services,Head of Education and Skills,Transport,230012,Contract Hire,07/06/2018,3446777-1630,"1,062.00",MR PETER YOUNG.
Children and Young Peoples Services,Head of Education and Skills,Transport,230008,Contract Hire,07/06/2018,3446778-3025,"2,345.00",MR S BOWERS T/A DH7 TAXIS.
Children and Young Peoples Services,Head of Education and Skills,Transport,230008,Contract Hire,07/06/2018,3446778-3026,"1,728.00",MR S BOWERS T/A DH7 TAXIS.
Adult and Health Services,Head of Adults,Transport,230005,Contract Hire,07/06/2018,3446778-3027,"2,037.00",MR S BOWERS T/A DH7 TAXIS.
Children and Young Peoples Services,Head of Education and Skills,Transport,230007,Contract Hire,07/06/2018,3446780-ESH0518,540.00,MR STUART SCOTT T/A AIRPORT CARS DURHAM
Children and Young Peoples Services,Head of Education and Skills,Transport,230006,Contract Hire,07/06/2018,3446780-HOUGH0518,"1,116.00",MR STUART SCOTT T/A AIRPORT CARS DURHAM
Dedicated Schools Grant,DSG High Needs Block,Transport,230010,Contract Hire,07/06/2018,3446780-TW0518,714.00,MR STUART SCOTT T/A AIRPORT CARS DURHAM
Regeneration and Local Services,Technical Services,Supplies and Services,304221,Equipment and Materials,07/06/2018,3446783-0000069279,"2,033.04",NAL LTD.
Regeneration and Local Services,Direct Services,Transport,230005,Contract Hire,07/06/2018,3446794-SL04981155INV,585.20,NORTHGATE VEHICLE HIRE LTD.
Regeneration and Local Services,Economic Development and Housing,Premises,135005,Water Services,07/06/2018,3446795-2003171212,"7,462.46",NORTHUMBRIAN WATER LTD.
Regeneration and Local Services,Economic Development and Housing,Premises,135005,Water Services,07/06/2018,3446795-2003180115,"2,157.27",NORTHUMBRIAN WATER LTD.
Regeneration and Local Services,Economic Development and Housing,Premises,135005,Water Services,07/06/2018,3446795-2003180216,"7,275.18",NORTHUMBRIAN WATER LTD.
Regeneration and Local Services,Economic Development and Housing,Premises,120009,Energy Costs,07/06/2018,3446796-NN074WS4,"1,898.08",NPOWER.
Regeneration and Local Services,Economic Development and Housing,Premises,120009,Energy Costs,07/06/2018,3446796-NNO74WS3,"9,507.56",NPOWER.
Regeneration and Local Services,Economic Development and Housing,Premises,120009,Energy Costs,07/06/2018,3446796-NNO74WS5,"2,071.54",NPOWER.
Regeneration and Local Services,Economic Development and Housing,Premises,120009,Energy Costs,07/06/2018,3446796-NNO74WS8,"1,107.65",NPOWER.
Regeneration and Local Services,Economic Development and Housing,Premises,120009,Energy Costs,07/06/2018,3446796-NNO74WSY,"4,648.09",NPOWER.
Regeneration and Local Services,Economic Development and Housing,Premises,120009,Energy Costs,07/06/2018,3446796-NNO74WSZ,"1,387.61",NPOWER.
Regeneration and Local Services,Economic Development and Housing,Premises,120009,Energy Costs,07/06/2018,3446796-NNO74WTC,"1,154.72",NPOWER.
Regeneration and Local Services,Economic Development and Housing,Premises,120009,Energy Costs,07/06/2018,3446796-NNO74WTG,868.48,NPOWER.
Regeneration and Local Services,Economic Development and Housing,Premises,135005,Water Services,07/06/2018,3446797-4869947,"1,002.02",NWG BUSINESS LTD (NORTHUMBRIAN WATER GROUP).
Regeneration and Local Services,Direct Services,Transport,215005,Running Costs of Vehicles,07/06/2018,3446798-326978,"15,226.50",OIL NRG LTD.
Regeneration and Local Services,Direct Services,Transport,215005,Running Costs of Vehicles,07/06/2018,3446798-328911,"13,543.00",OIL NRG LTD.
Resources,Digital and Customer Services,Supplies and Services,342051,Computers and Communications,07/06/2018,3446801-1579458,"578,091.67",ORACLE CORPORATION UK LTD.
Resources,Digital and Customer Services,Supplies and Services,342051,Computers and Communications,07/06/2018,3446801-1651973,"60,000.00",ORACLE CORPORATION UK LTD.
Children and Young Peoples Services,Head of Education and Skills,Transport,230007,Contract Hire,07/06/2018,3446802-7401,"1,665.00",OVERLANDER LTD.
Children and Young Peoples Services,Head of Education and Skills,Transport,230008,Contract Hire,07/06/2018,3446802-7402,"1,609.20",OVERLANDER LTD.
Children and Young Peoples Services,Head of Education and Skills,Transport,230007,Contract Hire,07/06/2018,3446807-1641-MAY,"1,980.00",PAUL WATSON TRAVEL.
Children and Young Peoples Services,Head of Education and Skills,Transport,230007,Contract Hire,07/06/2018,3446807-1642,"2,160.00",PAUL WATSON TRAVEL.
Children and Young Peoples Services,Head of Education and Skills,Transport,230007,Contract Hire,07/06/2018,3446807-1643,"1,980.00",PAUL WATSON TRAVEL.
Children and Young Peoples Services,Head of Education and Skills,Transport,230008,Contract Hire,07/06/2018,3446812-0650,"1,281.60",PETER`S PRIVATE HIRE/PETER BEST.
Adult and Health Services,Head of Adults,Transport,230005,Contract Hire,07/06/2018,3446812-0648,966.00,PETER`S PRIVATE HIRE/PETER BEST.
Children and Young Peoples Services,Head of Education and Skills,Transport,230007,Contract Hire,07/06/2018,3446813-3350-MAY18,792.00,PETER`S TAXIS.
Adult and Health Services,Head of Adults,Transport,230005,Contract Hire,07/06/2018,3446813-EAS153-MAY18,600.00,PETER`S TAXIS.
Dedicated Schools Grant,DSG High Needs Block,Transport,230010,Contract Hire,07/06/2018,3446810-582,"1,885.00",PETERLEE EXECUTIVE CARS.
Children and Young Peoples Services,Head of Education and Skills,Transport,230008,Contract Hire,07/06/2018,3446810-581,"1,080.00",PETERLEE EXECUTIVE CARS.
Children and Young Peoples Services,Head of Education and Skills,Transport,230008,Contract Hire,07/06/2018,3446810-583,576.00,PETERLEE EXECUTIVE CARS.
Children and Young Peoples Services,Head of Education and Skills,Transport,230008,Contract Hire,07/06/2018,3446814-812-E003,"1,695.75",PG TRIPS.
Children and Young Peoples Services,Head of Education and Skills,Transport,230008,Contract Hire,07/06/2018,3446814-812-M014,"1,517.25",PG TRIPS.
Children and Young Peoples Services,Head of Education and Skills,Transport,230008,Contract Hire,07/06/2018,3446815-02,"1,246.00",PHILS TAXIS.
Children and Young Peoples Services,Head of Education and Skills,Transport,230006,Contract Hire,07/06/2018,3446816-24497,"1,260.00",PHOENIX TAXIS T/A PRATT`S TAXIS.
Children and Young Peoples Services,Head of Education and Skills,Transport,230012,Contract Hire,07/06/2018,3446816-24499,792.00,PHOENIX TAXIS T/A PRATT`S TAXIS.
Dedicated Schools Grant,DSG High Needs Block,Supplies and Services,304259,Equipment and Materials,07/06/2018,3446817-2592067316,"15,470.00",PHONAK UK LTD.
Regeneration and Local Services,Direct Services,Supplies and Services,304221,Equipment and Materials,07/06/2018,3446821-INV227126,515.28,POINTER FIRE LTD.
Children and Young Peoples Services,Head of Education and Skills,Transport,230008,Contract Hire,07/06/2018,3446823-E9,"2,052.00",PRESTYS HACKNEY & PRIVATE HIRE TAXIS.
Children and Young Peoples Services,Head of Education and Skills,Transport,230007,Contract Hire,07/06/2018,3446827-09A-4005,"3,636.00",RAYNERS COACHES.
Children and Young Peoples Services,Head of Education and Skills,Transport,230007,Contract Hire,07/06/2018,3446827-62A,"1,152.00",RAYNERS COACHES.
Children and Young Peoples Services,Head of Education and Skills,Transport,230007,Contract Hire,07/06/2018,3446827-62C,"2,088.00",RAYNERS COACHES.
Children and Young Peoples Services,Head of Education and Skills,Transport,230008,Contract Hire,07/06/2018,3446827-09A,"1,424.00",RAYNERS COACHES.
Children and Young Peoples Services,Head of Education and Skills,Transport,230016,Contract Hire,07/06/2018,3446832-3112,684.00,RICHIES TAXIS.
Children and Young Peoples Services,Head of Education and Skills,Transport,230008,Contract Hire,07/06/2018,3446837-216,"1,869.00",ROBBIE`S PRIVATE HIRE.
Children and Young Peoples Services,Head of Education and Skills,Transport,230007,Contract Hire,07/06/2018,3446838-171028,"2,475.00",ROBERTS TOURS.
Children and Young Peoples Services,Head of Education and Skills,Transport,230007,Contract Hire,07/06/2018,3446838-171029,"2,065.50",ROBERTS TOURS.
Children and Young Peoples Services,Head of Education and Skills,Transport,230007,Contract Hire,07/06/2018,3446838-171030,"2,610.00",ROBERTS TOURS.
Adult and Health Services,Head of Adults,Transport,230005,Contract Hire,07/06/2018,3446839-33,688.50,ROUTE 1.
Children and Young Peoples Services,Head of Education and Skills,Transport,230007,Contract Hire,07/06/2018,3446840-ROXDCC43,"1,962.00",ROXBYS BUS HIRE.
Resources,Finance & Transactional Services,Supplies and Services,340001,Postages E340,07/06/2018,3446841-9056526927,"20,739.90",ROYAL MAIL GROUP PLC.
Resources,Digital and Customer Services,Supplies and Services,340001,Postages E340,07/06/2018,3446841-9056563545,"9,826.00",ROYAL MAIL GROUP PLC.
Children and Young Peoples Services,Head of Education and Skills,Transport,230007,Contract Hire,07/06/2018,3446844-2012/04,"1,800.00",S & S TRAVEL LTD.
Children and Young Peoples Services,Head of Education and Skills,Transport,230003,Contract Hire,07/06/2018,3446844-3208/20,"1,602.00",S & S TRAVEL LTD.
Children and Young Peoples Services,Head of Education and Skills,Transport,230006,Contract Hire,07/06/2018,3446844-F725/09,"1,800.00",S & S TRAVEL LTD.
Children and Young Peoples Services,Head of Education and Skills,Transport,230008,Contract Hire,07/06/2018,3446844-S017/20,"1,512.00",S & S TRAVEL LTD.
Children and Young Peoples Services,Head of Education and Skills,Transport,230008,Contract Hire,07/06/2018,3446844-S020/09,"1,710.00",S & S TRAVEL LTD.
Children and Young Peoples Services,Head of Education and Skills,Transport,230008,Contract Hire,07/06/2018,3446844-W048/20,"1,602.00",S & S TRAVEL LTD.
Children and Young Peoples Services,Head of Education and Skills,Transport,230008,Contract Hire,07/06/2018,3446844-W052/20-MAY18,"1,710.00",S & S TRAVEL LTD.
Children and Young Peoples Services,Head of Education and Skills,Transport,230008,Contract Hire,07/06/2018,3446844-W056/20,"1,512.00",S & S TRAVEL LTD.
Regeneration and Local Services,Direct Services,Premises,145009,Cleaning and Domestic Supplies,07/06/2018,3446845-5969502,704.57,SAFETY KLEEN UK LTD.
Children and Young Peoples Services,Head of Education and Skills,Transport,230008,Contract Hire,07/06/2018,3446854-74194,"1,254.00",SHOTTON PRIVATE HIRE.
Children and Young Peoples Services,Head of Education and Skills,Transport,230012,Contract Hire,07/06/2018,3446857-615A,"2,160.00",SJ MACKENZIE T/A SCOTTS TAXIS.
Children and Young Peoples Services,Head of Education and Skills,Transport,230008,Contract Hire,07/06/2018,3446857-610A,"1,440.00",SJ MACKENZIE T/A SCOTTS TAXIS.
Children and Young Peoples Services,Head of Education and Skills,Transport,230008,Contract Hire,07/06/2018,3446859-DEB932149,"1,840.00",SPENNYMOOR TAXIS.
Children and Young Peoples Services,Head of Education and Skills,Transport,230008,Contract Hire,07/06/2018,3446859-JJD733214,"1,800.00",SPENNYMOOR TAXIS.
Children and Young Peoples Services,Head of Education and Skills,Transport,230008,Contract Hire,07/06/2018,3446859-TKA099214,"1,260.00",SPENNYMOOR TAXIS.
Children and Young Peoples Services,Head of Education and Skills,Transport,230007,Contract Hire,07/06/2018,3446870-007-MAY,676.40,SUSAN`S CARS.
Children and Young Peoples Services,Head of Education and Skills,Transport,230007,Contract Hire,07/06/2018,3446872-245SB,"1,440.00",T MOORE & SON.
Children and Young Peoples Services,Head of Education and Skills,Transport,230003,Contract Hire,07/06/2018,3446872-247SA,"1,242.00",T MOORE & SON.
Children and Young Peoples Services,Head of Education and Skills,Transport,230008,Contract Hire,07/06/2018,3446872-246OS,"1,520.10",T MOORE & SON.
Children and Young Peoples Services,Head of Education and Skills,Transport,230007,Contract Hire,07/06/2018,3446873-1528,540.00,TALBOTS TAXIS.
Children and Young Peoples Services,Head of Education and Skills,Transport,230008,Contract Hire,07/06/2018,3446873-1525-A127MAY18,840.00,TALBOTS TAXIS.
Children and Young Peoples Services,Head of Education and Skills,Transport,230008,Contract Hire,07/06/2018,3446873-1530,"1,576.00",TALBOTS TAXIS.
Children and Young Peoples Services,Head of Education and Skills,Transport,230016,Contract Hire,07/06/2018,3446874-B946,"1,370.00",TALBOTS TRAVEL LTD.
Children and Young Peoples Services,Head of Education and Skills,Transport,230008,Contract Hire,07/06/2018,3446874-B945,"1,296.00",TALBOTS TRAVEL LTD.
Children and Young Peoples Services,Head of Education and Skills,Transport,230009,Contract Hire,07/06/2018,3446876-006,"1,425.00",TAXZ.
Children and Young Peoples Services,Head of Education and Skills,Transport,230008,Contract Hire,07/06/2018,3446878-DCC/2018/024,"1,440.00",TAYLOR`S TAXIS.
Regeneration and Local Services,Direct Services,Third Party Payments 4THIRD,430103,Rendered by Private Contractors,07/06/2018,3446881-NEI-EXP-06-2018-002,"19,013.80",TEESDALE CONSERVATION VOLUNTEERS.
Adult and Health Services,Head of Adults,Transport,230005,Contract Hire,07/06/2018,3446884-191,838.00,THE TAXI COMPANY (MURTON) LTD.
Children and Young Peoples Services,Head of Education and Skills,Transport,230006,Contract Hire,07/06/2018,3446886-0001971,840.00,TONY RIDLEY T/A COLORS TAXIS LTD.
Children and Young Peoples Services,Head of Education and Skills,Transport,230007,Contract Hire,07/06/2018,3446889-030518,540.00,TRANSPORT.ADVENTURE.XI.
Dedicated Schools Grant,DSG High Needs Block,Transport,230010,Contract Hire,07/06/2018,3446890-26021,"1,172.00",TRAVEL 6.
Dedicated Schools Grant,DSG High Needs Block,Transport,230010,Contract Hire,07/06/2018,3446890-27019,"1,099.00",TRAVEL 6.
Dedicated Schools Grant,DSG High Needs Block,Transport,230010,Contract Hire,07/06/2018,3446890-30009,"1,014.00",TRAVEL 6.
Regeneration and Local Services,Spatial Policy Planning Assets & Environment,Supplies and Services,338066,Services,07/06/2018,3446895-593,"1,480.00",TW KRISTENSEN.
Regeneration and Local Services,Technical Services,Supplies and Services,304221,Equipment and Materials,07/06/2018,3446897-186340,634.40,TYNEDALE ROADSTONE LTD.
Regeneration and Local Services,Technical Services,Supplies and Services,304221,Equipment and Materials,07/06/2018,3446897-186803,"1,106.75",TYNEDALE ROADSTONE LTD.
Regeneration and Local Services,Technical Services,Supplies and Services,304221,Equipment and Materials,07/06/2018,3446897-186855,"1,106.75",TYNEDALE ROADSTONE LTD.
Regeneration and Local Services,Direct Services,Third Party Payments 4THIRD,430105,Rendered by Private Contractors,07/06/2018,3446902-PREVIEW6561360,"2,361.06",VEOLIA ENVIRONMENTAL SERVICES ES (UK) LTD.
Children and Young Peoples Services,Head of Education and Skills,Transport,230008,Contract Hire,07/06/2018,3446905-0001945-W085,"1,275.00",WATSON OF SPENNYMOOR.
Children and Young Peoples Services,Head of Education and Skills,Transport,230008,Contract Hire,07/06/2018,3446906-1138-W049MAY18,"2,160.00",WAYNE`S TAXIS.
Adult and Health Services,Head of Adults,Transport,230005,Contract Hire,07/06/2018,3446906-1140-EAS065MAY18,500.00,WAYNE`S TAXIS.
Children and Young Peoples Services,Head of Education and Skills,Transport,230007,Contract Hire,07/06/2018,3446907-5235/02,720.00,WAYSIDE TAXIS.
Children and Young Peoples Services,Head of Education and Skills,Transport,230007,Contract Hire,07/06/2018,3446907-5236/02,648.00,WAYSIDE TAXIS.
Children and Young Peoples Services,Head of Education and Skills,Transport,230006,Contract Hire,07/06/2018,3446907-F688/01,720.00,WAYSIDE TAXIS.
Children and Young Peoples Services,Head of Education and Skills,Transport,230012,Contract Hire,07/06/2018,3446907-N100/28,"1,710.00",WAYSIDE TAXIS.
Children and Young Peoples Services,Head of Education and Skills,Transport,230008,Contract Hire,07/06/2018,3446907-A011/01MAY,"1,830.00",WAYSIDE TAXIS.
Children and Young Peoples Services,Head of Education and Skills,Transport,230008,Contract Hire,07/06/2018,3446907-A128/28,"1,350.00",WAYSIDE TAXIS.
Children and Young Peoples Services,Head of Education and Skills,Transport,230008,Contract Hire,07/06/2018,3446907-E032/05,"1,890.00",WAYSIDE TAXIS.
Children and Young Peoples Services,Head of Education and Skills,Transport,230008,Contract Hire,07/06/2018,3446907-N055/09,"1,980.00",WAYSIDE TAXIS.
Children and Young Peoples Services,Head of Education and Skills,Transport,230008,Contract Hire,07/06/2018,3446907-N222/02,"1,980.00",WAYSIDE TAXIS.
Children and Young Peoples Services,Head of Education and Skills,Transport,230008,Contract Hire,07/06/2018,3446907-S025/08,"1,890.00",WAYSIDE TAXIS.
Adult and Health Services,Head of Adults,Transport,230005,Contract Hire,07/06/2018,3446907-DM177/09,720.00,WAYSIDE TAXIS.
Adult and Health Services,Head of Adults,Transport,230005,Contract Hire,07/06/2018,3446907-NCL017/09,"2,370.00",WAYSIDE TAXIS.
Children and Young Peoples Services,Head of Education and Skills,Transport,230003,Contract Hire,07/06/2018,3446908-STJOHN/MAY18,"2,502.00",WEARDALE MOTOR SERVICES LTD.
Children and Young Peoples Services,Head of Education and Skills,Transport,230003,Contract Hire,07/06/2018,3446908-STJOHN/MAY18/3223,"5,004.00",WEARDALE MOTOR SERVICES LTD.
Children and Young Peoples Services,Head of Education and Skills,Transport,230008,Contract Hire,07/06/2018,3446908-W059/05/18,"2,880.00",WEARDALE MOTOR SERVICES LTD.
Regeneration and Local Services,Transport and Contracted Services,Third Party Payments 4THIRD,430106,Rendered by Private Contractors,07/06/2018,3446908-1491,"31,428.88",WEARDALE MOTOR SERVICES LTD.
Adult and Health Services,Head of Adults,Transport,230005,Contract Hire,07/06/2018,3446909-6085,526.50,WEARDALE PRIVATE HIRE.
Children and Young Peoples Services,Head of Education and Skills,Transport,230006,Contract Hire,07/06/2018,3446911-1805,621.00,WEST AUCKLAND TOWN TRAVEL (WATT).
Adult and Health Services,Head of Adults,Transport,230005,Contract Hire,07/06/2018,3446911-0518,540.00,WEST AUCKLAND TOWN TRAVEL (WATT).
Transformation and Partnerships,Partnerships & Community Engagement Div.,Cap Exp on Grants & Other Financial Assistance (REFCUS),918004,Contributions to other bodies 918004,07/06/2018,3446912-VOUCHER17NB-4TOG020,"1,118.99",WEST CORNFORTH COMMUNITY ASSOCIATION.
Regeneration and Local Services,Technical Services,Stock A926,926900,Stock in hand-Inventory system,07/06/2018,3446914-52289054,"1,150.22",WOLSELEY UK LTD.
Children and Young Peoples Services,Head of Childrens Social Care,Transport,230005,Contract Hire,08/06/2018,3446920-M49/ZE,"1,760.00",AABAT TAXIS.
Regeneration and Local Services,Direct Services,Premises,106082,Centrally Controlled Rep and Maint,08/06/2018,3446941-INV-8365,644.98,BIOMASS BOILER SERVICES LTD.
Children and Young Peoples Services,Head of Education and Skills,Transport,230008,Contract Hire,08/06/2018,3446943-7017,"2,277.00",BOBBY DOVE.
Regeneration and Local Services,Technical Services,Stock A926,926004,Stock,08/06/2018,3446965-400007777A,"9,540.09",CLEVELAND POTASH LTD T/A ICL FERTILIZERS.
Regeneration and Local Services,Technical Services,Stock A926,926004,Stock,08/06/2018,3446965-400008866,"12,577.32",CLEVELAND POTASH LTD T/A ICL FERTILIZERS.
Children and Young Peoples Services,Head of Childrens Social Care,Transport,230005,Contract Hire,08/06/2018,3446966-CLUB1816M,510.00,CLUBMAN CABS.
Regeneration and Local Services,Technical Services,Third Party Payments 4THIRD,430100,Rendered by Private Contractors,08/06/2018,3446974-N521882,640.00,D-DRILL (MASTER DRILLERS) LTD.
Resources,Digital and Customer Services,Stock A926,926900,Stock in hand-Inventory system,08/06/2018,3446978-7402442295,517.60,DELL COMPUTER CORPORATION LTD.
Children and Young Peoples Services,Head of Education and Skills,Transport,230003,Contract Hire,08/06/2018,3446984-7540-SL01,"2,505.00",DURHAM CITY COACHES.
Children and Young Peoples Services,Head of Education and Skills,Transport,230003,Contract Hire,08/06/2018,3446984-7540-SL03,"2,757.50",DURHAM CITY COACHES.
Children and Young Peoples Services,Head of Education and Skills,Transport,230003,Contract Hire,08/06/2018,3446984-7540-SL04,"2,700.00",DURHAM CITY COACHES.
Children and Young Peoples Services,Head of Education and Skills,Transport,230003,Contract Hire,08/06/2018,3446984-7540-SL07,"2,497.50",DURHAM CITY COACHES.
Children and Young Peoples Services,Head of Education and Skills,Transport,230003,Contract Hire,08/06/2018,3446984-7540-SL08,"2,331.00",DURHAM CITY COACHES.
Children and Young Peoples Services,Head of Education and Skills,Transport,230003,Contract Hire,08/06/2018,3446984-7540-SL09,"2,331.00",DURHAM CITY COACHES.
Children and Young Peoples Services,Head of Education and Skills,Transport,230003,Contract Hire,08/06/2018,3446984-7540-SL11,"2,376.00",DURHAM CITY COACHES.
Children and Young Peoples Services,Head of Education and Skills,Transport,230003,Contract Hire,08/06/2018,3446984-7540-SL14,"2,317.00",DURHAM CITY COACHES.
Regeneration and Local Services,Direct Services,Supplies and Services,304221,Equipment and Materials,08/06/2018,3446990-059-224585,702.98,EDMUNDSON ELECTRICAL LTD.
Regeneration and Local Services,Technical Services,Supplies and Services,304252,Equipment and Materials,08/06/2018,3447008-007079031,675.32,GAP GROUP LTD.
Regeneration and Local Services,Technical Services,Supplies and Services,304252,Equipment and Materials,08/06/2018,3447008-40838211492,600.00,GAP GROUP LTD.
Resources,Corporate Finance & Commercial Services,Supplies and Services,372009,Subscriptions E372,08/06/2018,3447010-105114704,"5,000.00",GATESHEAD COUNCIL.
Children and Young Peoples Services,Head of Education and Skills,Transport,230003,Contract Hire,08/06/2018,3447011-4465,"1,435.14",GEM TRAVEL.
Regeneration and Local Services,Technical Services,Stock A926,926900,Stock in hand-Inventory system,08/06/2018,3447020-06/739300,951.70,GREENHAM TRADING LTD.
Children and Young Peoples Services,Head of Education and Skills,Transport,230008,Contract Hire,08/06/2018,3447023-HT334,"2,080.00",HARRY`S TAXI`S.
Children and Young Peoples Services,Head of Education and Skills,Transport,230008,Contract Hire,08/06/2018,3447023-HT336,"1,020.00",HARRY`S TAXI`S.
Children and Young Peoples Services,Head of Education and Skills,Transport,230008,Contract Hire,08/06/2018,3447023-HT337,"1,734.00",HARRY`S TAXI`S.
Children and Young Peoples Services,Head of Education and Skills,Transport,230008,Contract Hire,08/06/2018,3447023-HT338,"1,530.00",HARRY`S TAXI`S.
Regeneration and Local Services,Direct Services,Premises,108099,Service Repairs and Maintenance,08/06/2018,3447030-7080690458,945.55,HONEYWELL NOVAR SYSTEMS LTD.
Adult and Health Services,Public Health,Third Party Payments 4THIRD,460803,Contract Payments,08/06/2018,3446982-113/19/1801,"374,815.58",HUMANKIND CHARITY (FORMERLY DISC LTD).
Regeneration and Local Services,Culture & Sport,Premises,106082,Centrally Controlled Rep and Maint,08/06/2018,3447033-R17/320,"2,510.00",HYGIENIC CLEANING COMPANY (UK) LTD.
Adult and Health Services,Head of Adults,Transport,230005,Contract Hire,08/06/2018,3447034-IR1805004,"1,360.00",I & R EXECUTIVE TRAVEL.
Children and Young Peoples Services,Head of Education and Skills,Transport,230008,Contract Hire,08/06/2018,3447043-1315,"1,944.00",JDS PRIVATE HIRE DURHAM.
Adult and Health Services,Head of Adults,Transport,230005,Contract Hire,08/06/2018,3447045-MAY-DM150,800.00,JMR TAXIS.
Children and Young Peoples Services,Head of Education and Skills,Supplies and Services,352001,Conference Expenses,08/06/2018,3447054-25855.,"1,000.00",KNIGHT AYTON MANAGEMENT.
Regeneration and Local Services,Technical Services,Third Party Payments 4THIRD,430100,Rendered by Private Contractors,08/06/2018,3447057-INV01692397,"1,850.00",LANES GROUP PLC.
Children and Young Peoples Services,Head of Education and Skills,Transport,230007,Contract Hire,08/06/2018,3447060-5224,"1,782.00",LEE`S COACHES LTD.
Children and Young Peoples Services,Head of Education and Skills,Transport,230003,Contract Hire,08/06/2018,3447060-5225,"2,322.00",LEE`S COACHES LTD.
Children and Young Peoples Services,Head of Childrens Social Care,Transport,230005,Contract Hire,08/06/2018,3447063-3899,616.00,LOCAL TRANSPORT LTD.
Children and Young Peoples Services,Head of Childrens Social Care,Transport,230005,Contract Hire,08/06/2018,3447063-3900,"1,824.00",LOCAL TRANSPORT LTD.
Children and Young Peoples Services,Head of Childrens Social Care,Transport,230005,Contract Hire,08/06/2018,3447063-3901,"1,200.00",LOCAL TRANSPORT LTD.
Children and Young Peoples Services,Head of Childrens Social Care,Transport,230005,Contract Hire,08/06/2018,3447063-3910,995.00,LOCAL TRANSPORT LTD.
Children and Young Peoples Services,Head of Childrens Social Care,Transport,230005,Contract Hire,08/06/2018,3447063-3913,722.00,LOCAL TRANSPORT LTD.
Children and Young Peoples Services,Head of Childrens Social Care,Transport,230005,Contract Hire,08/06/2018,3447063-3917,"2,827.00",LOCAL TRANSPORT LTD.
Children and Young Peoples Services,Head of Childrens Social Care,Transport,230005,Contract Hire,08/06/2018,3447063-3922,630.00,LOCAL TRANSPORT LTD.
Children and Young Peoples Services,Head of Education and Skills,Transport,230009,Contract Hire,08/06/2018,3447074-0141,504.00,MICKS TAXIS - MURTON.
Children and Young Peoples Services,Head of Childrens Social Care,Transport,230005,Contract Hire,08/06/2018,3447077-KDC020218,720.00,MJ TIMNEY T/A KDC & C&M TAXIS.
Regeneration and Local Services,Culture & Sport,Supplies and Services,324001,Provisions E324,08/06/2018,3447078-904547016,"1,241.25",MOLSON COORS BREWING COMPANY (UK) LTD.
Children and Young Peoples Services,Head of Education and Skills,Transport,230008,Contract Hire,08/06/2018,3447080-1,910.00,MR M FARREY T/A TK TAXIS.
Regeneration and Local Services,Technical Services,Third Party Payments 4THIRD,430127,Rendered by Private Contractors,08/06/2018,3447086-4496,"2,887.00",N FLETCHER.
Regeneration and Local Services,Technical Services,Third Party Payments 4THIRD,430128,Rendered by Private Contractors,08/06/2018,3447086-4495,"2,373.00",N FLETCHER.
Children and Young Peoples Services,Head of Childrens Social Care,Third Party Payments 4THIRD,410037,Rendered by Other Local Authorities,08/06/2018,3447096-20036,"17,949.00",NOMS AGENCY.
Children and Young Peoples Services,Head of Childrens Social Care,Third Party Payments 4THIRD,440100,Other third party payments E440,08/06/2018,3447104-SINCC3F43216,"2,578.00",OFSTED.
Children and Young Peoples Services,Head of Education and Skills,Transport,230003,Contract Hire,08/06/2018,3447105-7403,"1,026.00",OVERLANDER LTD.
Regeneration and Local Services,Economic Development and Housing,Supplies and Services,384437,Miscellaneous Expenses,08/06/2018,3447106-F56508201/1,733.00,P & O FERRIES HOLDINGS LTD.
Regeneration and Local Services,Culture & Sport,Supplies and Services,338047,Services,08/06/2018,3447107-R2173977,921.94,PARAMOUNT PICTURES UK.
Regeneration and Local Services,Technical Services,Third Party Payments 4THIRD,430100,Rendered by Private Contractors,08/06/2018,3447113-5101,"21,950.38",PINKNEY BUILDING CONTRACTORS LTD.
Adult and Health Services,Public Health,Third Party Payments 4THIRD,460803,Contract Payments,08/06/2018,3447115-16112A/19,"5,462.93",PIONEERING CARE PARTNERSHIP.
Adult and Health Services,Public Health,Third Party Payments 4THIRD,460803,Contract Payments,08/06/2018,3447115-16258/19,"5,462.93",PIONEERING CARE PARTNERSHIP.
Regeneration and Local Services,Direct Services,Supplies and Services,304221,Equipment and Materials,08/06/2018,3447119-INV227177,879.56,POINTER FIRE LTD.
Children and Young Peoples Services,Head of Education and Skills,Transport,230006,Contract Hire,08/06/2018,3447130-RDS037,700.00,RDS TAXI.
Children and Young Peoples Services,Head of Education and Skills,Transport,230007,Contract Hire,08/06/2018,3447135-3111,719.00,RICHIES TAXIS.
Children and Young Peoples Services,Head of Education and Skills,Transport,230016,Contract Hire,08/06/2018,3447138-1493,"1,320.00",ROAD RUNNERS (NE) LTD.
Children and Young Peoples Services,Head of Education and Skills,Transport,230016,Contract Hire,08/06/2018,3447138-1494,811.00,ROAD RUNNERS (NE) LTD.
Children and Young Peoples Services,Head of Childrens Social Care,Transport,230005,Contract Hire,08/06/2018,3447138-1455,820.00,ROAD RUNNERS (NE) LTD.
Children and Young Peoples Services,Head of Childrens Social Care,Transport,230005,Contract Hire,08/06/2018,3447138-1489,600.00,ROAD RUNNERS (NE) LTD.
Regeneration and Local Services,Economic Development and Housing,Fees,901002,Professional fees,08/06/2018,3447141-TEC489465,"2,397.80",RPS CONSULTING SERVICES LTD.
Children and Young Peoples Services,Head of Education and Skills,Transport,230008,Contract Hire,08/06/2018,3447146-A136010518,"1,198.75",SAFELINE TRAVEL.
Regeneration and Local Services,Spatial Policy Planning Assets & Environment,Supplies and Services,384199,Miscellaneous Expenses,08/06/2018,3447147-2152-002,"1,680.00",SARAH DYER (HERITAGE CONSULTANT).
Regeneration and Local Services,Technical Services,Construction work A908,908105,Construction work,08/06/2018,3447157-191-160518,"2,750.00",SIMON EDWARDS T/A 3DARTVISION.
Children and Young Peoples Services,Head of Education and Skills,Transport,230008,Contract Hire,08/06/2018,3447159-605A,"1,170.00",SJ MACKENZIE T/A SCOTTS TAXIS.
Children and Young Peoples Services,Head of Education and Skills,Third Party Payments 4THIRD,440999,Other third party payments E440,08/06/2018,3447166-141,"2,520.00",STANLEY EVENTS LTD.
Children and Young Peoples Services,Head of Education and Skills,Third Party Payments 4THIRD,440999,Other third party payments E440,08/06/2018,3447167-140,"1,632.00",STANLEY EVENTS LTD.
Children and Young Peoples Services,Head of Education and Skills,Third Party Payments 4THIRD,440999,Other third party payments E440,08/06/2018,3447167-142,768.00,STANLEY EVENTS LTD.
Children and Young Peoples Services,Head of Education and Skills,Supplies and Services,384159,Miscellaneous Expenses,08/06/2018,3447170-12742,"8,862.24",STEADFAST SECURITY SYSTEMS LTD.
Adult and Health Services,Head of Adults,Transport,230005,Contract Hire,08/06/2018,3447173-DCC109/SLD005,"1,404.00",STEPHEN COXON.
Children and Young Peoples Services,Head of Education and Skills,Transport,230011,Contract Hire,08/06/2018,3447174-34,646.00,STEVEN HENDERSON T/A HENDYS TAXIS.
Children and Young Peoples Services,Head of Childrens Social Care,Transport,230005,Contract Hire,08/06/2018,3447175-180571,"2,160.00",STEVEN PRATT T/A PTL TAXIS DURHAM.
Children and Young Peoples Services,Head of Childrens Social Care,Transport,230005,Contract Hire,08/06/2018,3447175-3905,570.00,STEVEN PRATT T/A PTL TAXIS DURHAM.
Children and Young Peoples Services,Head of Childrens Social Care,Transport,230005,Contract Hire,08/06/2018,3447175-3906,812.00,STEVEN PRATT T/A PTL TAXIS DURHAM.
Children and Young Peoples Services,Head of Childrens Social Care,Transport,230005,Contract Hire,08/06/2018,3447175-3907,"1,564.00",STEVEN PRATT T/A PTL TAXIS DURHAM.
Children and Young Peoples Services,Head of Childrens Social Care,Transport,230005,Contract Hire,08/06/2018,3447175-3908,"1,050.00",STEVEN PRATT T/A PTL TAXIS DURHAM.
Children and Young Peoples Services,Head of Childrens Social Care,Transport,230005,Contract Hire,08/06/2018,3447175-3923,702.00,STEVEN PRATT T/A PTL TAXIS DURHAM.
Regeneration and Local Services,Culture & Sport,Premises,106082,Centrally Controlled Rep and Maint,08/06/2018,3447176-11819,540.00,STONE TECHNICAL SERVICES LTD.
Dedicated Schools Grant,DSG High Needs Block,Transport,230010,Contract Hire,08/06/2018,3447182-B022-MAY,"1,293.00",SUSAN`S CARS.
Children and Young Peoples Services,Head of Education and Skills,Transport,230003,Contract Hire,08/06/2018,3447184-26305-SL13,"1,772.64",T MOORE & SON.
Children and Young Peoples Services,Head of Education and Skills,Transport,230003,Contract Hire,08/06/2018,3447184-26305SL12,"1,620.00",T MOORE & SON.
Children and Young Peoples Services,Head of Education and Skills,Transport,230008,Contract Hire,08/06/2018,3447187-2012,913.00,TAILORMADE TRAVEL.
Children and Young Peoples Services,Head of Education and Skills,Transport,230008,Contract Hire,08/06/2018,3447187-2013A,830.00,TAILORMADE TRAVEL.
Adult and Health Services,Head of Adults,Transport,230005,Contract Hire,08/06/2018,3447188-1527MAY18,672.00,TALBOTS TAXIS.
Adult and Health Services,Head of Adults,Transport,230005,Contract Hire,08/06/2018,3447189-B948,"1,575.00",TALBOTS TRAVEL LTD.
Children and Young Peoples Services,"Head of Early Help, Inclusion and Vulnerable Children",Employees,080025,Agency Staff,08/06/2018,3447191-2178456,"1,740.97",TEACHING PERSONNEL LTD.
Regeneration and Local Services,Direct Services,Supplies and Services,328041,Clothing uniforms and laundry E328,08/06/2018,3447203-N/IN221973,884.00,THOMAS OWEN & SONS (NEWCASTLE) LTD.
Children and Young Peoples Services,Head of Education and Skills,Third Party Payments 4THIRD,440999,Other third party payments E440,08/06/2018,3447208-5489,"11,790.00",TIN ARTS.
Children and Young Peoples Services,Head of Education and Skills,Transport,230006,Contract Hire,08/06/2018,3447209-COL0001970,"1,260.00",TONY RIDLEY T/A COLORS TAXIS LTD.
Children and Young Peoples Services,"Head of Early Help, Inclusion and Vulnerable Children",Transport,230005,Contract Hire,08/06/2018,3447210-RES409,730.00,TONYS TAXIS (A BIRCH).
Children and Young Peoples Services,Head of Childrens Social Care,Transport,230005,Contract Hire,08/06/2018,3447210-RES411,935.00,TONYS TAXIS (A BIRCH).
Regeneration and Local Services,Technical Services,Supplies and Services,304221,Equipment and Materials,08/06/2018,3447220-186915,"1,105.82",TYNEDALE ROADSTONE LTD.
Regeneration and Local Services,Culture & Sport,Supplies and Services,338047,Services,08/06/2018,3447230-1670682,526.75,WALT DISNEY CO LTD.
Adult and Health Services,Head of Adults,Transport,230005,Contract Hire,08/06/2018,3447232-1139MAY18,"1,575.00",WAYNE`S TAXIS.
Children and Young Peoples Services,Head of Education and Skills,Transport,230006,Contract Hire,08/06/2018,3447233-F681/05,"1,120.00",WAYSIDE TAXIS.
Children and Young Peoples Services,Head of Education and Skills,Transport,230007,Contract Hire,08/06/2018,3447238-DCC68/4309,540.00,WEZ CABS.
Regeneration and Local Services,Technical Services,Stock A926,926900,Stock in hand-Inventory system,08/06/2018,3447239-48671016,904.74,WOLSELEY UK LTD.
Children and Young Peoples Services,Head of Education and Skills,Transport,230008,Contract Hire,11/06/2018,3447249-K10/SN,"1,080.00",AABAT TAXIS.
Children and Young Peoples Services,Head of Education and Skills,Transport,230008,Contract Hire,11/06/2018,3447249-K16/SV,882.00,AABAT TAXIS.
Children and Young Peoples Services,Head of Education and Skills,Transport,230008,Contract Hire,11/06/2018,3447249-K3/SC,"1,710.00",AABAT TAXIS.
Transformation and Partnerships,Comms & Information Management,Supplies and Services,332029,Printing Stationery and Gen Off Exps,11/06/2018,3447250-60639,"16,968.33",ACORN WEB OFFSET LTD.
Children and Young Peoples Services,Head of Education and Skills,Transport,230008,Contract Hire,11/06/2018,3447252-APR003,700.00,AJ`S TAXIS.
Regeneration and Local Services,Direct Services,Third Party Payments 4THIRD,430100,Rendered by Private Contractors,11/06/2018,3447253-53932,"1,741.24",ALAN REED LTD.
Children and Young Peoples Services,Head of Education and Skills,Transport,230007,Contract Hire,11/06/2018,3447257-DCC020-3030,593.74,ALSTON ROAD GARAGE.
Children and Young Peoples Services,Head of Education and Skills,Transport,230007,Contract Hire,11/06/2018,3447257-DCC020-3035,898.20,ALSTON ROAD GARAGE.
Children and Young Peoples Services,Head of Education and Skills,Transport,230007,Contract Hire,11/06/2018,3447257-DCC020-3037,"1,413.00",ALSTON ROAD GARAGE.
Children and Young Peoples Services,Head of Education and Skills,Transport,230007,Contract Hire,11/06/2018,3447257-DCC020-3039,"2,039.04",ALSTON ROAD GARAGE.
Children and Young Peoples Services,Head of Education and Skills,Transport,230007,Contract Hire,11/06/2018,3447257-DCC020-3273,"1,078.20",ALSTON ROAD GARAGE.
Children and Young Peoples Services,Head of Education and Skills,Transport,230007,Contract Hire,11/06/2018,3447257-DCC020-6014,"2,133.00",ALSTON ROAD GARAGE.
Regeneration and Local Services,Culture & Sport,Supplies and Services,384199,Miscellaneous Expenses,11/06/2018,3447259-2018-162-141-006192,"10,719.62",AMERICAN EXPRESS SERVICES EUROPE LTD.
Regeneration and Local Services,Culture & Sport,Supplies and Services,312013,Newspapers books and periodicals E312,11/06/2018,3447259-2018-162-141-006200,"5,115.30",AMERICAN EXPRESS SERVICES EUROPE LTD.
Children and Young Peoples Services,Head of Education and Skills,Supplies and Services,312011,Newspapers books and periodicals E312,11/06/2018,3447266-5733918,536.59,ASKEWS & HOLTS LIBRARY SERVICES LTD.
Children and Young Peoples Services,Head of Education and Skills,Supplies and Services,312011,Newspapers books and periodicals E312,11/06/2018,3447266-5733959,693.65,ASKEWS & HOLTS LIBRARY SERVICES LTD.
Children and Young Peoples Services,Head of Education and Skills,Supplies and Services,312011,Newspapers books and periodicals E312,11/06/2018,3447266-5734188,708.28,ASKEWS & HOLTS LIBRARY SERVICES LTD.
Children and Young Peoples Services,Head of Education and Skills,Supplies and Services,312011,Newspapers books and periodicals E312,11/06/2018,3447266-5734189,517.49,ASKEWS & HOLTS LIBRARY SERVICES LTD.
Adult and Health Services,Head of Adults,Transport,230005,Contract Hire,11/06/2018,3447267-DCC2MAY18,"1,340.00",ATLAS TAXIS BISHOP AUCKLAND.
Children and Young Peoples Services,Head of Education and Skills,Transport,230007,Contract Hire,11/06/2018,3447268-03763,736.00,ATLAS TAXIS CONSETT.
Regeneration and Local Services,Direct Services,Supplies and Services,304221,Equipment and Materials,11/06/2018,3447271-1781,"2,464.00",AWR ROOFING & ALUMIN RAINWATER SYSTEMS LTD.
Regeneration and Local Services,Direct Services,Transport,210057,Repair and Maintenance of Vehicles,11/06/2018,3447276-35149912,767.25,BELL TRUCK SALES LTD T/A BELL TRUCK & VAN.
Children and Young Peoples Services,Head of Education and Skills,Transport,230006,Contract Hire,11/06/2018,3447280-F732-MAY,"1,503.20",BIG MAMA`S TAXI.
Regeneration and Local Services,Technical Services,Supplies and Services,304221,Equipment and Materials,11/06/2018,3447281-BBP48886,"2,662.80",BITUCHEM BUILDING PRODUCTS LTD.
Regeneration and Local Services,Technical Services,Supplies and Services,304221,Equipment and Materials,11/06/2018,3447281-BBP49027,"2,666.00",BITUCHEM BUILDING PRODUCTS LTD.
Regeneration and Local Services,Spatial Policy Planning Assets & Environment,Supplies and Services,332029,Printing Stationery and Gen Off Exps,11/06/2018,3447286-NERC21932,735.22,BRITISH GEOLOGICAL SURVEY.
Regeneration and Local Services,Economic Development and Housing,Third Party Payments 4THIRD,460305,Contract Payments,11/06/2018,3447289-12553,"39,087.50",BUSINESS & ENTERPRISE COMMERCIAL LTD T/A BE GROUP.
Adult and Health Services,Head of Adults,Supplies and Services,338366,Services,11/06/2018,3447292-50044,957.35,CARE ABILITY.
Regeneration and Local Services,Direct Services,Transport,210057,Repair and Maintenance of Vehicles,11/06/2018,3447294-224019,"1,760.91",CARRS BILLINGTON AGRICULTURE.
Regeneration and Local Services,Direct Services,Transport,210057,Repair and Maintenance of Vehicles,11/06/2018,3447294-224209,"1,831.73",CARRS BILLINGTON AGRICULTURE.
Regeneration and Local Services,Technical Services,Stock A926,926004,Stock,11/06/2018,3447306-400010099,"3,369.60",CLEVELAND POTASH LTD T/A ICL FERTILIZERS.
Regeneration and Local Services,Direct Services,Third Party Payments 4THIRD,430100,Rendered by Private Contractors,11/06/2018,3447309-7861,"1,100.00",COMMERCIAL COVERINGS LTD.
Adult and Health Services,Head of Adults,Third Party Payments 4THIRD,478151,Purchase of Care,11/06/2018,3447310-421R133575,756.00,COMMUNITY INTEGRATED CARE LTD.
Adult and Health Services,Head of Adults,Third Party Payments 4THIRD,478151,Purchase of Care,11/06/2018,3447310-421R134231,756.00,COMMUNITY INTEGRATED CARE LTD.
Adult and Health Services,Head of Adults,Third Party Payments 4THIRD,478151,Purchase of Care,11/06/2018,3447310-421R135169,756.00,COMMUNITY INTEGRATED CARE LTD.
Adult and Health Services,Head of Adults,Transport,230005,Contract Hire,11/06/2018,3447320-107810,"1,479.72",CROFT BUSINESS SERVICES (UK) LTD T/A CROFT TAXIS.
Adult and Health Services,Head of Adults,Transport,230005,Contract Hire,11/06/2018,3447320-107811,"1,861.89",CROFT BUSINESS SERVICES (UK) LTD T/A CROFT TAXIS.
Adult and Health Services,Head of Adults,Transport,230005,Contract Hire,11/06/2018,3447320-107812,"1,829.68",CROFT BUSINESS SERVICES (UK) LTD T/A CROFT TAXIS.
Resources,Digital and Customer Services,Vehicles Equipment Furniture and Fittings,912701,Computer equipment,11/06/2018,3447327-7402442866,"29,500.86",DELL COMPUTER CORPORATION LTD.
Resources,Digital and Customer Services,Vehicles Equipment Furniture and Fittings,912701,Computer equipment,11/06/2018,3447327-7402442996,"2,585.50",DELL COMPUTER CORPORATION LTD.
Resources,Digital and Customer Services,Supplies and Services,342033,Computers and Communications,11/06/2018,3447327-7402444942,798.56,DELL COMPUTER CORPORATION LTD.
Regeneration and Local Services,Direct Services,Third Party Payments 4THIRD,430100,Rendered by Private Contractors,11/06/2018,3447330-326548,961.55,DENNIS EAGLE LTD.
Regeneration and Local Services,Direct Services,Third Party Payments 4THIRD,430100,Rendered by Private Contractors,11/06/2018,3447330-326679,756.80,DENNIS EAGLE LTD.
Regeneration and Local Services,Direct Services,Supplies and Services,304221,Equipment and Materials,11/06/2018,3447338-059-224521,"1,049.23",EDMUNDSON ELECTRICAL LTD.
Regeneration and Local Services,Direct Services,Supplies and Services,384956,Miscellaneous Expenses,11/06/2018,3447343-005161YT,"3,849.00",ENVIRONMENT AGENCY.
Regeneration and Local Services,Direct Services,Supplies and Services,384956,Miscellaneous Expenses,11/06/2018,3447343-006031YT,"4,247.00",ENVIRONMENT AGENCY.
Children and Young Peoples Services,Head of Education and Skills,Transport,230008,Contract Hire,11/06/2018,3447351-W053-019,827.75,FERRYHILL VILLAGE TRAVEL.
Children and Young Peoples Services,Head of Education and Skills,Transport,230008,Contract Hire,11/06/2018,3447351-W053-020,"1,354.50",FERRYHILL VILLAGE TRAVEL.
Transformation and Partnerships,Partnerships & Community Engagement Div.,Supplies and Services,384086,Miscellaneous Expenses,11/06/2018,3447358-VOUCHERMCGM05-18,700.00,FRIENDS OF THE SCHOOL LANGLEY PARK JM & I SCHOOL.
Children and Young Peoples Services,Head of Education and Skills,Transport,230008,Contract Hire,11/06/2018,3447359-100843,"1,944.00",G & P JOHNSON LTD T/A NIGHTINGALE COACHES.
Children and Young Peoples Services,Head of Education and Skills,Transport,230008,Contract Hire,11/06/2018,3447359-100845,"1,053.00",G & P JOHNSON LTD T/A NIGHTINGALE COACHES.
Children and Young Peoples Services,Head of Education and Skills,Transport,230008,Contract Hire,11/06/2018,3447359-100846,"1,287.00",G & P JOHNSON LTD T/A NIGHTINGALE COACHES.
Adult and Health Services,Head of Adults,Transport,230005,Contract Hire,11/06/2018,3447359-100865,830.00,G & P JOHNSON LTD T/A NIGHTINGALE COACHES.
Regeneration and Local Services,Technical Services,Supplies and Services,304357,Equipment and Materials,11/06/2018,3447360-DCC200518,"15,209.62",GAP GROUP LTD.
Regeneration and Local Services,Direct Services,Stock A926,926004,Stock,11/06/2018,3447364-IN202996,949.40,GB LUBRICANTS LTD.
Children and Young Peoples Services,Head of Education and Skills,Transport,230003,Contract Hire,11/06/2018,3447367-65943,"3,279.60",GO GATESHEAD LTD.
Children and Young Peoples Services,Head of Education and Skills,Transport,230008,Contract Hire,11/06/2018,3447368-000044,"1,080.00",GP TAXIS.
Regeneration and Local Services,Economic Development and Housing,Supplies and Services,384999,Miscellaneous Expenses,11/06/2018,3447374-041-495-024,900.00,HAYAT EXPRESS HOTEL.
Regeneration and Local Services,Economic Development and Housing,Supplies and Services,384999,Miscellaneous Expenses,11/06/2018,3447374-419-214-654,850.00,HAYAT EXPRESS HOTEL.
Regeneration and Local Services,Economic Development and Housing,Supplies and Services,384999,Miscellaneous Expenses,11/06/2018,3447374-520-812-224,"2,550.00",HAYAT EXPRESS HOTEL.
Dedicated Schools Grant,DSG High Needs Block,Third Party Payments 4THIRD,410037,Rendered by Other Local Authorities,11/06/2018,3447380-307,"1,560.00",HOME ON THE RANGE LTD.
Children and Young Peoples Services,Head of Education and Skills,Transport,230008,Contract Hire,11/06/2018,3447386-267,"2,088.00",I CLYDESDALE T/A BURNOPFIELD TAXIS.
Adult and Health Services,Head of Adults,Transport,230005,Contract Hire,11/06/2018,3447386-268,598.40,I CLYDESDALE T/A BURNOPFIELD TAXIS.
Children and Young Peoples Services,Head of Education and Skills,Transport,230009,Contract Hire,11/06/2018,3447395-0602,"1,081.50",JACKSON`S TAXI.
Children and Young Peoples Services,Head of Education and Skills,Transport,230009,Contract Hire,11/06/2018,3447395-0604,684.00,JACKSON`S TAXI.
Children and Young Peoples Services,Head of Education and Skills,Transport,230008,Contract Hire,11/06/2018,3447395-0603,"1,616.00",JACKSON`S TAXI.
Regeneration and Local Services,Direct Services,Third Party Payments 4THIRD,430100,Rendered by Private Contractors,11/06/2018,3447397-100810,"1,188.44",JG PAXTON & SONS LTD.
Regeneration and Local Services,Technical Services,Supplies and Services,304221,Equipment and Materials,11/06/2018,3447403-BII257156,624.51,JT DOVE LTD.
Regeneration and Local Services,Direct Services,Supplies and Services,304221,Equipment and Materials,11/06/2018,3447403-G0I927/D,"2,941.92",JT DOVE LTD.
Regeneration and Local Services,Technical Services,Supplies and Services,304221,Equipment and Materials,11/06/2018,3447403-G0I949/D,"2,950.00",JT DOVE LTD.
Regeneration and Local Services,Technical Services,Stock A926,926900,Stock in hand-Inventory system,11/06/2018,3447403-STI479718,"1,639.82",JT DOVE LTD.
Children and Young Peoples Services,Head of Education and Skills,Transport,230016,Contract Hire,11/06/2018,3447413-3943-APRIL,"1,125.00",LOCAL TRANSPORT LTD.
Children and Young Peoples Services,Head of Education and Skills,Transport,230016,Contract Hire,11/06/2018,3447413-3943-MAY,770.00,LOCAL TRANSPORT LTD.
Children and Young Peoples Services,Head of Education and Skills,Transport,230016,Contract Hire,11/06/2018,3447413-3943-MAYA,995.00,LOCAL TRANSPORT LTD.
Regeneration and Local Services,Direct Services,Third Party Payments 4THIRD,430100,Rendered by Private Contractors,11/06/2018,3447415-148254,"1,239.57",LONDONDERRY GARAGE (S.E) LTD.
Regeneration and Local Services,Direct Services,Transport,210057,Repair and Maintenance of Vehicles,11/06/2018,3447415-147995,516.24,LONDONDERRY GARAGE (S.E) LTD.
Dedicated Schools Grant,DSG High Needs Block,Transport,230008,Contract Hire,11/06/2018,3447426-BL006-MAY,"1,475.00",MILLIE`S TAXIS.
Regeneration and Local Services,Direct Services,Transport,210057,Repair and Maintenance of Vehicles,11/06/2018,3447432-80391,"1,600.00",MTS BOBCAT.
Regeneration and Local Services,Direct Services,Supplies and Services,304221,Equipment and Materials,11/06/2018,3447436-064144,718.71,NEW ROW FARM NURSERIES.
Transformation and Partnerships,Comms & Information Management,Supplies and Services,336005,Advertising E336,11/06/2018,3447437-24938661,770.00,NEWSQUEST (YORKSHIRE & NORTH EAST) LTD.
Transformation and Partnerships,Comms & Information Management,Supplies and Services,336005,Advertising E336,11/06/2018,3447437-24938679,590.00,NEWSQUEST (YORKSHIRE & NORTH EAST) LTD.
Regeneration and Local Services,Transport and Contracted Services,Third Party Payments 4THIRD,430100,Rendered by Private Contractors,11/06/2018,3447448-00002097,"25,720.95",NSL LTD.
Regeneration and Local Services,Transport and Contracted Services,Third Party Payments 4THIRD,430100,Rendered by Private Contractors,11/06/2018,3447448-00002098,"1,354.39",NSL LTD.
Regeneration and Local Services,Transport and Contracted Services,Third Party Payments 4THIRD,430100,Rendered by Private Contractors,11/06/2018,3447448-00002099,"48,572.53",NSL LTD.
Regeneration and Local Services,Transport and Contracted Services,Third Party Payments 4THIRD,430100,Rendered by Private Contractors,11/06/2018,3447448-00002100,"3,074.34",NSL LTD.
Regeneration and Local Services,Transport and Contracted Services,Third Party Payments 4THIRD,430100,Rendered by Private Contractors,11/06/2018,3447448-00002101,"4,752.51",NSL LTD.
Regeneration and Local Services,Transport and Contracted Services,Third Party Payments 4THIRD,430100,Rendered by Private Contractors,11/06/2018,3447448-00002102,"16,513.68",NSL LTD.
Regeneration and Local Services,Transport and Contracted Services,Third Party Payments 4THIRD,430100,Rendered by Private Contractors,11/06/2018,3447448-00002131,"5,216.14",NSL LTD.
Regeneration and Local Services,Transport and Contracted Services,Third Party Payments 4THIRD,430100,Rendered by Private Contractors,11/06/2018,3447448-00002132,868.02,NSL LTD.
Regeneration and Local Services,Transport and Contracted Services,Third Party Payments 4THIRD,430100,Rendered by Private Contractors,11/06/2018,3447448-00002133,553.73,NSL LTD.
Regeneration and Local Services,Economic Development and Housing,Supplies and Services,384437,Miscellaneous Expenses,11/06/2018,3447456-F56508181/1,733.00,P & O FERRIES HOLDINGS LTD.
Dedicated Schools Grant,DSG High Needs Block,Supplies and Services,304259,Equipment and Materials,11/06/2018,3447460-1918264,"1,018.75",PEARSON EDUCATION LTD.
Regeneration and Local Services,Direct Services,Third Party Payments 4THIRD,430100,Rendered by Private Contractors,11/06/2018,3447461-307711,"3,699.00",PEART ACCESS RAMPS.*
Regeneration and Local Services,Direct Services,Supplies and Services,304999,Equipment and Materials,11/06/2018,3447462-308801,627.84,PEART FENCING LTD.
Regeneration and Local Services,Spatial Policy Planning Assets & Environment,Supplies and Services,338027,Services,11/06/2018,3447485-INV-0830,662.00,ROBSON & LIDDLE CHARTERED SURVEYORS.
Children and Young Peoples Services,Head of Education and Skills,Transport,230008,Contract Hire,11/06/2018,3447490-A070010518,600.00,SAFELINE TRAVEL.
Children and Young Peoples Services,Head of Education and Skills,Transport,230008,Contract Hire,11/06/2018,3447490-A132010518,812.00,SAFELINE TRAVEL.
Children and Young Peoples Services,Head of Education and Skills,Transport,230008,Contract Hire,11/06/2018,3447490-A138010518,"1,032.50",SAFELINE TRAVEL.
Children and Young Peoples Services,Head of Education and Skills,Transport,230008,Contract Hire,11/06/2018,3447490-S002010518,"1,225.00",SAFELINE TRAVEL.
Regeneration and Local Services,Direct Services,Transport,210057,Repair and Maintenance of Vehicles,11/06/2018,3447494-2018.100001,"2,200.00",SCARAB SWEEPERS LTD.
Children and Young Peoples Services,Head of Education and Skills,Transport,230008,Contract Hire,11/06/2018,3447504-CEDARHOUSE021496,910.00,SPENNYMOOR TAXIS.
Regeneration and Local Services,Technical Services,Supplies and Services,304221,Equipment and Materials,11/06/2018,3447509-105841,"1,221.88",STONEGRAVE AGGREGATES LTD.
Regeneration and Local Services,Technical Services,Supplies and Services,304221,Equipment and Materials,11/06/2018,3447514-9038122425,622.53,TARMAC TRADING LTD.
Regeneration and Local Services,Technical Services,Supplies and Services,304221,Equipment and Materials,11/06/2018,3447514-9038131621,830.53,TARMAC TRADING LTD.
Regeneration and Local Services,Technical Services,Stock A926,926900,Stock in hand-Inventory system,11/06/2018,3447514-9038138856,710.10,TARMAC TRADING LTD.
Regeneration and Local Services,Direct Services,Third Party Payments 4THIRD,430100,Rendered by Private Contractors,11/06/2018,3447517-2482,"1,787.00",TEAM VALLEY TRANSMISSIONS LTD.
Dedicated Schools Grant,DSG High Needs Block,Transport,230010,Contract Hire,11/06/2018,3447519-0030,540.00,TERENCE CLARKE T/A TC TAXIS.
Regeneration and Local Services,Transport and Contracted Services,Supplies and Services,344016,Telephones,11/06/2018,3447533-3IN/10315182,"5,400.00",TUNSTALL HEALTHCARE (UK) LTD.
Regeneration and Local Services,Technical Services,Supplies and Services,304221,Equipment and Materials,11/06/2018,3447534-186964,"1,106.75",TYNEDALE ROADSTONE LTD.
Regeneration and Local Services,Technical Services,Supplies and Services,304221,Equipment and Materials,11/06/2018,3447534-186975,535.49,TYNEDALE ROADSTONE LTD.
Regeneration and Local Services,Technical Services,Supplies and Services,304221,Equipment and Materials,11/06/2018,3447534-187025,"1,105.82",TYNEDALE ROADSTONE LTD.
Regeneration and Local Services,Technical Services,Supplies and Services,304221,Equipment and Materials,11/06/2018,3447534-187033,623.28,TYNEDALE ROADSTONE LTD.
Regeneration and Local Services,Technical Services,Supplies and Services,304221,Equipment and Materials,11/06/2018,3447534-187040,"1,001.90",TYNEDALE ROADSTONE LTD.
Regeneration and Local Services,Technical Services,Supplies and Services,304221,Equipment and Materials,11/06/2018,3447534-187041,626.73,TYNEDALE ROADSTONE LTD.
Regeneration and Local Services,Technical Services,Third Party Payments 4THIRD,430100,Rendered by Private Contractors,11/06/2018,3447538-330,"1,407.08",VINOVIUM ASSOCIATES LTD.
Adult and Health Services,Commissioning inc Supporting People,Supplies and Services,312009,Newspapers books and periodicals E312,11/06/2018,3447544-1160302117,708.47,WATERSTONES.
Children and Young Peoples Services,Head of Education and Skills,Transport,230007,Contract Hire,11/06/2018,3447545-4156/05/18,"2,070.00",WEARDALE MOTOR SERVICES LTD.
Children and Young Peoples Services,Head of Education and Skills,Supplies and Services,338032,Services,11/06/2018,3447549-04-18-02,"4,820.00",YORK CONSULTING LLP.
Children and Young Peoples Services,Head of Childrens Social Care,Third Party Payments 4THIRD,425041,Rendered by Voluntary Organisations,12/06/2018,3447561-5381,"100,000.00",ADOPTIONPLUS LTD.
Regeneration and Local Services,Culture & Sport,Supplies and Services,338099,Services,12/06/2018,3447568-GALA05/05-26/05,575.00,AMY ODENE.
Regeneration and Local Services,Transport and Contracted Services,Third Party Payments 4THIRD,430100,Rendered by Private Contractors,12/06/2018,3447574-CONCFAREPAY18-2JUNV1,"1,478,308.00",ARRIVA DURHAM COUNTY LTD.
Regeneration and Local Services,Transport and Contracted Services,Third Party Payments 4THIRD,430107,Rendered by Private Contractors,12/06/2018,3447575-CONCFAREPAY18-2JUNV1,"1,841.10",ARRIVA RAIL NORTH LTD T/A NORTHERN.
Regeneration and Local Services,Culture & Sport,Supplies and Services,384199,Miscellaneous Expenses,12/06/2018,3447576-1358REVISED,541.50,ASH COOPER FREELANCE SERVICES.
Regeneration and Local Services,Technical Services,Third Party Payments 4THIRD,430100,Rendered by Private Contractors,12/06/2018,3447621-N521797,"1,096.20",D-DRILL (MASTER DRILLERS) LTD.
Regeneration and Local Services,Technical Services,Third Party Payments 4THIRD,430100,Rendered by Private Contractors,12/06/2018,3447621-N521798,560.00,D-DRILL (MASTER DRILLERS) LTD.
Adult and Health Services,Head of Adults,Third Party Payments 4THIRD,478151,Purchase of Care,12/06/2018,3447639-A2,"1,325.08",EMBRACING CARE.
Regeneration and Local Services,Transport and Contracted Services,Third Party Payments 4THIRD,430100,Rendered by Private Contractors,12/06/2018,3447654-CONCFAREPAY18-2JUNV1,"701,706.00",GO GATESHEAD LTD.
Regeneration and Local Services,Transport and Contracted Services,Third Party Payments 4THIRD,430100,Rendered by Private Contractors,12/06/2018,3447657-CONCFAREPAY18-2JUNV1,758.82,GRAHAMS MOTOR SERVICES LTD.
Regeneration and Local Services,Technical Services,Third Party Payments 4THIRD,430100,Rendered by Private Contractors,12/06/2018,3447661-41478,"55,339.68",HALL CONSTRUCTION SERVICES LTD.
Regeneration and Local Services,Economic Development and Housing,Supplies and Services,384999,Miscellaneous Expenses,12/06/2018,3447666-281-612-911,801.00,HAYAT EXPRESS HOTEL.
Regeneration and Local Services,Economic Development and Housing,Supplies and Services,384999,Miscellaneous Expenses,12/06/2018,3447666-401-132-054,800.00,HAYAT EXPRESS HOTEL.
Regeneration and Local Services,Transport and Contracted Services,Third Party Payments 4THIRD,430100,Rendered by Private Contractors,12/06/2018,3447672-CONCFAREPAY18-2JUNV1,703.59,HODGSONS COACH OPERATORS LTD.
Adult and Health Services,Commissioning inc Supporting People,Third Party Payments 4THIRD,479111,Purchase of Care,12/06/2018,3447673-CES039,"2,833.33",HOMECARE SUPPORT LTD T/A THE HUMAN SUPPORT GROUP.
Children and Young Peoples Services,Head of Education and Skills,Transfer Payments,510027,School Children,12/06/2018,3447678-41APR18,704.70,HOWLETCH & SHOTTON CHILDCARE LTD.
Regeneration and Local Services,Technical Services,Third Party Payments 4THIRD,430128,Rendered by Private Contractors,12/06/2018,3447679-10,"2,337.00",IAN WILSON.
Regeneration and Local Services,Transport and Contracted Services,Third Party Payments 4THIRD,430100,Rendered by Private Contractors,12/06/2018,3447694-CONCFAREPAY18-2JUNV1,"11,147.28",JOHN JAMES BRUNSKILL T/A JSB TRAVEL LTD.
Regeneration and Local Services,Spatial Policy Planning Assets & Environment,Supplies and Services,338066,Services,12/06/2018,3447695-54,"4,360.00",JOHN RICHARDSON (JOINER CONTRACTOR).
Regeneration and Local Services,Spatial Policy Planning Assets & Environment,Supplies and Services,338066,Services,12/06/2018,3447695-55,"1,740.00",JOHN RICHARDSON (JOINER CONTRACTOR).
Regeneration and Local Services,Technical Services,Third Party Payments 4THIRD,430100,Rendered by Private Contractors,12/06/2018,3447742-NEI-EXP-06-2018-004,"1,999.00",NORTHERN POWERGRID (NORTHEAST) LTD.
Regeneration and Local Services,Technical Services,Third Party Payments 4THIRD,430100,Rendered by Private Contractors,12/06/2018,3447742-NEI-EXP-06-2018-005,"2,176.00",NORTHERN POWERGRID (NORTHEAST) LTD.
Regeneration and Local Services,Technical Services,Third Party Payments 4THIRD,430100,Rendered by Private Contractors,12/06/2018,3447742-NEI-EXP-06-2018-006,944.00,NORTHERN POWERGRID (NORTHEAST) LTD.
Regeneration and Local Services,Culture & Sport,Supplies and Services,384199,Miscellaneous Expenses,12/06/2018,3447744-046325,691.26,NSL LTD.
Resources,Digital and Customer Services,Supplies and Services,342033,Computers and Communications,12/06/2018,3447758-OP/I819979,947.37,PHOENIX SOFTWARE LTD.
Regeneration and Local Services,Transport and Contracted Services,Third Party Payments 4THIRD,430100,Rendered by Private Contractors,12/06/2018,3447765-110297,"5,978.08",QW SECURITY LTD.
Regeneration and Local Services,Technical Services,Third Party Payments 4THIRD,430100,Rendered by Private Contractors,12/06/2018,3447767-2800/180523,"33,715.18",RAINTON CONSTRUCTION LTD.
Regeneration and Local Services,Technical Services,Third Party Payments 4THIRD,430100,Rendered by Private Contractors,12/06/2018,3447767-2800/180545,"51,366.61",RAINTON CONSTRUCTION LTD.
Regeneration and Local Services,Technical Services,Third Party Payments 4THIRD,430100,Rendered by Private Contractors,12/06/2018,3447767-2800/180546,"125,247.60",RAINTON CONSTRUCTION LTD.
Regeneration and Local Services,Transport and Contracted Services,Third Party Payments 4THIRD,430100,Rendered by Private Contractors,12/06/2018,3447778-CONCFAREPAY18-2JUNV1,"13,500.18",SCARLET BAND BUS & COACH LTD.
Regeneration and Local Services,Transport and Contracted Services,Third Party Payments 4THIRD,430100,Rendered by Private Contractors,12/06/2018,3447795-CONCFAREPAY18-2JUNV1,"7,978.43",STANLEY TRAVEL (NORTH EAST) LTD.
Regeneration and Local Services,Technical Services,Supplies and Services,304221,Equipment and Materials,12/06/2018,3447801-9038098400,598.13,TARMAC TRADING LTD.
Regeneration and Local Services,Technical Services,Supplies and Services,304221,Equipment and Materials,12/06/2018,3447801-9038113878,598.13,TARMAC TRADING LTD.
Regeneration and Local Services,Technical Services,Supplies and Services,304221,Equipment and Materials,12/06/2018,3447801-9038123170,598.13,TARMAC TRADING LTD.
Children and Young Peoples Services,"Head of Early Help, Inclusion and Vulnerable Children",Employees,080025,Agency Staff,12/06/2018,3447808-2169693,"2,344.40",TEACHING PERSONNEL LTD.
Regeneration and Local Services,Transport and Contracted Services,Supplies and Services,304245,Equipment and Materials,12/06/2018,3447826-3IN/10317961,"2,250.00",TUNSTALL HEALTHCARE (UK) LTD.
Resources,Corporate Finance & Commercial Services,Supplies and Services,342051,Computers and Communications,12/06/2018,3447831-INVSOL002382,557.29,VERSION 1 SOLUTIONS LTD.
Adult and Health Services,Commissioning inc Supporting People,Third Party Payments 4THIRD,473111,Purchase of Care,12/06/2018,3447834-GF016,"46,054.00",WADDINGTON STREET CENTRE LTD.
Regeneration and Local Services,Transport and Contracted Services,Third Party Payments 4THIRD,430100,Rendered by Private Contractors,12/06/2018,3447837-CONCFAREPAY18-2JUNV1,"1,566.15",WEARDALE COMMUNITY TRANSPORT LTD.
Regeneration and Local Services,Transport and Contracted Services,Third Party Payments 4THIRD,430100,Rendered by Private Contractors,12/06/2018,3447838-CONCFAREPAY18-2JUNV1,"1,864.10",WEARDALE MOTOR SERVICES LTD.
Regeneration and Local Services,Transport and Contracted Services,Third Party Payments 4THIRD,430100,Rendered by Private Contractors,12/06/2018,3447838-CONCFAREPAY18-2JUNV1X21,"19,919.56",WEARDALE MOTOR SERVICES LTD.
Regeneration and Local Services,Technical Services,Construction work A908,908105,Construction work,13/06/2018,3448590-2671,550.00,A & J GUTHRIE.
Regeneration and Local Services,Direct Services,Premises,115125,Repairs to Grounds,13/06/2018,3448590-2678,"1,950.00",A & J GUTHRIE.
Adult and Health Services,Head of Adults,Third Party Payments 4THIRD,470101,Purchase of Care,13/06/2018,3449190-2449681,813.92,A CHARLES THOMAS (CARE) LTD.
Adult and Health Services,Head of Adults,Third Party Payments 4THIRD,470101,Purchase of Care,13/06/2018,3449190-2449775,"2,279.00",A CHARLES THOMAS (CARE) LTD.
Adult and Health Services,Head of Adults,Third Party Payments 4THIRD,470101,Purchase of Care,13/06/2018,3449190-2449793,"2,279.00",A CHARLES THOMAS (CARE) LTD.
Adult and Health Services,Head of Adults,Third Party Payments 4THIRD,470101,Purchase of Care,13/06/2018,3449190-2449944,"2,279.00",A CHARLES THOMAS (CARE) LTD.
Adult and Health Services,Head of Adults,Third Party Payments 4THIRD,470101,Purchase of Care,13/06/2018,3449190-2450000,"2,279.00",A CHARLES THOMAS (CARE) LTD.
Adult and Health Services,Head of Adults,Third Party Payments 4THIRD,470101,Purchase of Care,13/06/2018,3449190-2450007,"2,279.00",A CHARLES THOMAS (CARE) LTD.
Adult and Health Services,Head of Adults,Third Party Payments 4THIRD,470101,Purchase of Care,13/06/2018,3449190-2450014,"2,279.00",A CHARLES THOMAS (CARE) LTD.
Adult and Health Services,Head of Adults,Third Party Payments 4THIRD,470101,Purchase of Care,13/06/2018,3449190-2450064,"2,279.00",A CHARLES THOMAS (CARE) LTD.
Adult and Health Services,Head of Adults,Third Party Payments 4THIRD,470101,Purchase of Care,13/06/2018,3449190-2450137,"2,279.00",A CHARLES THOMAS (CARE) LTD.
Adult and Health Services,Head of Adults,Third Party Payments 4THIRD,470101,Purchase of Care,13/06/2018,3449190-2450189,"1,042.98",A CHARLES THOMAS (CARE) LTD.
Adult and Health Services,Head of Adults,Third Party Payments 4THIRD,470101,Purchase of Care,13/06/2018,3449190-2450195,"2,279.00",A CHARLES THOMAS (CARE) LTD.
Adult and Health Services,Head of Adults,Third Party Payments 4THIRD,470101,Purchase of Care,13/06/2018,3449190-2450237,"2,279.00",A CHARLES THOMAS (CARE) LTD.
Adult and Health Services,Head of Adults,Third Party Payments 4THIRD,470101,Purchase of Care,13/06/2018,3449190-2450243,"2,946.45",A CHARLES THOMAS (CARE) LTD.
Adult and Health Services,Head of Adults,Third Party Payments 4THIRD,470101,Purchase of Care,13/06/2018,3449190-2450273,"2,279.00",A CHARLES THOMAS (CARE) LTD.
Adult and Health Services,Head of Adults,Third Party Payments 4THIRD,470101,Purchase of Care,13/06/2018,3449190-2450348,"2,279.00",A CHARLES THOMAS (CARE) LTD.
Adult and Health Services,Head of Adults,Third Party Payments 4THIRD,470101,Purchase of Care,13/06/2018,3449190-2450349,"2,381.52",A CHARLES THOMAS (CARE) LTD.
Adult and Health Services,Head of Adults,Third Party Payments 4THIRD,470101,Purchase of Care,13/06/2018,3449190-2450370,"2,983.37",A CHARLES THOMAS (CARE) LTD.
Adult and Health Services,Head of Adults,Third Party Payments 4THIRD,470101,Purchase of Care,13/06/2018,3449190-2450376,"2,279.00",A CHARLES THOMAS (CARE) LTD.
Adult and Health Services,Head of Adults,Third Party Payments 4THIRD,470101,Purchase of Care,13/06/2018,3449190-2450417,"2,592.26",A CHARLES THOMAS (CARE) LTD.
Adult and Health Services,Head of Adults,Third Party Payments 4THIRD,470101,Purchase of Care,13/06/2018,3449190-2450497,"2,279.00",A CHARLES THOMAS (CARE) LTD.
Adult and Health Services,Head of Adults,Third Party Payments 4THIRD,470101,Purchase of Care,13/06/2018,3449190-2450569,"2,421.39",A CHARLES THOMAS (CARE) LTD.
Adult and Health Services,Head of Adults,Third Party Payments 4THIRD,470101,Purchase of Care,13/06/2018,3449190-2450700,"2,983.37",A CHARLES THOMAS (CARE) LTD.
Adult and Health Services,Head of Adults,Third Party Payments 4THIRD,470101,Purchase of Care,13/06/2018,3449190-2450736,"2,983.37",A CHARLES THOMAS (CARE) LTD.
Adult and Health Services,Head of Adults,Third Party Payments 4THIRD,470101,Purchase of Care,13/06/2018,3449190-2450750,"2,983.37",A CHARLES THOMAS (CARE) LTD.
Adult and Health Services,Head of Adults,Third Party Payments 4THIRD,470101,Purchase of Care,13/06/2018,3449190-2451617,"2,555.68",A CHARLES THOMAS (CARE) LTD.
Adult and Health Services,Head of Adults,Third Party Payments 4THIRD,470101,Purchase of Care,13/06/2018,3449190-2451620,"2,717.56",A CHARLES THOMAS (CARE) LTD.
Adult and Health Services,Head of Adults,Third Party Payments 4THIRD,470101,Purchase of Care,13/06/2018,3449190-2465451,704.37,A CHARLES THOMAS (CARE) LTD.
Adult and Health Services,Head of Adults,Third Party Payments 4THIRD,470101,Purchase of Care,13/06/2018,3449190-2465931,704.37,A CHARLES THOMAS (CARE) LTD.
Adult and Health Services,Head of Adults,Third Party Payments 4THIRD,470101,Purchase of Care,13/06/2018,3449190-2466883,704.37,A CHARLES THOMAS (CARE) LTD.
Adult and Health Services,Head of Adults,Third Party Payments 4THIRD,470101,Purchase of Care,13/06/2018,3449190-2467398,506.92,A CHARLES THOMAS (CARE) LTD.
Adult and Health Services,Head of Adults,Third Party Payments 4THIRD,470101,Purchase of Care,13/06/2018,3449190-2467869,615.14,A CHARLES THOMAS (CARE) LTD.
Adult and Health Services,Head of Adults,Third Party Payments 4THIRD,470101,Purchase of Care,13/06/2018,3449190-2467872,704.37,A CHARLES THOMAS (CARE) LTD.
Adult and Health Services,Head of Adults,Third Party Payments 4THIRD,470101,Purchase of Care,13/06/2018,3449190-2468359,598.05,A CHARLES THOMAS (CARE) LTD.
Adult and Health Services,Head of Adults,Third Party Payments 4THIRD,470101,Purchase of Care,13/06/2018,3449190-2468362,649.31,A CHARLES THOMAS (CARE) LTD.
Adult and Health Services,Head of Adults,Third Party Payments 4THIRD,470101,Purchase of Care,13/06/2018,3449190-2468815,704.37,A CHARLES THOMAS (CARE) LTD.
Adult and Health Services,Head of Adults,Third Party Payments 4THIRD,470101,Purchase of Care,13/06/2018,3449190-2469671,"1,058.10",A CHARLES THOMAS (CARE) LTD.
Adult and Health Services,Head of Adults,Third Party Payments 4THIRD,470101,Purchase of Care,13/06/2018,3449190-2469672,"1,220.89",A CHARLES THOMAS (CARE) LTD.
Adult and Health Services,Head of Adults,Third Party Payments 4THIRD,470101,Purchase of Care,13/06/2018,3449190-2469731,667.45,A CHARLES THOMAS (CARE) LTD.
Adult and Health Services,Head of Adults,Third Party Payments 4THIRD,470101,Purchase of Care,13/06/2018,3449190-2470582,569.75,A CHARLES THOMAS (CARE) LTD.
Adult and Health Services,Head of Adults,Third Party Payments 4THIRD,470101,Purchase of Care,13/06/2018,3449190-2470786,"1,139.50",A CHARLES THOMAS (CARE) LTD.
Adult and Health Services,Head of Adults,Third Party Payments 4THIRD,470101,Purchase of Care,13/06/2018,3449190-2470787,"1,139.50",A CHARLES THOMAS (CARE) LTD.
Children and Young Peoples Services,Head of Childrens Social Care,Third Party Payments 4THIRD,425040,Rendered by Voluntary Organisations,13/06/2018,3449501-1802472H,"2,920.12",A1 FOSTER CARE
Children and Young Peoples Services,Head of Childrens Social Care,Third Party Payments 4THIRD,425040,Rendered by Voluntary Organisations,13/06/2018,3449501-1802971H,"2,920.12",A1 FOSTER CARE
Children and Young Peoples Services,Head of Childrens Social Care,Third Party Payments 4THIRD,425040,Rendered by Voluntary Organisations,13/06/2018,3449501-1803434H,"2,920.12",A1 FOSTER CARE
Children and Young Peoples Services,Head of Childrens Social Care,Third Party Payments 4THIRD,425040,Rendered by Voluntary Organisations,13/06/2018,3449501-1804435H,"2,920.12",A1 FOSTER CARE
Children and Young Peoples Services,Head of Childrens Social Care,Third Party Payments 4THIRD,425040,Rendered by Voluntary Organisations,13/06/2018,3449501-1810596H,"2,920.12",A1 FOSTER CARE
Children and Young Peoples Services,Head of Childrens Social Care,Third Party Payments 4THIRD,425040,Rendered by Voluntary Organisations,13/06/2018,3449501-1811588H,"2,920.12",A1 FOSTER CARE
Children and Young Peoples Services,Head of Childrens Social Care,Third Party Payments 4THIRD,425040,Rendered by Voluntary Organisations,13/06/2018,3449501-1812565H,"2,920.12",A1 FOSTER CARE
Children and Young Peoples Services,Head of Childrens Social Care,Third Party Payments 4THIRD,425040,Rendered by Voluntary Organisations,13/06/2018,3449501-1812566H,"2,920.12",A1 FOSTER CARE
Adult and Health Services,Head of Adults,Third Party Payments 4THIRD,474101,Purchase of Care,13/06/2018,3449191-2451695,"2,848.00",ABBEYMOOR CLINIC.
Adult and Health Services,Head of Adults,Third Party Payments 4THIRD,474101,Purchase of Care,13/06/2018,3449191-2451709,"2,848.00",ABBEYMOOR CLINIC.
Adult and Health Services,Head of Adults,Third Party Payments 4THIRD,474101,Purchase of Care,13/06/2018,3449191-2451740,"2,303.28",ABBEYMOOR CLINIC.
Adult and Health Services,Head of Adults,Third Party Payments 4THIRD,470101,Purchase of Care,13/06/2018,3449191-2451635,"2,000.00",ABBEYMOOR CLINIC.
Adult and Health Services,Head of Adults,Third Party Payments 4THIRD,470101,Purchase of Care,13/06/2018,3449192-2449756,"2,279.00",ABBEYVALE CARE CENTRE.
Adult and Health Services,Head of Adults,Third Party Payments 4THIRD,470101,Purchase of Care,13/06/2018,3449192-2449912,"1,709.25",ABBEYVALE CARE CENTRE.
Adult and Health Services,Head of Adults,Third Party Payments 4THIRD,470101,Purchase of Care,13/06/2018,3449192-2449932,515.31,ABBEYVALE CARE CENTRE.
Adult and Health Services,Head of Adults,Third Party Payments 4THIRD,470101,Purchase of Care,13/06/2018,3449192-2449970,"2,279.00",ABBEYVALE CARE CENTRE.
Adult and Health Services,Head of Adults,Third Party Payments 4THIRD,470101,Purchase of Care,13/06/2018,3449192-2449997,"2,292.08",ABBEYVALE CARE CENTRE.
Adult and Health Services,Head of Adults,Third Party Payments 4THIRD,470101,Purchase of Care,13/06/2018,3449192-2450031,"2,279.00",ABBEYVALE CARE CENTRE.
Adult and Health Services,Head of Adults,Third Party Payments 4THIRD,470101,Purchase of Care,13/06/2018,3449192-2450648,"2,946.45",ABBEYVALE CARE CENTRE.
Adult and Health Services,Head of Adults,Third Party Payments 4THIRD,470101,Purchase of Care,13/06/2018,3449192-2450656,"1,155.80",ABBEYVALE CARE CENTRE.
Adult and Health Services,Head of Adults,Third Party Payments 4THIRD,470101,Purchase of Care,13/06/2018,3449192-2450716,"2,946.45",ABBEYVALE CARE CENTRE.
Adult and Health Services,Head of Adults,Third Party Payments 4THIRD,470101,Purchase of Care,13/06/2018,3449192-2450753,"2,946.45",ABBEYVALE CARE CENTRE.
Adult and Health Services,Head of Adults,Third Party Payments 4THIRD,470101,Purchase of Care,13/06/2018,3449192-2450835,"2,946.45",ABBEYVALE CARE CENTRE.
Adult and Health Services,Head of Adults,Third Party Payments 4THIRD,470101,Purchase of Care,13/06/2018,3449192-2450906,"2,946.45",ABBEYVALE CARE CENTRE.
Adult and Health Services,Head of Adults,Third Party Payments 4THIRD,470101,Purchase of Care,13/06/2018,3449192-2451839,"1,250.00",ABBEYVALE CARE CENTRE.
Adult and Health Services,Head of Adults,Third Party Payments 4THIRD,470101,Purchase of Care,13/06/2018,3449192-2451843,"2,500.00",ABBEYVALE CARE CENTRE.
Adult and Health Services,Head of Adults,Third Party Payments 4THIRD,470101,Purchase of Care,13/06/2018,3449192-2451844,"2,500.00",ABBEYVALE CARE CENTRE.
Adult and Health Services,Head of Adults,Third Party Payments 4THIRD,470101,Purchase of Care,13/06/2018,3449192-2451864,"1,250.00",ABBEYVALE CARE CENTRE.
Adult and Health Services,Head of Adults,Third Party Payments 4THIRD,470101,Purchase of Care,13/06/2018,3449192-2451870,"1,250.00",ABBEYVALE CARE CENTRE.
Adult and Health Services,Head of Adults,Third Party Payments 4THIRD,470101,Purchase of Care,13/06/2018,3449192-2451887,"1,390.00",ABBEYVALE CARE CENTRE.
Adult and Health Services,Head of Adults,Third Party Payments 4THIRD,470101,Purchase of Care,13/06/2018,3449192-2451891,"2,500.00",ABBEYVALE CARE CENTRE.
Adult and Health Services,Head of Adults,Third Party Payments 4THIRD,470101,Purchase of Care,13/06/2018,3449192-2469539,"1,428.57",ABBEYVALE CARE CENTRE.
Adult and Health Services,Head of Adults,Third Party Payments 4THIRD,470101,Purchase of Care,13/06/2018,3449192-2469540,"7,020.00",ABBEYVALE CARE CENTRE.
Adult and Health Services,Head of Adults,Third Party Payments 4THIRD,470101,Purchase of Care,13/06/2018,3449192-2469541,"3,240.00",ABBEYVALE CARE CENTRE.
Adult and Health Services,Head of Adults,Third Party Payments 4THIRD,470101,Purchase of Care,13/06/2018,3449192-2469542,720.00,ABBEYVALE CARE CENTRE.
Adult and Health Services,Head of Adults,Third Party Payments 4THIRD,470101,Purchase of Care,13/06/2018,3449192-2469575,648.77,ABBEYVALE CARE CENTRE.
Adult and Health Services,Head of Adults,Third Party Payments 4THIRD,470101,Purchase of Care,13/06/2018,3449192-2469587,522.97,ABBEYVALE CARE CENTRE.
Adult and Health Services,Head of Adults,Third Party Payments 4THIRD,470101,Purchase of Care,13/06/2018,3449192-2469594,620.72,ABBEYVALE CARE CENTRE.
Adult and Health Services,Head of Adults,Third Party Payments 4THIRD,470101,Purchase of Care,13/06/2018,3449192-2469801,"1,375.23",ABBEYVALE CARE CENTRE.
Adult and Health Services,Head of Adults,Third Party Payments 4THIRD,471101,Purchase of Care,13/06/2018,3449192-2452767,"2,363.08",ABBEYVALE CARE CENTRE.
Adult and Health Services,Head of Adults,Third Party Payments 4THIRD,471101,Purchase of Care,13/06/2018,3449192-2452807,"3,057.03",ABBEYVALE CARE CENTRE.
Adult and Health Services,Head of Adults,Third Party Payments 4THIRD,471101,Purchase of Care,13/06/2018,3449192-2452927,"2,363.08",ABBEYVALE CARE CENTRE.
Adult and Health Services,Head of Adults,Third Party Payments 4THIRD,471101,Purchase of Care,13/06/2018,3449192-2453099,"2,363.08",ABBEYVALE CARE CENTRE.
Adult and Health Services,Head of Adults,Third Party Payments 4THIRD,471101,Purchase of Care,13/06/2018,3449192-2453103,"1,242.08",ABBEYVALE CARE CENTRE.
Adult and Health Services,Head of Adults,Third Party Payments 4THIRD,471101,Purchase of Care,13/06/2018,3449192-2453288,"2,883.25",ABBEYVALE CARE CENTRE.
Adult and Health Services,Head of Adults,Third Party Payments 4THIRD,471101,Purchase of Care,13/06/2018,3449192-2453452,"3,057.03",ABBEYVALE CARE CENTRE.
Adult and Health Services,Head of Adults,Third Party Payments 4THIRD,471101,Purchase of Care,13/06/2018,3449192-2453481,"3,057.03",ABBEYVALE CARE CENTRE.
Adult and Health Services,Head of Adults,Third Party Payments 4THIRD,471101,Purchase of Care,13/06/2018,3449192-2453494,"3,057.03",ABBEYVALE CARE CENTRE.
Adult and Health Services,Head of Adults,Third Party Payments 4THIRD,471101,Purchase of Care,13/06/2018,3449192-2453499,"3,057.03",ABBEYVALE CARE CENTRE.
Adult and Health Services,Head of Adults,Third Party Payments 4THIRD,471101,Purchase of Care,13/06/2018,3449192-2469573,693.95,ABBEYVALE CARE CENTRE.
Adult and Health Services,Head of Adults,Third Party Payments 4THIRD,471101,Purchase of Care,13/06/2018,3449192-2469586,647.23,ABBEYVALE CARE CENTRE.
Adult and Health Services,Head of Adults,Third Party Payments 4THIRD,471101,Purchase of Care,13/06/2018,3449192-2469588,675.73,ABBEYVALE CARE CENTRE.
Adult and Health Services,Head of Adults,Third Party Payments 4THIRD,471101,Purchase of Care,13/06/2018,3449192-2469593,693.95,ABBEYVALE CARE CENTRE.
Adult and Health Services,Head of Adults,Third Party Payments 4THIRD,478101,Purchase of Care,13/06/2018,3449504-1805744H,"3,164.72",ACCEPT CARE LTD.
Adult and Health Services,Head of Adults,Third Party Payments 4THIRD,478101,Purchase of Care,13/06/2018,3449504-1805847H,"3,370.20",ACCEPT CARE LTD.
Adult and Health Services,Head of Adults,Third Party Payments 4THIRD,478101,Purchase of Care,13/06/2018,3449504-1805905H,"4,521.00",ACCEPT CARE LTD.
Adult and Health Services,Head of Adults,Third Party Payments 4THIRD,478101,Purchase of Care,13/06/2018,3449504-1806018H,"3,260.64",ACCEPT CARE LTD.
Adult and Health Services,Head of Adults,Third Party Payments 4THIRD,478101,Purchase of Care,13/06/2018,3449504-1806246H,894.88,ACCEPT CARE LTD.
Adult and Health Services,Head of Adults,Third Party Payments 4THIRD,478101,Purchase of Care,13/06/2018,3449504-1806308H,"5,087.28",ACCEPT CARE LTD.
Adult and Health Services,Head of Adults,Third Party Payments 4THIRD,478101,Purchase of Care,13/06/2018,3449504-1806339H,894.88,ACCEPT CARE LTD.
Adult and Health Services,Head of Adults,Third Party Payments 4THIRD,478101,Purchase of Care,13/06/2018,3449504-1806348H,894.88,ACCEPT CARE LTD.
Adult and Health Services,Head of Adults,Third Party Payments 4THIRD,478101,Purchase of Care,13/06/2018,3449504-1806431H,894.88,ACCEPT CARE LTD.
Adult and Health Services,Head of Adults,Third Party Payments 4THIRD,478101,Purchase of Care,13/06/2018,3449504-1806466H,"4,484.48",ACCEPT CARE LTD.
Adult and Health Services,Head of Adults,Third Party Payments 4THIRD,478101,Purchase of Care,13/06/2018,3449504-1806468H,"1,002.16",ACCEPT CARE LTD.
Adult and Health Services,Head of Adults,Third Party Payments 4THIRD,478101,Purchase of Care,13/06/2018,3449504-1806473H,"3,425.00",ACCEPT CARE LTD.
Adult and Health Services,Head of Adults,Third Party Payments 4THIRD,478101,Purchase of Care,13/06/2018,3449504-1806545H,894.88,ACCEPT CARE LTD.
Adult and Health Services,Head of Adults,Third Party Payments 4THIRD,478101,Purchase of Care,13/06/2018,3449504-1806552H,"4,740.20",ACCEPT CARE LTD.
Adult and Health Services,Head of Adults,Third Party Payments 4THIRD,478101,Purchase of Care,13/06/2018,3449504-1806557H,894.88,ACCEPT CARE LTD.
Adult and Health Services,Head of Adults,Third Party Payments 4THIRD,478101,Purchase of Care,13/06/2018,3449504-1806770H,"6,329.40",ACCEPT CARE LTD.
Adult and Health Services,Head of Adults,Third Party Payments 4THIRD,478101,Purchase of Care,13/06/2018,3449504-1806972H,"6,094.68",ACCEPT CARE LTD.
Adult and Health Services,Head of Adults,Third Party Payments 4THIRD,478101,Purchase of Care,13/06/2018,3449504-1806995H,"2,493.40",ACCEPT CARE LTD.
Adult and Health Services,Head of Adults,Third Party Payments 4THIRD,478101,Purchase of Care,13/06/2018,3449504-1807054H,"6,378.84",ACCEPT CARE LTD.
Adult and Health Services,Head of Adults,Third Party Payments 4THIRD,478101,Purchase of Care,13/06/2018,3449504-1807071H,"4,137.40",ACCEPT CARE LTD.
Adult and Health Services,Head of Adults,Third Party Payments 4THIRD,478101,Purchase of Care,13/06/2018,3449504-1807173H,"2,732.80",ACCEPT CARE LTD.
Adult and Health Services,Head of Adults,Third Party Payments 4THIRD,478101,Purchase of Care,13/06/2018,3449504-1807190H,"5,233.40",ACCEPT CARE LTD.
Adult and Health Services,Head of Adults,Third Party Payments 4THIRD,478101,Purchase of Care,13/06/2018,3449504-1807215H,894.88,ACCEPT CARE LTD.
Adult and Health Services,Head of Adults,Third Party Payments 4THIRD,478101,Purchase of Care,13/06/2018,3449504-1807230H,"4,018.68",ACCEPT CARE LTD.
Adult and Health Services,Head of Adults,Third Party Payments 4THIRD,478101,Purchase of Care,13/06/2018,3449504-1807290H,"2,313.48",ACCEPT CARE LTD.
Adult and Health Services,Head of Adults,Third Party Payments 4THIRD,478101,Purchase of Care,13/06/2018,3449504-1807293H,"3,301.72",ACCEPT CARE LTD.
Adult and Health Services,Head of Adults,Third Party Payments 4THIRD,478101,Purchase of Care,13/06/2018,3449504-1807382H,"6,685.60",ACCEPT CARE LTD.
Adult and Health Services,Head of Adults,Third Party Payments 4THIRD,478101,Purchase of Care,13/06/2018,3449504-1807392H,"12,019.48",ACCEPT CARE LTD.
Adult and Health Services,Head of Adults,Third Party Payments 4THIRD,478101,Purchase of Care,13/06/2018,3449504-1807404H,"3,461.52",ACCEPT CARE LTD.
Adult and Health Services,Head of Adults,Third Party Payments 4THIRD,478101,Purchase of Care,13/06/2018,3449504-1807477H,"3,844.83",ACCEPT CARE LTD.
Adult and Health Services,Head of Adults,Third Party Payments 4THIRD,478101,Purchase of Care,13/06/2018,3449504-1807483H,"6,603.40",ACCEPT CARE LTD.
Adult and Health Services,Head of Adults,Third Party Payments 4THIRD,478101,Purchase of Care,13/06/2018,3449504-1807655H,"1,749.96",ACCEPT CARE LTD.
Adult and Health Services,Head of Adults,Third Party Payments 4THIRD,478101,Purchase of Care,13/06/2018,3449504-1808056H,"4,509.12",ACCEPT CARE LTD.
Adult and Health Services,Head of Adults,Third Party Payments 4THIRD,478101,Purchase of Care,13/06/2018,3449504-1808132H,"1,765.48",ACCEPT CARE LTD.
Adult and Health Services,Head of Adults,Third Party Payments 4THIRD,478101,Purchase of Care,13/06/2018,3449504-1808281H,894.88,ACCEPT CARE LTD.
Adult and Health Services,Head of Adults,Third Party Payments 4THIRD,478101,Purchase of Care,13/06/2018,3449504-1808283H,894.88,ACCEPT CARE LTD.
Adult and Health Services,Head of Adults,Third Party Payments 4THIRD,478101,Purchase of Care,13/06/2018,3449504-1808682H,"5,354.44",ACCEPT CARE LTD.
Adult and Health Services,Head of Adults,Third Party Payments 4THIRD,478101,Purchase of Care,13/06/2018,3449504-1808746H,"1,404.48",ACCEPT CARE LTD.
Adult and Health Services,Head of Adults,Third Party Payments 4THIRD,478101,Purchase of Care,13/06/2018,3449504-1808779H,"6,383.16",ACCEPT CARE LTD.
Adult and Health Services,Head of Adults,Third Party Payments 4THIRD,478101,Purchase of Care,13/06/2018,3449504-1809077H,"1,180.96",ACCEPT CARE LTD.
Adult and Health Services,Head of Adults,Third Party Payments 4THIRD,478101,Purchase of Care,13/06/2018,3449504-1809142H,"3,370.20",ACCEPT CARE LTD.
Adult and Health Services,Head of Adults,Third Party Payments 4THIRD,478101,Purchase of Care,13/06/2018,3449504-1809604H,"1,055.80",ACCEPT CARE LTD.
Adult and Health Services,Head of Adults,Third Party Payments 4THIRD,478101,Purchase of Care,13/06/2018,3449504-1810143H,894.88,ACCEPT CARE LTD.
Adult and Health Services,Head of Adults,Third Party Payments 4THIRD,478101,Purchase of Care,13/06/2018,3449504-1810376H,"1,546.28",ACCEPT CARE LTD.
Adult and Health Services,Head of Adults,Third Party Payments 4THIRD,478101,Purchase of Care,13/06/2018,3449504-1810504H,894.88,ACCEPT CARE LTD.
Adult and Health Services,Head of Adults,Third Party Payments 4THIRD,478101,Purchase of Care,13/06/2018,3449504-1810844H,"3,068.84",ACCEPT CARE LTD.
Adult and Health Services,Head of Adults,Third Party Payments 4THIRD,478101,Purchase of Care,13/06/2018,3449504-1810897H,"1,208.36",ACCEPT CARE LTD.
Adult and Health Services,Head of Adults,Third Party Payments 4THIRD,478101,Purchase of Care,13/06/2018,3449504-1810920H,894.88,ACCEPT CARE LTD.
Adult and Health Services,Head of Adults,Third Party Payments 4THIRD,478101,Purchase of Care,13/06/2018,3449504-1811390H,894.88,ACCEPT CARE LTD.
Adult and Health Services,Head of Adults,Third Party Payments 4THIRD,478101,Purchase of Care,13/06/2018,3449504-1811537H,"1,978.28",ACCEPT CARE LTD.
Adult and Health Services,Head of Adults,Third Party Payments 4THIRD,478101,Purchase of Care,13/06/2018,3449504-1811683H,"1,765.48",ACCEPT CARE LTD.
Adult and Health Services,Head of Adults,Third Party Payments 4THIRD,478101,Purchase of Care,13/06/2018,3449504-1811699H,894.88,ACCEPT CARE LTD.
